{"text_format":"1","workbook":"xlsx","n_sheets":17,"sheets":["Accueil","Préparation de terrain","Régénération artificielle","Éducation de peuplement","Éclaircie commerciale EAF","Martelage","Travaux de planif et techniques","Dispersion 2020-2021","Versions du fichier","Étapes calcul majorations","Traitements admissibles","Calculs grille","Menus","Formules","Majorations applicables","RXF","Log"],"not_rendered":{"charts":0,"images":19,"macros":1,"external_links":1,"defined_names":163,"comments":0,"pivot_tables":0},"unopened":[],"bounds":{"document_bytes":16777216,"sheet_cells":100000,"rows_first":2000,"rows_last":500,"rows_between":2000,"halvings":0,"cell_chars":16384,"cell_head_chars":4096},"cells_cut":0,"cells_raw":0,"read":"whole","date_system":"1900"}

{"sheet":"Accueil","index":0,"n_rows":19,"n_cols":4,"rows_kept":19,"cut":false,"hidden":false,"merged":[[13,3,13,13],[15,2,16,14],[18,3,18,13]]}
[]
[]
[]
[]
[]
[]
[]
[]
[]
[]
[]
[]
[]
[null,null,null,"Annexe au calcul des taux des traitements non commerciaux 2020-2021          \nForêt publique\n"]
[]
[null,null,"L'activation du contenu de ce fichier est requise afin d'assurer l'exécution des macro-commandes qui sont nécessaires\nà son bon fonctionnement."]
[]
[]
[null,null,null,"https://support.office.com/fr-fr/article/activer-ou-d%C3%A9sactiver-les-macros-dans-les-fichiers-office-12b036fd-d140-4e74-b45e-16fed1a7e5c6"]

{"sheet":"Préparation de terrain","index":1,"n_rows":308,"n_cols":7,"rows_kept":308,"cut":false,"hidden":true,"merged":[[115,0,115,3],[50,0,50,5],[51,0,51,6],[53,4,53,5],[53,0,53,1],[54,4,54,5],[71,4,71,5],[68,0,68,2],[69,0,69,2],[55,4,55,5],[56,4,56,5],[52,0,52,6],[57,4,57,5],[70,0,70,6],[61,0,61,6],[60,0,60,6],[54,0,54,1],[55,0,55,1],[56,0,56,1],[62,0,62,6],[64,0,64,2],[65,0,65,2],[66,0,66,2],[67,0,67,2],[47,0,47,1],[48,0,48,1],[44,4,44,5],[45,4,45,5],[46,4,46,5],[41,0,41,5],[49,0,49,1],[49,2,49,3],[49,4,49,5],[131,1,131,3],[133,1,133,3],[35,0,35,1],[36,0,36,1],[37,0,37,1],[38,0,38,1],[39,0,39,1],[40,0,40,1],[40,2,40,3],[43,0,43,6],[42,0,42,6],[58,4,58,5],[44,2,44,3],[45,2,45,3],[46,2,46,3],[47,2,47,3],[48,2,48,3],[40,4,40,5],[72,4,72,5],[47,4,47,5],[48,4,48,5],[44,0,44,1],[45,0,45,1],[46,0,46,1],[9,4,9,5],[9,0,9,3],[35,4,35,5],[36,4,36,5],[35,2,35,3],[36,2,36,3],[37,2,37,3],[38,2,38,3],[39,2,39,3],[37,4,37,5],[38,4,38,5],[39,4,39,5],[22,1,22,4],[19,1,19,4],[30,0,30,5],[31,0,31,5],[32,0,32,5],[33,0,33,6],[34,0,34,6],[14,0,14,5],[15,2,15,6],[139,0,139,5],[146,0,146,5],[128,1,128,3],[140,0,140,6],[125,0,125,5],[121,0,121,6],[103,0,103,6],[107,0,107,6],[129,1,129,3],[117,0,117,6],[119,0,119,4],[127,1,127,3],[130,1,130,3],[113,0,113,6],[126,0,126,5],[136,0,136,5],[135,0,135,6],[137,0,137,6],[123,0,123,5],[132,1,132,3],[122,0,122,5],[124,0,124,6],[127,0,132,0],[127,4,132,4],[210,0,210,5],[141,0,141,4],[142,0,142,4],[144,0,144,6],[166,0,166,5],[153,0,153,5],[148,0,148,5],[152,0,152,5],[167,0,167,5],[194,0,194,5],[147,0,147,5],[187,0,187,5],[192,0,192,5],[189,0,189,5],[198,0,198,5],[156,0,156,5],[202,0,202,5],[203,0,203,5],[199,0,199,5],[160,0,160,6],[201,0,201,5],[164,0,164,5],[143,0,143,6],[145,0,145,5],[230,0,230,5],[173,0,173,5],[218,0,218,5],[213,0,213,5],[195,0,195,5],[177,0,177,5],[179,0,179,5],[180,0,180,5],[197,0,197,5],[204,0,204,5],[200,0,200,5],[216,0,216,5],[208,0,208,5],[209,0,209,5],[217,0,217,5],[214,0,214,5],[220,0,220,6],[219,0,219,5],[212,0,212,5],[225,0,225,5],[222,0,222,5],[181,0,181,5],[191,0,191,5],[190,0,190,6],[251,0,251,5],[276,0,276,6],[277,0,277,6],[242,0,242,5],[255,0,255,5],[258,0,258,5],[246,0,246,5],[259,0,259,5],[252,0,252,5],[250,0,250,5],[249,0,249,5],[248,0,248,5],[247,0,247,5],[257,0,257,5],[268,0,268,5],[269,0,269,5],[270,0,270,5],[271,0,271,5],[272,0,272,5],[273,0,273,5],[274,0,274,5],[262,0,262,5],[263,0,263,5],[260,0,260,6],[240,0,240,5],[282,0,282,5],[290,2,291,4],[275,0,275,6],[288,0,288,4],[238,0,238,5],[239,0,239,5],[227,0,227,5],[256,0,256,5],[285,0,285,5],[279,6,281,6],[278,0,278,6],[237,0,237,5],[283,6,284,6],[283,0,284,5],[279,0,281,5],[253,0,253,5],[254,0,254,5],[236,0,236,5],[244,0,244,5],[241,0,241,5],[245,0,245,6],[243,0,243,5],[232,0,232,6],[261,0,261,5],[264,0,264,5],[265,0,265,5],[266,0,266,5],[149,0,149,5],[172,0,172,5],[171,0,171,5],[151,0,151,5],[150,0,150,5],[186,0,186,5],[168,0,168,5],[184,0,184,5],[183,0,183,5],[182,0,182,5],[176,0,176,5],[174,0,174,5],[157,0,157,5],[158,0,158,5],[175,0,175,6],[161,0,161,5],[169,0,169,5],[165,0,165,5],[170,0,170,5],[178,0,178,5],[221,0,221,5],[154,0,154,5],[235,0,235,5],[234,0,234,5],[233,0,233,5],[155,0,155,5],[206,0,206,5],[229,0,229,5],[231,0,231,5],[205,0,205,6],[228,0,228,5],[224,0,224,5],[226,0,226,5],[223,0,223,5],[215,0,215,5],[207,0,207,5],[159,0,159,5],[193,0,193,5],[185,0,185,5],[196,0,196,5],[211,0,211,5],[188,0,188,5],[162,0,162,5],[163,0,163,5],[73,4,73,5],[93,2,93,3],[88,4,88,5],[89,4,89,5],[88,0,88,1],[71,0,71,1],[72,0,72,1],[73,0,73,1],[74,0,74,1],[75,0,75,1],[76,0,76,1],[74,4,74,5],[81,0,81,2],[75,4,75,5],[76,4,76,5],[71,2,71,3],[91,2,91,3],[92,2,92,3],[90,4,90,5],[92,4,92,5],[87,0,87,6],[72,2,72,3],[73,2,73,3],[74,2,74,3],[0,0,0,6],[3,0,3,6],[26,0,26,6],[15,0,15,1],[25,0,25,5],[10,0,10,6],[29,0,29,6],[17,0,17,6],[12,0,12,4],[20,1,20,3],[21,1,21,3],[23,1,23,3],[27,0,27,6],[4,0,4,5],[5,0,5,5],[6,0,6,5],[7,0,7,5],[28,0,28,6],[2,0,2,5],[8,0,8,5],[24,1,24,3],[18,0,18,6],[11,0,11,4],[13,0,13,5],[134,0,134,5],[1,0,1,6],[299,3,299,4],[96,2,96,3],[101,4,101,5],[102,0,102,5],[114,0,114,6],[118,0,118,6],[97,4,97,5],[108,0,108,6],[138,0,138,5],[109,0,109,5],[101,0,101,1],[97,2,97,3],[98,2,98,3],[99,2,99,3],[100,2,100,3],[101,2,101,3],[104,0,104,6],[110,0,110,5],[111,0,111,5],[267,0,267,5],[96,4,96,5],[75,2,75,3],[105,0,105,5],[16,0,16,4],[120,0,120,6],[98,4,98,5],[63,0,63,2],[59,0,59,5],[57,0,57,1],[58,0,58,1],[53,2,53,3],[54,2,54,3],[55,2,55,3],[56,2,56,3],[57,2,57,3],[58,2,58,3],[112,0,112,5],[116,0,116,4],[76,2,76,3],[94,0,94,6],[89,2,89,3],[93,0,93,1],[88,2,88,3],[80,0,80,2],[106,0,106,5],[97,0,97,1],[98,0,98,1],[99,4,99,5],[100,0,100,1],[96,0,96,1],[78,0,78,6],[82,0,82,2],[77,0,77,6],[91,0,91,1],[92,0,92,1],[90,2,90,3],[89,0,89,1],[84,0,84,2],[85,0,85,2],[90,0,90,1],[100,4,100,5],[99,0,99,1],[95,0,95,6],[91,4,91,5],[93,4,93,5],[86,0,86,2],[83,0,83,2],[79,0,79,6]]}
[]
["Annexe au calcul des taux des traitements non commerciaux 2020-2021          \n   Préparation de terrain\nForêt publique"]
[" *** Veuillez saisir les informations dans les cellules blanches seulement ***",null,null,null,null,null,"Version 3 : 2020-04-02"]
["Identification"]
["Unité d'aménagement (UA)"]
["Secteur d'intervention"]
["Unité de compilation"]
["Numéro de la prescription"]
["Traitement (code DICA)"]
["Traitement (code RATF)",null,null,null,{"$f":"IFERROR(VLOOKUP($G$9,Menus!$A$180:$D$224,3,FALSE),Menus!$C$225)","v":"PRT_Codes_RATF"}]
["Traitement de préparation de terrain à taux fixe ou variable"]
["Traitement",null,null,null,null,{"$f":"IFERROR((VLOOKUP($G$12,Menus!$A$4:$B$11,2,FALSE)),\"\")","v":""},"Inscrire une valeur"]
["Équipement ou modalité",null,null,null,null,{"$f":"IF($G$13=Menus!$D$6,Menus!$E$6,IF($G$13=Menus!$D$11,Menus!$E$11,\"\"))","v":""},"Inscrire une valeur"]
[{"$f":"IFERROR(IF(OR($G$13=Menus!$D$15,$G$13=Menus!$D$16,$G$13=Menus!$D$18,$G$13=Menus!$D$19),\"Taux de base en fonction d'une distance entre les passages de 5 mètres - Voir majoration PA0\",\"Taux de base\"),\"Taux de base\")","v":"Taux de base"},null,null,null,null,null,{"$f":"IF($G$13=Menus!$D$4,Menus!$H$4,IF($G$13=Menus!$D$5,Menus!$H$5,IF($G$13=Menus!$D$6,Menus!$H$6,IF($G$13=Menus!$D$7,Menus!$H$7,IF($G$13=Menus!$D$8,Menus!$H$8,IF($G$13=Menus!$D$9,Menus!$H$9,IF($G$13=Menus!$D$10,Menus!$H$10,IF($G$13=Menus!$D$11,Menus!$H$11,IF($G$13=Menus!$D$12,Menus!$H$12,IF($G$13=Menus!$D$13,Menus!$H$13,IF($G$13=Menus!$D$14,Menus!$H$14,IF($G$13=Menus!$D$15,Menus!$H$15,IF($G$13=Menus!$D$16,Menus!$H$16,IF($G$13=Menus!$D$17,Menus!$H$17,IF(G13=Menus!$D$18,Menus!$H$18,IF($G$13=Menus!$D$19,Menus!$H$19,IF($G$13=Menus!$D$20,Menus!$H$20,\"\")))))))))))))))))","v":0}]
["Unité de mesure",null,null,null,null,null,{"$f":"IF($G$13=Menus!$D$4,Menus!$I$4,IF($G$13=Menus!$D$5,Menus!$I$5,IF($G$13=Menus!$D$6,Menus!$I$6,IF($G$13=Menus!$D$7,Menus!$I$7,IF($G$13=Menus!$D$8,Menus!$I$8,IF($G$13=Menus!$D$9,Menus!$I$9,IF($G$13=Menus!$D$10,Menus!$I$10,IF($G$13=Menus!$D$11,Menus!$I$11,IF($G$13=Menus!$D$12,Menus!$I$12,IF($G$13=Menus!$D$13,Menus!$I$13,IF($G$13=Menus!$D$14,Menus!$I$14,IF($G$13=Menus!$D$15,Menus!$I$15,IF($G$13=Menus!$D$16,Menus!$I$16,IF($G$13=Menus!$D$17,Menus!$I$17,IF($G$13=Menus!$D$18,Menus!$I$18,IF($G$13=Menus!$D$19,Menus!$I$19,IF($G$13=Menus!$D$20,Menus!$I$20,\"\")))))))))))))))))","v":"-"}]
[{"$f":"\"Formule (e=Constante \"&Menus!$C$64&\")\"","v":"Formule (e=Constante 2,718)"},null,{"$f":"IF($G$13=Formules!$B$8,Formules!$D$8,IF($G$13=Formules!$B$9,Formules!$D$9,\"\"))","v":""}]
["Est-ce que la délimitation des secteurs est effectuée par la même entreprise que celle qui réalise le traitement (en régie) de préparation de terrain ?",null,null,null,null,{"$f":"IFERROR(VLOOKUP($G$17,Menus!$A$88:$B$89,2,FALSE),\"\")","v":""}]
[{"$f":"\"Valeurs spécifiques à remplir selon le traitement - \"&$G$12&\" - \"&$G$13","v":"Valeurs spécifiques à remplir selon le traitement - Inscrire une valeur - Inscrire une valeur"}]
["Taux variable - Déblaiement des résidus de coupe (Excavatrice ou débusqueuse ou abatteuse) et Scarifiage par monticule ou inversion par placeau ou décapage par placeau"]
["R","Superficie préparée",null,null,null,{"$f":"VLOOKUP($G$12,Menus!$A$4:$J$20,10,FALSE)","v":0}]
["TP","Type de couvert",null,null,{"$f":"IF($G$13=Menus!$D$6,Menus!$F$6,IF($G$13=Menus!$D$11,Menus!$F$11,\"\"))","v":""},{"$f":"IF($G$21=Menus!$B$65,Menus!$C$65,IF($G$21=Menus!$B$66,Menus!$C$66,IF($G$21=Menus!$B$67,Menus!$C$67,\"\")))","v":""}]
["TR","Type de procédé de récolte",null,null,{"$f":"IF($G$22=Menus!$B$68,Menus!$D$68,IF($G$22=Menus!$B$69,Menus!$D$69,IF($G$22=Menus!$B$70,Menus!$D$70,IF($G$22=Menus!$B$71,Menus!$D$71,\"\"))))","v":""},{"$f":"IF($G$22=Menus!$B$68,Menus!$C$68,IF($G$22=Menus!$B$69,Menus!$C$69,IF($G$22=Menus!$B$70,Menus!$C$70,IF($G$22=Menus!$B$71,Menus!$C$71,\"\"))))","v":""}]
["PER","Type de perturbation",null,null,null,{"$f":"IF($G$23=Menus!$B$72,Menus!$C$72,IF($G$23=Menus!$B$73,Menus!$C$73,\"\"))","v":""}]
["VEH","Type d'engin forestier",null,null,{"$f":"IF($G$13=Menus!$D$6,Menus!$G$6,IF($G$13=Menus!$D$11,Menus!$G$11,\"\"))","v":""},{"$f":"IF($G$24=Menus!$B$74,Menus!$C$74,IF($G$24=Menus!$B$75,Menus!$C$75,IF($G$24=Menus!$B$76,Menus!$C$76,\"\")))","v":""}]
["Valeur","VEH utilisée dans la formule",null,null,{"$f":"IF($G$21=Menus!$B$65,Menus!$D$65,IF($G$21=Menus!$B$66,Menus!$D$66,IF($G$21=Menus!$B$67,Menus!$D$67,\"\")))","v":""},{"$f":"IFERROR((IF($F$24=\"\",\"\",IF($F$24=3,0.33,IF($F$24=2,1,(1/(1.4063*POWER($G$20,0.069))*0.85))))),\"\")","v":""}]
["Taux calculé à partir de l'équation et des variables reliées au traitement",null,null,null,null,null,{"$f":"IFERROR(IF($G$20=\"\",0,IF(ISNUMBER($G$20)=FALSE,\"Valeur R non valide\",IF(AND((ROUND($G$20,2)=$G$20),$G$20>=0.01,$G$20<=1),((('Calculs grille'!$M$17*'Préparation de terrain'!$G$20)/EXP(1.683*'Préparation de terrain'!$G$20-0.299*'Préparation de terrain'!$F$21-0.313*'Préparation de terrain'!$F$22+0.17*'Préparation de terrain'!$F$23+2.014))*'Préparation de terrain'!$F$25),\"Valeur R non valide\"))),0)","v":0}]
[{"$f":"\"Majorations et/ou réduction applicables à l'exécution - \"&$G$12&\" - \"&$G$13&\" - Voir l'onglet « Étapes calcul majoration »\"","v":"Majorations et/ou réduction applicables à l'exécution - Inscrire une valeur - Inscrire une valeur - Voir l'onglet « Étapes calcul majoration »"}]
[{"$f":"IF($G$13='Majorations applicables'!$C$2,'Majorations applicables'!$K$2,IF($G$13='Majorations applicables'!$C$3,'Majorations applicables'!$K$3,IF($G$13='Majorations applicables'!$C$4,'Majorations applicables'!$K$4,IF($G$13='Majorations applicables'!$C$5,'Majorations applicables'!$K$5,IF($G$13='Majorations applicables'!$C$6,'Majorations applicables'!$K$6,IF($G$13='Majorations applicables'!$C$7,'Majorations applicables'!$K$7,IF($G$13='Majorations applicables'!$C$8,'Majorations applicables'!$K$8,IF($G$13='Majorations applicables'!$C$9,'Majorations applicables'!$K$9,IF($G$13='Majorations applicables'!$C$10,'Majorations applicables'!$K$10,IF($G$13='Majorations applicables'!$C$11,'Majorations applicables'!$K$11,IF($G$12='Majorations applicables'!$C$12,'Majorations applicables'!$K$12,IF($G$13='Majorations applicables'!$C$13,'Majorations applicables'!$K$13,IF($G$13='Majorations applicables'!$C$14,'Majorations applicables'!$K$14,IF($G$13='Majorations applicables'!$C$15,'Majorations applicables'!$K$15,IF($G$13='Majorations applicables'!$C$16,'Majorations applicables'!$K$16,IF($G$13='Majorations applicables'!$C$17,'Majorations applicables'!$K$17,\"\"))))))))))))))))","v":""}]
["Majoration pour la distance entre les passages de l'engin forestier (PA0)"]
["Majoration pour la distance entre les passages de l'engin forestier (PA0) - Disque-Bracke-Wadell"]
["Distance entre les passages de l'engin forestier « DP » (Valeur de 3,50 m à 5,00 m inclusivement)"]
["Nombre de microsite par hectare désiré calculé à partir d'une valeur standard de distance entre les passages de l'engin forestier",null,null,null,null,null,{"$f":"IFERROR((IF($G$31=\"\",\"\",IF('Préparation de terrain'!$G$31=Menus!A24,Menus!$B$24,IF('Préparation de terrain'!$G$31=Menus!$A$25,Menus!$B$25,IF('Préparation de terrain'!$G$31=Menus!$A$26,Menus!$B$26,IF('Préparation de terrain'!$G$31=Menus!$A$27,Menus!$B$27,\"La valeur de distance entre les passages est différente des valeurs standards (classes de 50 cm), calcul à titre indicatif seulement : « \"&ROUND(10000/$G$31,0)& \" » microsites par hectare\")))))),\"\")","v":""}]
[{"$f":"IF($G$31=\"\",\"Majoration du taux d'exécution de base calculé à partir de la valeur inscrite de distance entre les passages de l'engin forestier\",IF(ROUND($G$31,2)<>$G$31,\"Majoration du taux d'exécution de base calculé à partir de la valeur inscrite de distance entre les passages de l'engin forestier - Valeur « Distance entre les passages » non valide\",IF(AND($G$31>=3.5,$G$31<=5),\"Majoration du taux d'exécution de base calculé à partir de la valeur inscrite de distance entre les passages de l'engin forestier selon la formule suivante : \"&Menus!$B$31,\"Majoration du taux d'exécution de base calculé à partir de la valeur inscrite de distance entre les passages de l'engin forestier - Valeur « Distance entre les passages » non valide\")))","v":"Majoration du taux d'exécution de base calculé à partir de la valeur inscrite de distance entre les passages de l'engin forestier"},null,null,null,null,null,{"$f":"IF($G$31=\"\",\"\",IF(ROUND($G$31,2)<>$G$31,\"Valeur « Distance entre les passages » non valide\",IF(AND($G$31>=Menus!$A$24,$G$31<=Menus!$A$27),ROUND(Menus!$B$29*EXP(Menus!$B$30*ROUND('Préparation de terrain'!$G$31,2)),4),\"Valeur « Distance entre les passages » non valide\")))","v":""}]
["Majoration pour la pente (PE1)"]
["Majoration pour la pente (PE1) - Disque-Bracke-Wadell-M36"]
["Classe de pente\nnumérique",null,"Taux calculé",null,"Écart",null,"Superficie (ha)"]
["Pente A",null,{"$f":"IFERROR($G$14*(1+VLOOKUP($A$37,'Majorations applicables'!$A$42:$B$46,2,FALSE)),0)","v":0},null,{"$f":"IFERROR($C$37-$G$14,0)","v":0}]
["Pente B",null,{"$f":"IFERROR($G$14*(1+VLOOKUP($A$38,'Majorations applicables'!$A$42:$B$46,2,FALSE)),0)","v":0},null,{"$f":"IFERROR($C$38-$G$14,0)","v":0}]
["Pente C",null,{"$f":"IFERROR($G$14*(1+VLOOKUP($A$39,'Majorations applicables'!$A$42:$B$46,2,FALSE)),0)","v":0},null,{"$f":"IFERROR($C$39-$G$14,0)","v":0}]
["Pente D",null,{"$f":"IFERROR($G$14*(1+VLOOKUP($A$40,'Majorations applicables'!$A$42:$B$46,2,FALSE)),0)","v":0},null,{"$f":"IFERROR($C$40-$G$14,0)","v":0}]
["Pente E et plus",null,{"$f":"IFERROR($G$14*(1+VLOOKUP($A$41,'Majorations applicables'!$A$42:$B$46,2,FALSE)),0)","v":0},null,{"$f":"IFERROR($C$41-$G$14,0)","v":0}]
["Total",null,null,null,null,null,{"$f":"IFERROR(SUM($G$37:$G$41),0)","v":0}]
["Majoration pour la pente (PE2)"]
["Majoration pour la pente (PE2) - Abatteuse-Rouleau et Fertilisation PEH"]
["Classe de pente numérique",null,"Taux calculé",null,"Écart",null,"Superficie (ha)"]
["Pente A",null,{"$f":"IFERROR($G$14*(1+VLOOKUP($A$46,'Majorations applicables'!$A$49:$B$53,2,FALSE)),0)","v":0},null,{"$f":"IFERROR($C$46-$G$14,0)","v":0}]
["Pente B",null,{"$f":"IFERROR($G$14*(1+VLOOKUP($A$47,'Majorations applicables'!$A$49:$B$53,2,FALSE)),0)","v":0},null,{"$f":"IFERROR($C$47-$G$14,0)","v":0}]
["Pente C",null,{"$f":"IFERROR($G$14*(1+VLOOKUP($A$48,'Majorations applicables'!$A$49:$B$53,2,FALSE)),0)","v":0},null,{"$f":"IFERROR($C$48-$G$14,0)","v":0}]
["Pente D",null,{"$f":"IFERROR($G$14*(1+VLOOKUP($A$49,'Majorations applicables'!$A$49:$B$53,2,FALSE)),0)","v":0},null,{"$f":"IFERROR($C$49-$G$14,0)","v":0}]
["Pente E et plus",null,{"$f":"IFERROR($G$14*(1+VLOOKUP($A$50,'Majorations applicables'!$A$49:$B$53,2,FALSE)),0)","v":0},null,{"$f":"IFERROR($C$50-$G$14,0)","v":0}]
["Total",null,null,null,null,null,{"$f":"IFERROR(SUM($G$46:$G$50),0)","v":0}]
["Majoration pour la pente (PE4)"]
["Majoration pour la pente (PE4) - Bouteur"]
["Classe de pente numérique",null,"Taux calculé",null,"Écart",null,"Superficie (ha)"]
["Pente A",null,{"$f":"IFERROR($G$14*(1+VLOOKUP($A$55,'Majorations applicables'!$A$63:$B$67,2,FALSE)),0)","v":0},null,{"$f":"IFERROR($C$55-$G$14,0)","v":0}]
["Pente B",null,{"$f":"IFERROR($G$14*(1+VLOOKUP($A$56,'Majorations applicables'!$A$63:$B$67,2,FALSE)),0)","v":0},null,{"$f":"IFERROR($C$56-$G$14,0)","v":0}]
["Pente C",null,{"$f":"IFERROR($G$14*(1+VLOOKUP($A$57,'Majorations applicables'!$A$63:$B$67,2,FALSE)),0)","v":0},null,{"$f":"IFERROR($C$57-$G$14,0)","v":0}]
["Pente D",null,{"$f":"IFERROR($G$14*(1+VLOOKUP($A$58,'Majorations applicables'!$A$63:$B$67,2,FALSE)),0)","v":0},null,{"$f":"IFERROR($C$58-$G$14,0)","v":0}]
["Pente E et plus",null,{"$f":"IFERROR($G$14*(1+VLOOKUP($A$59,'Majorations applicables'!$A$63:$B$67,2,FALSE)),0)","v":0},null,{"$f":"IFERROR($C$59-$G$14,0)","v":0}]
["Total",null,null,null,null,null,{"$f":"IFERROR(SUM($G$55:$G$59),0)","v":0}]
["Majoration pour le nombre de passage et la pente (PA1 et PE1)"]
["Majoration pour le nombre de passage et la pente (PA1 et PE1) - Disque-Bracke-Wadell"]
["Superficie  (hectares)"]
["Classe de pente numérique",null,null,"Simple passage ","Double passage","Triple passage","Total"]
["Pente A",null,null,null,null,null,{"$f":"SUM($D$65:$F$65)","v":0}]
["Pente B",null,null,null,null,null,{"$f":"SUM($D$66:$F$66)","v":0}]
["Pente C",null,null,null,null,null,{"$f":"SUM($D$67:$F$67)","v":0}]
["Pente D",null,null,null,null,null,{"$f":"SUM($D$68:$F$68)","v":0}]
["Pente E et plus",null,null,null,null,null,{"$f":"SUM($D$69:$F$69)","v":0}]
["Total",null,null,{"$f":"IFERROR(SUM($D$65:$D$69),0)","v":0},{"$f":"IFERROR(SUM($E$65:$E$69),0)","v":0},{"$f":"IFERROR(SUM($F$65:$F$69),0)","v":0},{"$f":"IFERROR(SUM($G$65:$G$69),0)","v":0}]
["Taux calculé ($/hectare)"]
["Nombre de passage",null,1,null,2,null,3]
["Pente A",null,{"$f":"IFERROR(SUM($G$146:$G$147)*(1+VLOOKUP($A$73,'Majorations applicables'!$A$42:$B$46,2,FALSE)),0)","v":0},null,{"$f":"IFERROR(SUM($G$146:$G$147)*(1+VLOOKUP($A$73,'Majorations applicables'!$A$42:$B$46,2,FALSE))+SUM($G$146:$G$147)*(1+VLOOKUP($A$73,'Majorations applicables'!$A$42:$B$46,2,FALSE))*'Majorations applicables'!$A$36,0)","v":0},null,{"$f":"IFERROR(SUM($G$146:$G$147)*(1+VLOOKUP($A$73,'Majorations applicables'!$A$42:$B$46,2,FALSE))+SUM($G$146:$G$147)*(1+VLOOKUP($A$73,'Majorations applicables'!$A$42:$B$46,2,FALSE))*'Majorations applicables'!$A$36+SUM($G$146:$G$147)*(1+VLOOKUP($A$73,'Majorations applicables'!$A$42:$B$46,2,FALSE))*POWER('Majorations applicables'!$A$36,2),0)","v":0}]
["Pente B",null,{"$f":"IFERROR(SUM($G$146:$G$147)*(1+VLOOKUP($A$74,'Majorations applicables'!$A$42:$B$46,2,FALSE)),0)","v":0},null,{"$f":"IFERROR(SUM($G$146:$G$147)*(1+VLOOKUP($A$74,'Majorations applicables'!$A$42:$B$46,2,FALSE))+SUM($G$146:$G$147)*(1+VLOOKUP($A$74,'Majorations applicables'!$A$42:$B$46,2,FALSE))*'Majorations applicables'!$A$36,0)","v":0},null,{"$f":"IFERROR(SUM($G$146:$G$147)*(1+VLOOKUP($A$74,'Majorations applicables'!$A$42:$B$46,2,FALSE))+SUM($G$146:$G$147)*(1+VLOOKUP($A$74,'Majorations applicables'!$A$42:$B$46,2,FALSE))*'Majorations applicables'!$A$36+SUM($G$146:$G$147)*(1+VLOOKUP($A$74,'Majorations applicables'!$A$42:$B$46,2,FALSE))*POWER('Majorations applicables'!$A$36,2),0)","v":0}]
["Pente C",null,{"$f":"IFERROR(SUM($G$146:$G$147)*(1+VLOOKUP($A$75,'Majorations applicables'!$A$42:$B$46,2,FALSE)),0)","v":0},null,{"$f":"IFERROR(SUM($G$146:$G$147)*(1+VLOOKUP($A$75,'Majorations applicables'!$A$42:$B$46,2,FALSE))+SUM($G$146:$G$147)*(1+VLOOKUP($A$75,'Majorations applicables'!$A$42:$B$46,2,FALSE))*'Majorations applicables'!$A$36,0)","v":0},null,{"$f":"IFERROR(SUM($G$146:$G$147)*(1+VLOOKUP($A$75,'Majorations applicables'!$A$42:$B$46,2,FALSE))+SUM($G$146:$G$147)*(1+VLOOKUP($A$75,'Majorations applicables'!$A$42:$B$46,2,FALSE))*'Majorations applicables'!$A$36+SUM($G$146:$G$147)*(1+VLOOKUP($A$75,'Majorations applicables'!$A$42:$B$46,2,FALSE))*POWER('Majorations applicables'!$A$36,2),0)","v":0}]
["Pente D",null,{"$f":"IFERROR(SUM($G$146:$G$147)*(1+VLOOKUP($A$76,'Majorations applicables'!$A$42:$B$46,2,FALSE)),0)","v":0},null,{"$f":"IFERROR(SUM($G$146:$G$147)*(1+VLOOKUP($A$76,'Majorations applicables'!$A$42:$B$46,2,FALSE))+SUM($G$146:$G$147)*(1+VLOOKUP($A$76,'Majorations applicables'!$A$42:$B$46,2,FALSE))*'Majorations applicables'!$A$36,0)","v":0},null,{"$f":"IFERROR(SUM($G$146:$G$147)*(1+VLOOKUP($A$76,'Majorations applicables'!$A$42:$B$46,2,FALSE))+SUM($G$146:$G$147)*(1+VLOOKUP($A$76,'Majorations applicables'!$A$42:$B$46,2,FALSE))*'Majorations applicables'!$A$36+SUM($G$146:$G$147)*(1+VLOOKUP($A$76,'Majorations applicables'!$A$42:$B$46,2,FALSE))*POWER('Majorations applicables'!$A$36,2),0)","v":0}]
["Pente E et plus",null,{"$f":"SUM($G$146:$G$147)*(1+VLOOKUP($A$77,'Majorations applicables'!$A$42:$B$46,2,FALSE))","v":0},null,{"$f":"IFERROR(SUM($G$146:$G$147)*(1+VLOOKUP($A$77,'Majorations applicables'!$A$42:$B$46,2,FALSE))+SUM($G$146:$G$147)*(1+VLOOKUP($A$77,'Majorations applicables'!$A$42:$B$46,2,FALSE))*'Majorations applicables'!$A$36,0)","v":0},null,{"$f":"IFERROR(SUM($G$146:$G$147)*(1+VLOOKUP($A$77,'Majorations applicables'!$A$42:$B$46,2,FALSE))+SUM($G$146:$G$147)*(1+VLOOKUP($A$77,'Majorations applicables'!$A$42:$B$46,2,FALSE))*'Majorations applicables'!$A$36+SUM($G$146:$G$147)*(1+VLOOKUP($A$77,'Majorations applicables'!$A$42:$B$46,2,FALSE))*POWER('Majorations applicables'!$A$36,2),0)","v":0}]
["Majoration pour le nombre de passage et la pente (PA2 et PE2)"]
["Majoration pour le nombre de passage et la pente (PA2 et PE2) - Herse"]
["Superficie (hectares)"]
["Classe de pente numérique",null,null,"Simple passage ","Double passage","Triple passage","Total"]
["Pente A",null,null,null,null,null,{"$f":"SUM($D$82:$F$82)","v":0}]
["Pente B",null,null,null,null,null,{"$f":"SUM($D$83:$F$83)","v":0}]
["Pente C",null,null,null,null,null,{"$f":"SUM($D$84:$F$84)","v":0}]
["Pente D",null,null,null,null,null,{"$f":"SUM($D$85:$F$85)","v":0}]
["Pente E et plus",null,null,null,null,null,{"$f":"SUM($D$86:$F$86)","v":0}]
["Total",null,null,{"$f":"IFERROR(SUM($D$82:$D$86),0)","v":0},{"$f":"IFERROR(SUM($E$82:$E$86),0)","v":0},{"$f":"IFERROR(SUM($F$82:$F$86),0)","v":0},{"$f":"IFERROR(SUM($G$82:$G$86),0)","v":0}]
["Taux calculé ($/hectare)"]
["Nombre de passage",null,1,null,2,null,3]
["Pente A",null,{"$f":"IFERROR($G$14*(1+VLOOKUP($A$90,'Majorations applicables'!$A$49:$B$53,2,FALSE)),0)","v":0},null,{"$f":"IFERROR($G$14*(1+VLOOKUP($A$90,'Majorations applicables'!$A$49:$B$53,2,FALSE))+$G$14*'Majorations applicables'!$A$39,0)","v":0},null,{"$f":"IFERROR($G$14*(1+VLOOKUP($A$90,'Majorations applicables'!$A$49:$B$53,2,FALSE))+$G$14*(1+VLOOKUP($A$90,'Majorations applicables'!$A$49:$B$53,2,FALSE))*'Majorations applicables'!$A$39+$G$14*(1+VLOOKUP($A$90,'Majorations applicables'!$A$49:$B$53,2,FALSE))*POWER('Majorations applicables'!$A$39,2),0)","v":0}]
["Pente B",null,{"$f":"IFERROR($G$14*(1+VLOOKUP($A$91,'Majorations applicables'!$A$49:$B$53,2,FALSE)),0)","v":0},null,{"$f":"IFERROR($G$14*(1+VLOOKUP($A$91,'Majorations applicables'!$A$49:$B$53,2,FALSE))+$G$14*'Majorations applicables'!$A$39,0)","v":0},null,{"$f":"IFERROR($G$14*(1+VLOOKUP($A$91,'Majorations applicables'!$A$49:$B$53,2,FALSE))+$G$14*(1+VLOOKUP($A$91,'Majorations applicables'!$A$49:$B$53,2,FALSE))*'Majorations applicables'!$A$39+$G$14*(1+VLOOKUP($A$91,'Majorations applicables'!$A$49:$B$53,2,FALSE))*POWER('Majorations applicables'!$A$39,2),0)","v":0}]
["Pente C",null,{"$f":"IFERROR($G$14*(1+VLOOKUP($A$92,'Majorations applicables'!$A$49:$B$53,2,FALSE)),0)","v":0},null,{"$f":"IFERROR($G$14*(1+VLOOKUP($A$92,'Majorations applicables'!$A$49:$B$53,2,FALSE))+$G$14*(1+VLOOKUP($A$92,'Majorations applicables'!$A$49:$B$53,2,FALSE))*'Majorations applicables'!$A$39,0)","v":0},null,{"$f":"IFERROR($G$14*(1+VLOOKUP($A$92,'Majorations applicables'!$A$49:$B$53,2,FALSE))+$G$14*(1+VLOOKUP($A$92,'Majorations applicables'!$A$49:$B$53,2,FALSE))*'Majorations applicables'!$A$39+$G$14*(1+VLOOKUP($A$92,'Majorations applicables'!$A$49:$B$53,2,FALSE))*POWER('Majorations applicables'!$A$39,2),0)","v":0}]
["Pente D",null,{"$f":"IFERROR($G$14*(1+VLOOKUP($A$93,'Majorations applicables'!$A$49:$B$53,2,FALSE)),0)","v":0},null,{"$f":"IFERROR($G$14*(1+VLOOKUP($A$93,'Majorations applicables'!$A$49:$B$53,2,FALSE))+$G$14*(1+VLOOKUP($A$93,'Majorations applicables'!$A$49:$B$53,2,FALSE))*'Majorations applicables'!$A$39,0)","v":0},null,{"$f":"IFERROR($G$14*(1+VLOOKUP($A$93,'Majorations applicables'!$A$49:$B$53,2,FALSE))+$G$14*(1+VLOOKUP($A$93,'Majorations applicables'!$A$49:$B$53,2,FALSE))*'Majorations applicables'!$A$39+$G$14*(1+VLOOKUP($A$93,'Majorations applicables'!$A$49:$B$53,2,FALSE))*POWER('Majorations applicables'!$A$39,2),0)","v":0}]
["Pente E et plus",null,{"$f":"IFERROR($G$14*(1+VLOOKUP($A$94,'Majorations applicables'!$A$49:$B$53,2,FALSE)),0)","v":0},null,{"$f":"IFERROR($G$14*(1+VLOOKUP($A$94,'Majorations applicables'!$A$49:$B$53,2,FALSE))+$G$14*(1+VLOOKUP($A$94,'Majorations applicables'!$A$49:$B$53,2,FALSE))*'Majorations applicables'!$A$39,0)","v":0},null,{"$f":"IFERROR($G$14*(1+VLOOKUP($A$94,'Majorations applicables'!$A$49:$B$53,2,FALSE))+$G$14*(1+VLOOKUP($A$94,'Majorations applicables'!$A$49:$B$53,2,FALSE))*'Majorations applicables'!$A$39+$G$14*(1+VLOOKUP($A$94,'Majorations applicables'!$A$49:$B$53,2,FALSE))*POWER('Majorations applicables'!$A$39,2),0)","v":0}]
[{"$f":"IFERROR(IF($G$24=\"\",\"Majoration pour la pente (PE2 ou PE3 selon le type d'équipement)\",IF($G$24<>Menus!$B$76,\"Majoration pour la pente (PE2)\",\"Majoration pour la pente (PE3)\")),\"Majoration pour la pente (PE2 ou PE3 selon le type d'équipement)\")","v":"Majoration pour la pente (PE2 ou PE3 selon le type d'équipement)"}]
["Majoration pour la pente (PE2 ou PE3 selon le type d'équipement) - Variable"]
["Classe de pente numérique",null,"Taux calculé",null,"Écart",null,"Superficie (hectare)"]
["Pente A",null,{"$f":"IFERROR(IF($F$24=1,$G$26*(1+VLOOKUP($A$98,'Majorations applicables'!$A$56:$B$60,2,FALSE)),$G$26*(1+VLOOKUP($A$98,'Majorations applicables'!$A$49:$B$53,2,FALSE))),0)","v":0},null,{"$f":"IFERROR($C$98-$G$26,0)","v":0}]
["Pente B",null,{"$f":"IFERROR(IF($F$24=1,$G$26*(1+VLOOKUP($A$99,'Majorations applicables'!$A$56:$B$60,2,FALSE)),$G$26*(1+VLOOKUP($A$99,'Majorations applicables'!$A$49:$B$53,2,FALSE))),0)","v":0},null,{"$f":"IFERROR($C$99-$G$26,0)","v":0}]
["Pente C",null,{"$f":"IFERROR(IF($F$24=1,$G$26*(1+VLOOKUP($A$100,'Majorations applicables'!$A$56:$B$60,2,FALSE)),$G$26*(1+VLOOKUP($A$100,'Majorations applicables'!$A$49:$B$53,2,FALSE))),0)","v":0},null,{"$f":"IFERROR($C$100-$G$26,0)","v":0}]
["Pente D",null,{"$f":"IFERROR(IF($F$24=1,$G$26*(1+VLOOKUP($A$101,'Majorations applicables'!$A$56:$B$60,2,FALSE)),$G$26*(1+VLOOKUP($A$101,'Majorations applicables'!$A$49:$B$53,2,FALSE))),0)","v":0},null,{"$f":"IFERROR($C$101-$G$26,0)","v":0}]
["Pente E et plus",null,{"$f":"IFERROR(IF($F$24=1,$G$26*(1+VLOOKUP($A$102,'Majorations applicables'!$A$56:$B$60,2,FALSE)),$G$26*(1+VLOOKUP($A$102,'Majorations applicables'!$A$49:$B$53,2,FALSE))),0)","v":0},null,{"$f":"IFERROR($C$102-$G$26,0)","v":0}]
["Total",null,null,null,null,null,{"$f":"IFERROR(SUM($G$98:$G$102),0)","v":0}]
[{"$f":"\"Unités de mesure pour le traitement \"&$D$13","v":"Unités de mesure pour le traitement "}]
["Unités de mesure pour le traitement - Drainage-Taupe"]
["Nombre de kilomètres ou de milliers de mètres cubes"]
["Nombre de milliers de microsites"]
["Majoration pour l'indice de dispersion (DRAP ou DMOD)"]
["Majoration pour l'indice de dispersion (DRAP ou DMOD) - Tous sauf Taupe et Drainage"]
["Unité d'aménagement (UA)",null,null,null,null,null,{"$f":"IF($G$5<>\"\",$G$5,\"\")","v":""}]
[{"$f":"IFERROR(IF(ISBLANK($G$13),\"Indice relatif de dispersion\",IF(OR(EXACT($G$13,Menus!$D$7),EXACT($G$13,Menus!$D$8),EXACT($G$13,Menus!$D$12),EXACT($G$13,Menus!$D$15),EXACT($G$13,Menus!$D$16),EXACT($G$13,Menus!$D$17),EXACT($G$13,Menus!$D$18),EXACT($G$13,Menus!$D$19)),\"Indice relatif de dispersion (DRAP)\",IF(OR(EXACT($G$13,Menus!$D$4),EXACT($G$13,Menus!$D$5),EXACT($G$13,Menus!$D$6),EXACT($G$13,Menus!$D$11)),\"Indice relatif de dispersion (DMOD)\"))),\"Indice relatif de dispersion\")","v":false},null,null,null,null,null,{"$f":"IFERROR(IF(ISBLANK($G$13),\"Inscrire une valeur à G5\",IF(OR(EXACT($G$13,Menus!$D$7),EXACT($G$13,Menus!$D$8),EXACT($G$13,Menus!$D$12),EXACT($G$13,Menus!$D$15),EXACT($G$13,Menus!$D$16),EXACT($G$13,Menus!$D$17),EXACT($G$13,Menus!$D$18),EXACT($G$13,Menus!$D$19)),VLOOKUP($G$110,'Dispersion 2020-2021'!$B$6:$F$64,2,FALSE),IF(OR(EXACT($G$13,Menus!$D$4),EXACT($G$13,Menus!$D$5),EXACT($G$13,Menus!$D$6),EXACT($G$13,Menus!$D$11)),VLOOKUP($G$110,'Dispersion 2020-2021'!$B$6:$F$64,3,FALSE)))),\"Inscrire une valeur à G5\")","v":false}]
["Dispersion (DRAP)",null,null,null,null,null,{"$f":"IFERROR(VLOOKUP($G$110,'Dispersion 2020-2021'!$B$6:$F$64,4,FALSE),0)","v":0}]
["Dispersion (DMOD)",null,null,null,null,null,{"$f":"IFERROR(VLOOKUP($G$110,'Dispersion 2020-2021'!$B$6:$F$64,5,FALSE),0)","v":0}]
["Majoration pour l'hébergement et la distance ou la durée du déplacement (HPT ou HRA et DTEXE)"]
["Majoration pour l'hébergement et la distance ou la durée du déplacement (HPT ou HRA et DTEXE) - HPT pour mécanisé et HRA et DTEXE pour manuel (Taupe et Fertilisation PEH)"]
[{"$f":"IFERROR(IF(OR(EXACT($G$13,Menus!$D$13),EXACT($G$13,Menus!$D$14)),\"Hébergement (HRA)\",\"Hébergement (HPT)\"),\"Hébergement\")","v":"Hébergement (HPT)"},null,null,null,{"$f":"IF(OR(EXACT($G$13,Menus!$D$13),EXACT($G$13,Menus!$D$14)),Menus!$B$38,Menus!$B$33)","v":"PRT_Majoration_HPT"},{"$f":"IF(OR(EXACT($G$13,Menus!$D$13),EXACT($G$13,Menus!$D$14)),IF($G$116=\"\",\"\",IF($G$116=Menus!$A$39,Menus!$B$39,IF($G$116=Menus!$A$40,Menus!$B$40,IF($G$116=Menus!$A$41,Menus!$B$41,IF($G$116<=Menus!$B$40,ROUND($G$116,4),\"Max \"&TEXT(Menus!$B$40,\"0,00%\")))))),IF($G$116=\"\",\"\",IF($G$116=Menus!$A$34,Menus!$B$34,IF($G$116=Menus!$A$35,Menus!$B$35,IF($G$116=Menus!$A$36,Menus!$B$36,IF($G$116<=Menus!$B$35,ROUND($G$116,4),\"Max \"&TEXT(Menus!$B$35,\"0,00%\")))))))","v":""}]
["Distance ou durée du déplacement (DTEXE)",null,null,null,null,{"$f":"IFERROR(VLOOKUP($G$117,Menus!$A$49:$B$51,2,FALSE),\"\")","v":""}]
["Majoration pour la certification (CEAF1 ou ISO1)"]
["Majoration pour la certification (CEAF1 ou ISO1) - Tous"]
["Certification (CEAF1 ou ISO1)",null,null,null,null,{"$f":"IF($G$120=Menus!$A$59,Menus!$B$59,IF($G$120=Menus!$A$60,Menus!$B$60,IF($G$120=Menus!$A$61,Menus!$B$61,\"\")))","v":""}]
["Vérification"]
["Vérification - Tous"]
[{"$f":"IF(EXACT(UPPER($G$17),UPPER(Menus!$A$88)),\"Délimitation des secteurs systématiquement inclue dans le taux de vérification\",IF(EXACT(UPPER($G$17),UPPER(Menus!$A$89)),\"Délimitation des secteurs (taux par kilomètre délimité par une tierce partie)\",\"Délimitation des secteurs - Inscrire une valeur à G17\"))","v":"Délimitation des secteurs - Inscrire une valeur à G17"}]
["Nombre de kilomètres délimités"]
["Vérification - Disque-Bracke-Wadell/M36/Variable/Herse/Bouteur/Abatteuse-Rouleau"]
["Inventaire après traitement (taux par placette inventoriée)"]
["Nombre de placettes inventoriées"]
["Critère 1","Coefficient de distribution des microsites propices ou des placeaux propices à l'ensemencement ",null,null,{"$f":"IFERROR(SUM($F$128:$F$133)*'Calculs grille'!$M$129,0)","v":0},{"$f":"IF($G$128=\"Oui\",1,IF($G$128=\"Non\",0,\"\"))","v":""}]
[null,"Coefficient de distribution des tiges naturelles complémentaires",null,null,null,{"$f":"IF($G$129=\"Oui\",1,IF($G$129=\"Non\",0,\"\"))","v":""}]
[null,"Espacement entre les sillons ou les passages",null,null,null,{"$f":"IF($G$130=\"Oui\",1,IF($G$130=\"Non\",0,\"\"))","v":""}]
[null,"Localisation des microsites propices",null,null,null,{"$f":"IF($G$131=\"Oui\",1,IF($G$131=\"Non\",0,\"\"))","v":""}]
[null,"Coefficient de distribution des microplacettes décapées sévèrement",null,null,null,{"$f":"IF($G$132=\"Oui\",1,IF($G$132=\"Non\",0,\"\"))","v":""}]
[null,"Type de plant",null,null,null,{"$f":"IF($G$133=\"Oui\",1,IF($G$133=\"Non\",0,\"\"))","v":""}]
["Critère 2","Nombre de microsites propices à la mise en terre incluant le coefficient de distribution ",null,null,{"$f":"IFERROR(SUM($F$134)*'Calculs grille'!$M$130,0)","v":0},{"$f":"IF($G$134=\"Oui\",1,IF($G$134=\"Non\",0,\"\"))","v":""}]
["Nombre total de critères",null,null,null,null,null,{"$f":"IFERROR(SUM($F$128:$F$134),0)","v":0}]
["Vérification - Drainage"]
["Inventaire après traitement (taux par kilomètre ou par millier de mètres cubes)"]
["Vérification - Taupe et Fertilisation PEH"]
["Inventaire après traitement (taux par placette inventoriée)"]
["Nombre de placettes inventoriées"]
["Vérification - Majoration pour l'hébergement et la distance ou la durée du déplacement (HPVTM et DTPVTM)"]
["Hébergement (HPVTM)",null,null,null,null,{"$f":"IF($G$142=\"\",\"\",IF($G$142=Menus!$A$44,Menus!$B$44,IF($G$142=Menus!$A$45,Menus!$B$45,IF($G$142=Menus!$A$46,Menus!$B$46,IF($G$142<=Menus!$B$45,ROUND($G$142,4),\"Max \"&TEXT(Menus!B45,\"0,00%\"))))))","v":""}]
["Distance ou durée du déplacement (DTPVTM)",null,null,null,null,{"$f":"IFERROR(VLOOKUP($G$143,Menus!$A$54:$B$56,2,FALSE),\"\")","v":""}]
["Totaux"]
["Calculs - Disque-Bracke-Wadell"]
["Taux d'exécution de base",null,null,null,null,null,{"$f":"IFERROR(IF($G$14=\"\",0,IF($G$33=\"Valeur « Distance entre les passages » non valide\",\"Valeur « Distance entre les passages » non valide\",$G$14)),0)","v":0}]
["Taux PA0",null,null,null,null,null,{"$f":"IFERROR(IF($G$31=\"\",0,-($G$14*(1-$G$33))),0)","v":0}]
["Taux PA1 et PE1",null,null,null,null,null,{"$f":"IFERROR(((SUMPRODUCT($C$73:$C$77,$D$65:$D$69)+SUMPRODUCT($E$73:$E$77,$E$65:$E$69)+SUMPRODUCT($G$73:$G$77,$F$65:$F$69))/$G$70)-($G$146+$G$147),0)","v":0}]
["Taux sous-total exécution",null,null,null,null,null,{"$f":"IFERROR(SUM($G$146:$G$148),0)","v":0}]
["Taux DRAP",null,null,null,null,null,{"$f":"IFERROR(($G$149*$G$112),0)","v":0}]
["Taux HPT",null,null,null,null,null,{"$f":"IFERROR((SUM($G$149:$G$150)*$F$116),0)","v":0}]
["Taux CEAF1 ou ISO1",null,null,null,null,null,{"$f":"IFERROR((SUM($G$149:$G$151)*$F$120),0)","v":0}]
["Taux exécution total et majorations et réduction admissibles",null,null,null,null,null,{"$f":"IFERROR(ROUND(SUM($G$149:$G$152),2),0)","v":0}]
[{"$f":"IFERROR(IF(EXACT(UPPER($G$17),UPPER(Menus!$A$88)),\"Taux de vérification (incluant le paiement pour la délimitation des secteurs en régie)\",\"Taux de vérification\"),\"Taux de vérification\")","v":"Taux de vérification"},null,null,null,null,null,{"$f":"IFERROR(IF(EXACT($G$123,PRT_Delimitation_des_secteurs_en_regie)=FALSE,(($G$123*$G$124)+($G$126*$G$127)+SUM($F$128:$F$133)*'Calculs grille'!$M$129*$G$127+SUM($F$134)*'Calculs grille'!$M$130*$G$127)/$G$157,(((Menus!$A$97*$G$157)+(G$126*$G$127)+SUM($F$128:$F$133)*'Calculs grille'!$M$129*$G$127+SUM($F$134)*'Calculs grille'!$M$130*$G$127)/$G$157)),0)","v":0}]
["Taux HPVTM et/ou DTPVTM",null,null,null,null,null,{"$f":"IFERROR((SUM($F$142:$F$143)*$G$154),0)","v":0}]
["Taux exécution et vérification total",null,null,null,null,null,{"$f":"IFERROR(ROUND(SUM($G$153:$G$155),2),0)","v":0}]
["Superficie",null,null,null,null,null,{"$f":"IFERROR(ROUND($G$70,2),0)","v":0}]
["Total exécution",null,null,null,null,null,{"$f":"IFERROR(ROUND($G$153*$G$157,2),0)","v":0}]
["Total vérification",null,null,null,null,null,{"$f":"IFERROR(ROUND(SUM($G$154:$G$155)*$G$157,2),0)","v":0}]
["Grand total admissible",null,null,null,null,null,{"$f":"IFERROR(SUM($G$158:$G$159),0)","v":0}]
["Calculs - M36"]
["Taux d'exécution de base",null,null,null,null,null,{"$f":"IFERROR(IF($G$14=\"\",0,$G$14),0)","v":0}]
["Taux PE1",null,null,null,null,null,{"$f":"IFERROR((SUMPRODUCT($E$37:$E$41,$G$37:$G$41)/$G$42),0)","v":0}]
["Taux sous-total exécution",null,null,null,null,null,{"$f":"IFERROR(SUM($G$162:$G$163),0)","v":0}]
["Taux DRAP",null,null,null,null,null,{"$f":"IFERROR(($G$164*$G$112),0)","v":0}]
["Taux HPT",null,null,null,null,null,{"$f":"IFERROR((SUM($G$164:$G$165)*$F$116),0)","v":0}]
["Taux CEAF1 ou ISO1",null,null,null,null,null,{"$f":"IFERROR((SUM($G$164:$G$166)*$F$120),0)","v":0}]
["Taux exécution total et majoration(s) admissible(s)",null,null,null,null,null,{"$f":"IFERROR(ROUND(SUM($G$164:$G$167),2),0)","v":0}]
[{"$f":"IFERROR(IF(EXACT(UPPER($G$17),UPPER(Menus!$A$88)),\"Taux de vérification (incluant le paiement pour la délimitation des secteurs en régie)\",\"Taux de vérification\"),\"Taux de vérification\")","v":"Taux de vérification"},null,null,null,null,null,{"$f":"IFERROR(IF(EXACT($G$123,PRT_Delimitation_des_secteurs_en_regie)=FALSE,(($G$123*$G$124)+($G$126*$G$127)+SUM($F$128:$F$133)*'Calculs grille'!$M$129*$G$127+SUM($F$134)*'Calculs grille'!$M$130*$G$127)/$G$172,(((Menus!$A$97*$G$172)+($G$126*$G$127)+SUM($F$128:$F$133)*'Calculs grille'!$M$129*$G$127+SUM($F$134)*'Calculs grille'!$M$130*$G$127)/$G$172)),0)","v":0}]
["Taux HPVTM et/ou DTPVTM",null,null,null,null,null,{"$f":"IFERROR((SUM($F$142:$F$143)*$G$169),0)","v":0}]
["Taux exécution et vérification total",null,null,null,null,null,{"$f":"IFERROR(ROUND(SUM($G$168:$G$170),2),0)","v":0}]
["Superficie",null,null,null,null,null,{"$f":"IFERROR(ROUND($G$42,2),0)","v":0}]
["Total exécution",null,null,null,null,null,{"$f":"IFERROR(ROUND($G$168*$G$172,2),0)","v":0}]
["Total vérification",null,null,null,null,null,{"$f":"IFERROR(ROUND(SUM($G$169:$G$170)*$G$172,2),0)","v":0}]
["Grand total admissible",null,null,null,null,null,{"$f":"IFERROR(SUM($G$173:$G$174),0)","v":0}]
["Calculs - Herse"]
["Taux d'exécution de base",null,null,null,null,null,{"$f":"IFERROR(IF($G$14=\"\",0,$G$14),0)","v":0}]
["Taux PA2 et PE2",null,null,null,null,null,{"$f":"IFERROR(((SUMPRODUCT($C$90:$C$94,$D$82:$D$86)+SUMPRODUCT($E$90:$E$94,$E$82:$E$86)+SUMPRODUCT($G$90:$G$94,$F$82:$F$86))/$G$87)-($G$177),0)","v":0}]
["Taux sous-total exécution",null,null,null,null,null,{"$f":"IFERROR(SUM($G$177:$G$178),0)","v":0}]
["Taux DRAP",null,null,null,null,null,{"$f":"IFERROR(($G$179*$G$112),0)","v":0}]
["Taux HPT",null,null,null,null,null,{"$f":"IFERROR((SUM($G$179:$G$180)*$F$116),0)","v":0}]
["Taux CEAF1 ou ISO1",null,null,null,null,null,{"$f":"IFERROR((SUM($G$179:$G$181)*$F$120),0)","v":0}]
["Taux exécution total et majoration(s) admissible(s)",null,null,null,null,null,{"$f":"IFERROR((ROUND(SUM($G$179:$G$182),2)),0)","v":0}]
[{"$f":"IFERROR(IF(EXACT(UPPER($G$17),UPPER(Menus!$A$88)),\"Taux de vérification (incluant le paiement pour la délimitation des secteurs en régie)\",\"Taux de vérification\"),\"Taux de vérification\")","v":"Taux de vérification"},null,null,null,null,null,{"$f":"IFERROR(IF(EXACT($G$123,PRT_Delimitation_des_secteurs_en_regie)=FALSE,(($G$123*$G$124)+($G$126*$G$127)+SUM($F$128:$F$133)*'Calculs grille'!$M$129*$G$127+SUM($F$134)*'Calculs grille'!$M$130*$G$127)/$G$187,(((Menus!$A$97*$G$187)+($G$126*$G$127)+SUM($F$128:$F$133)*'Calculs grille'!$M$129*$G$127+SUM($F$134)*'Calculs grille'!$M$130*$G$127)/$G$187)),0)","v":0}]
["Taux HPVTM et/ou DTPVTM",null,null,null,null,null,{"$f":"IFERROR((SUM($F$142:$F$143)*$G$184),0)","v":0}]
["Taux exécution et vérification total",null,null,null,null,null,{"$f":"IFERROR((ROUND(SUM($G$183:$G$185),2)),0)","v":0}]
["Superficie",null,null,null,null,null,{"$f":"IFERROR(ROUND($G$87,2),0)","v":0}]
["Total exécution",null,null,null,null,null,{"$f":"IFERROR(ROUND($G$183*$G$187,2),0)","v":0}]
["Total vérification",null,null,null,null,null,{"$f":"IFERROR(ROUND(SUM($G$184:$G$185)*$G$187,2),0)","v":0}]
["Grand total admissible",null,null,null,null,null,{"$f":"IFERROR(SUM($G$188:$G$189),0)","v":0}]
["Calculs - Bouteur"]
["Taux d'exécution de base",null,null,null,null,null,{"$f":"IFERROR(IF($G$14=\"\",0,$G$14),0)","v":0}]
["Taux PE4",null,null,null,null,null,{"$f":"IFERROR((SUMPRODUCT($E$55:$E$59,$G$55:$G$59)/$G$60),0)","v":0}]
["Taux sous-total exécution",null,null,null,null,null,{"$f":"IFERROR(SUM($G$192:$G$193),0)","v":0}]
["Taux DMOD",null,null,null,null,null,{"$f":"IFERROR(($G$194*$G$113),0)","v":0}]
["Taux HPT",null,null,null,null,null,{"$f":"IFERROR((SUM($G$194:$G$195)*$F$116),0)","v":0}]
["Taux CEAF1 ou ISO1",null,null,null,null,null,{"$f":"IFERROR((SUM($G$194:$G$196)*$F$120),0)","v":0}]
["Taux exécution total  et majoration(s) admissible(s)",null,null,null,null,null,{"$f":"IFERROR((ROUND(SUM($G$194:$G$197),2)),0)","v":0}]
[{"$f":"IFERROR(IF(EXACT(UPPER($G$17),UPPER(Menus!$A$88)),\"Taux de vérification (incluant le paiement pour la délimitation des secteurs en régie)\",\"Taux de vérification\"),\"Taux de vérification\")","v":"Taux de vérification"},null,null,null,null,null,{"$f":"IFERROR(IF(EXACT($G$123,PRT_Delimitation_des_secteurs_en_regie)=FALSE,(($G$123*$G$124)+($G$126*$G$127)+SUM($F$128:$F$133)*'Calculs grille'!$M$129*$G$127+SUM($F$134)*'Calculs grille'!$M$130*$G$127)/$G$202,(((Menus!$A$97*$G$202)+($G$126*$G$127)+SUM($F$128:$F$133)*'Calculs grille'!$M$129*$G$127+SUM($F$134)*'Calculs grille'!$M$130*$G$127)/$G$202)),0)","v":0}]
["Taux HPVTM et/ou DTPVTM",null,null,null,null,null,{"$f":"IFERROR((SUM($F$142:$F$143)*$G$199),0)","v":0}]
["Taux exécution et vérification total",null,null,null,null,null,{"$f":"IFERROR((ROUND(SUM($G$198:$G$200),2)),0)","v":0}]
["Superficie",null,null,null,null,null,{"$f":"IFERROR(ROUND($G$60,2),0)","v":0}]
["Total exécution",null,null,null,null,null,{"$f":"IFERROR(ROUND($G$198*$G$202,2),0)","v":0}]
["Total vérification",null,null,null,null,null,{"$f":"IFERROR(ROUND(SUM($G$199:$G$200)*$G$202,2),0)","v":0}]
["Grand total admissible",null,null,null,null,null,{"$f":"IFERROR(SUM($G$203:$G$204),0)","v":0}]
["Calculs - Abatteuse/Rouleau"]
["Taux d'exécution de base",null,null,null,null,null,{"$f":"IFERROR(IF($G$14=\"\",0,$G$14),0)","v":0}]
["Taux PE2",null,null,null,null,null,{"$f":"IFERROR((SUMPRODUCT($E$46:$E$50,$G$46:$G$50)/$G$51),0)","v":0}]
["Taux sous-total exécution",null,null,null,null,null,{"$f":"IFERROR(SUM($G$207:$G$208),0)","v":0}]
[{"$f":"IF(EXACT($G$13,Menus!$D$17),\"Taux DRAP\",IF(EXACT($G$13,Menus!$D$4),\"Taux DMOD\",\"Taux DRAP ou DMOD\"))","v":"Taux DRAP ou DMOD"},null,null,null,null,null,{"$f":"IFERROR(IF(EXACT($G$13,Menus!$D$17),$G$209*$G$112,IF(EXACT($G$13,Menus!$D$4),$G$209*$G$113,0)),0)","v":0}]
["Taux HPT",null,null,null,null,null,{"$f":"IFERROR((SUM($G$209:$G$210)*$F$116),0)","v":0}]
["Taux CEAF1 ou ISO1",null,null,null,null,null,{"$f":"IFERROR((SUM($G$209:$G$211)*$F$120),0)","v":0}]
["Taux exécution total et majoration(s) admissible(s)",null,null,null,null,null,{"$f":"IFERROR((ROUND(SUM($G$209:$G$212),2)),0)","v":0}]
[{"$f":"IFERROR(IF(EXACT(UPPER($G$17),UPPER(Menus!$A$88)),\"Taux de vérification (incluant le paiement pour la délimitation des secteurs en régie)\",\"Taux de vérification\"),\"Taux de vérification\")","v":"Taux de vérification"},null,null,null,null,null,{"$f":"IFERROR(IF(EXACT($G$123,PRT_Delimitation_des_secteurs_en_regie)=FALSE,(($G$123*$G$124)+($G$126*$G$127)+SUM($F$128:$F$133)*'Calculs grille'!$M$129*$G$127+SUM($F$134)*'Calculs grille'!$M$130*$G$127)/$G$217,(((Menus!$A$97*$G$217)+($G$126*$G$127)+SUM($F$128:$F$133)*'Calculs grille'!$M$129*$G$127+SUM($F$134)*'Calculs grille'!$M$130*$G$127)/$G$217)),0)","v":0}]
["Taux HPVTM et/ou DTPVTM",null,null,null,null,null,{"$f":"IFERROR((SUM($F$142:$F$143)*$G$214),0)","v":0}]
["Taux exécution et vérification total",null,null,null,null,null,{"$f":"IFERROR((ROUND(SUM($G$213:$G$215),2)),0)","v":0}]
["Superficie",null,null,null,null,null,{"$f":"IFERROR(ROUND($G$51,2),0)","v":0}]
["Total exécution",null,null,null,null,null,{"$f":"IFERROR(ROUND($G$213*$G$217,2),0)","v":0}]
["Total vérification",null,null,null,null,null,{"$f":"IFERROR(ROUND(SUM($G$214:$G$215)*$G$217,2),0)","v":0}]
["Grand total admissible",null,null,null,null,null,{"$f":"IFERROR(SUM($G$218:$G$219),0)","v":0}]
["Calculs - Drainage"]
["Taux d'exécution de base",null,null,null,null,null,{"$f":"IFERROR(IF($G$14=\"\",0,$G$14),0)","v":0}]
["Taux HPT",null,null,null,null,null,{"$f":"IFERROR(($G$222*$F$116),0)","v":0}]
["Taux CEAF1 ou ISO1",null,null,null,null,null,{"$f":"IFERROR((SUM($G$222:$G$223)*$F$120),0)","v":0}]
["Taux exécution total et majoration(s) admissible(s)",null,null,null,null,null,{"$f":"IFERROR((ROUND(SUM($G$222:$G$224),2)),0)","v":0}]
[{"$f":"IFERROR(IF(EXACT(UPPER($G$17),UPPER(Menus!$A$88)),\"Taux de vérification (incluant le paiement pour la délimitation des secteurs en régie)\",\"Taux de vérification\"),\"Taux de vérification\")","v":"Taux de vérification"},null,null,null,null,null,{"$f":"IFERROR(IF(EXACT($G$123,PRT_Delimitation_des_secteurs_en_regie)=FALSE,(($G$123*$G$124)+($G$137*$G$229))/$G$229,((Menus!$A$99*$G$229)+($G$137*$G$229))/$G$229),0)","v":0}]
["Taux HPVTM et/ou DTPVTM",null,null,null,null,null,{"$f":"IFERROR((SUM($F$142:$F$143)*$G$226),0)","v":0}]
["Taux exécution et vérification total",null,null,null,null,null,{"$f":"IFERROR(ROUND(SUM($G$225:$G$227),2),0)","v":0}]
["Nombre de kilomètres ou de milliers de mètres cubes",null,null,null,null,null,{"$f":"IFERROR(ROUND($G$106,2),0)","v":0}]
["Total exécution",null,null,null,null,null,{"$f":"IFERROR(ROUND($G$225*$G$229,2),0)","v":0}]
["Total vérification",null,null,null,null,null,{"$f":"IFERROR(ROUND(SUM($G$226:$G$227)*$G$229,2),0)","v":0}]
["Grand total admissible",null,null,null,null,null,{"$f":"IFERROR(SUM($G$230:$G$231),0)","v":0}]
["Calculs - Taupe"]
["Taux d'exécution de base",null,null,null,null,null,{"$f":"IFERROR(IF($G$14=\"\",0,$G$14),0)","v":0}]
["Taux HRA",null,null,null,null,null,{"$f":"IFERROR(($F$116*$G$234),0)","v":0}]
["Taux DTEXE",null,null,null,null,null,{"$f":"IFERROR(($F$117*$G$234),0)","v":0}]
["Taux CEAF1 ou ISO1",null,null,null,null,null,{"$f":"IFERROR((SUM($G$234:$G$236)*$F$120),0)","v":0}]
["Taux exécution total  et majoration(s) admissible(s)",null,null,null,null,null,{"$f":"IFERROR((ROUND(SUM($G$234:$G$237),2)),0)","v":0}]
[{"$f":"IFERROR(IF(EXACT(UPPER($G$17),UPPER(Menus!$A$88)),\"Taux de vérification (incluant le paiement pour la délimitation des secteurs en régie)\",\"Taux de vérification\"),\"Taux de vérification\")","v":"Taux de vérification"},null,null,null,null,null,{"$f":"IFERROR(IF(EXACT($G$123,PRT_Delimitation_des_secteurs_en_regie)=FALSE,(($G$123*$G$124)+($G$139*$G$140))/$G$242,((Menus!$A$98*$G$242)+($G$139*$G$140))/$G$242),0)","v":0}]
["Taux HPVTM et/ou DTPVTM",null,null,null,null,null,{"$f":"IFERROR((SUM($F$142:$F$143)*$G$239),0)","v":0}]
["Taux exécution et vérification total",null,null,null,null,null,{"$f":"IFERROR((ROUND(SUM($G$238:$G$240),2)),0)","v":0}]
["Nombre de milliers de microsites",null,null,null,null,null,{"$f":"IFERROR(ROUND($G$107,3),0)","v":0}]
["Total exécution",null,null,null,null,null,{"$f":"IFERROR(ROUND($G$238*$G$242,2),0)","v":0}]
["Total vérification",null,null,null,null,null,{"$f":"IFERROR(ROUND(SUM($G$239:$G$240)*$G$242,2),0)","v":0}]
["Grand total admissible",null,null,null,null,null,{"$f":"IFERROR(SUM($G$243:$G$244),0)","v":0}]
["Calculs - Variable"]
["Taux d'exécution de base",null,null,null,null,null,{"$f":"IFERROR($G$26,0)","v":0}]
[{"$f":"IFERROR(IF($G$24=\"\",\"Taux PE2 ou PE3\",IF($G$24<>Menus!$B$76,\"Taux PE2\",\"Taux PE3\")),\"Taux PE2 ou PE3\")","v":"Taux PE2 ou PE3"},null,null,null,null,null,{"$f":"IFERROR((IF($G$103=0,0,(SUMPRODUCT($E$98:$E$102,$G$98:$G$102)/$G$103))),0)","v":0}]
["Taux sous-total exécution",null,null,null,null,null,{"$f":"IFERROR(SUM($G$247:$G$248),0)","v":0}]
["Taux DMOD",null,null,null,null,null,{"$f":"IFERROR($G$249*$G$113,0)","v":0}]
["Taux HPT",null,null,null,null,null,{"$f":"IFERROR((SUM($G$249:$G$250)*$F$116),0)","v":0}]
["Taux CEAF1 ou ISO1",null,null,null,null,null,{"$f":"IFERROR((SUM($G$249:$G$251)*$F$120),0)","v":0}]
["Taux exécution total et majoration(s) admissible(s)",null,null,null,null,null,{"$f":"IFERROR((ROUND(SUM($G$249:$G$252),2)),0)","v":0}]
[{"$f":"IFERROR(IF(EXACT(UPPER($G$17),UPPER(Menus!$A$88)),\"Taux de vérification (incluant le paiement pour la délimitation des secteurs en régie)\",\"Taux de vérification\"),\"Taux de vérification\")","v":"Taux de vérification"},null,null,null,null,null,{"$f":"IFERROR(IF(EXACT($G$123,PRT_Delimitation_des_secteurs_en_regie)=FALSE,(($G$123*$G$124)+($G$126*$G$127)+SUM($F$128:$F$133)*'Calculs grille'!$M$129*$G$127+SUM($F$134)*'Calculs grille'!$M$130*$G$127)/$G$257,(((Menus!$A$97*$G$257)+($G$126*$G$127)+SUM($F$128:$F$133)*'Calculs grille'!$M$129*$G$127+SUM($F$134)*'Calculs grille'!$M$130*$G$127)/$G$257)),0)","v":0}]
["Taux HPVTM et/ou DTPVTM",null,null,null,null,null,{"$f":"IFERROR((SUM($F$142:$F$143)*$G$254),0)","v":0}]
["Taux exécution et vérification total",null,null,null,null,null,{"$f":"IFERROR((ROUND(SUM($G$253:$G$255),2)),0)","v":0}]
["Superficie",null,null,null,null,null,{"$f":"IFERROR(ROUND($G$103,2),0)","v":0}]
["Total exécution",null,null,null,null,null,{"$f":"IFERROR(ROUND($G$253*$G$257,2),0)","v":0}]
["Total vérification",null,null,null,null,null,{"$f":"IFERROR(ROUND(SUM($G$254:$G$255)*$G$257,2),0)","v":0}]
["Grand total admissible",null,null,null,null,null,{"$f":"IFERROR(SUM($G$258:$G$259),0)","v":0}]
["Calculs - Fertilisation du peuplier hybride"]
["Taux d'exécution de base",null,null,null,null,null,{"$f":"IFERROR(IF($G$14=\"\",0,$G$14),0)","v":0}]
["Taux PE2",null,null,null,null,null,{"$f":"IFERROR((SUMPRODUCT($E$46:$E$50,$G$46:$G$50)/$G$51),0)","v":0}]
["Taux sous-total exécution",null,null,null,null,null,{"$f":"IFERROR(SUM($G$262:$G$263),0)","v":0}]
["Taux HRA",null,null,null,null,null,{"$f":"IFERROR($G$264*$F$116,0)","v":0}]
["Taux DTEXE",null,null,null,null,null,{"$f":"IFERROR(($G$264*$F$117),0)","v":0}]
["Taux CEAF1 ou ISO1",null,null,null,null,null,{"$f":"IFERROR((SUM($G$264:$G$266)*$F$120),0)","v":0}]
["Taux exécution total  et majoration(s) admissible(s)",null,null,null,null,null,{"$f":"IFERROR((ROUND(SUM($G$264:$G$267),2)),0)","v":0}]
[{"$f":"IFERROR(IF(EXACT(UPPER($G$17),UPPER(Menus!$A$88)),\"Taux de vérification (incluant le paiement pour la délimitation des secteurs en régie)\",\"Taux de vérification\"),\"Taux de vérification\")","v":"Taux de vérification"},null,null,null,null,null,{"$f":"IFERROR(IF(EXACT($G$123,PRT_Delimitation_des_secteurs_en_regie)=FALSE,SUM(($G$123*$G$124),($G$139*$G$140))/$G$272,((Menus!$A$97*$G$272)+($G$139*$G$140))/$G$272),0)","v":0}]
["Taux HPVTM et/ou DTPVTM",null,null,null,null,null,{"$f":"IFERROR((SUM($F$142:$F$143)*$G$269),0)","v":0}]
["Taux exécution et vérification total",null,null,null,null,null,{"$f":"IFERROR((ROUND(SUM($G$268:$G$270),2)),0)","v":0}]
["Superficie",null,null,null,null,null,{"$f":"IFERROR(ROUND($G$51,2),0)","v":0}]
["Total exécution",null,null,null,null,null,{"$f":"IFERROR(ROUND($G$268*$G$272,2),0)","v":0}]
["Total vérification",null,null,null,null,null,{"$f":"IFERROR(ROUND(SUM($G$269,G270)*$G$272,2),0)","v":0}]
["Grand total admissible",null,null,null,null,null,{"$f":"IFERROR(SUM($G$273:$G$274),0)","v":0}]
[]
["Remarques"]
[]
["J'atteste que les renseignements fournis dans ce document afin de calculer le taux du traitement sont complets et conformes à la vérité, au meilleur de mes connaissances."]
[]
[]
[]
["Nom et prénom de l'ingénieur forestier",null,null,null,null,null,"Numéro de permis"]
[null,null,null,null,null,null,{"$f":"TODAY()","v":"2020-04-02"}]
[]
["Signature de l'ingénieur forestier",null,null,null,null,null,"Date (AAAA-MM-JJ)"]
[]
[]
["Section réservée au suivi du contrat"]
[]
[null,"Numéro de la prescription :",{"$f":"IF(G8<>\"\",G8,\"\")","v":""}]
[]
[null,"Numéro du contrat :"]
[null,"Numéro du projet :"]
[null,"U.G. :"]
[null,"MRC :"]
[null,"Code de traitement DICA :",{"$f":"IF($G$9<>\"\",$G$9,\"\")","v":""}]
[null,"Code de traitement RATF :",{"$f":"IF($G$10<>\"\",$G$10,\"\")","v":""}]
[null,"Type d'attribution :"]
[null,{"$f":"IFERROR(IF($D$300=Menus!$A$668,\"Taux AO (avec vérif.) :\",IF($D$300=Menus!$A$669,\"Taux AO (sans vérif.) :\",\"Taux AO :\")),\"Taux AO :\")","v":"Taux AO :"},null,"Inscrire une valeur"]
[null,{"$f":"IFERROR(IF($D$300=Menus!$A$669,\"Taux Grille (sans vérif.) :\",\"Taux Grille (avec vérif.) :\"),\"Taux Grille (avec vérif.) :\")","v":"Taux Grille (avec vérif.) :"},{"$f":"IFERROR(IF(OR($D$300=\"\",$D$300=Menus!$A$670),VLOOKUP($G$13,RXF!$A$1:$G$34,3,FALSE),IF($D$300=Menus!$A$668,VLOOKUP($G$13,RXF!$A$1:$G$34,3,FALSE),IF($D$300=Menus!$A$669,VLOOKUP($G$13,RXF!$A$1:$G$34,4,FALSE)))),0)","v":0}]
[null,"Ratio AO/Grille :",{"$f":"IFERROR(IF(AND($C$300<>\"\",$C$301>0),ROUND($C$300/$C$301,4),\"S/O\"),\"\")","v":"S/O"}]
[null,"Grand total AO :",{"$f":"IFERROR(IF(OR($C$300=\"\",$C$301=0),\"S/O\",IF(AND($C$300>0,OR($D$300=Menus!$A$668,$D$300=Menus!$A$670)),ROUND(VLOOKUP($G$13,RXF!$A$1:$G$34,5,FALSE)*$C$302,2),IF(AND($C$300>0,$D$300=Menus!$A$669),ROUND(VLOOKUP($G$13,RXF!$A$1:$G$34,7,FALSE)*$C$302,2)))),\"\")","v":"S/O"}]
[null,"Nom de l'entrepreneur :"]
[null,"Numéro de fournisseur :"]
[null,"Date de début :"]
[null,"Date de fin :"]
[null,"Commentaires :"]

{"sheet":"Régénération artificielle","index":2,"n_rows":201,"n_cols":7,"rows_kept":201,"cut":false,"hidden":true,"merged":[[192,3,192,4],[9,0,9,2],[122,0,122,5],[111,0,111,6],[61,3,61,5],[41,2,41,4],[42,1,42,4],[43,0,43,5],[44,0,44,5],[45,0,45,5],[60,3,60,5],[59,1,59,2],[61,1,61,2],[46,0,46,5],[50,0,50,5],[51,0,51,5],[52,0,52,5],[48,0,48,5],[57,3,57,5],[58,3,58,5],[59,3,59,5],[55,0,55,6],[56,0,56,6],[60,1,60,2],[58,1,58,2],[62,3,62,5],[64,0,64,6],[89,0,89,5],[78,0,78,6],[136,0,136,5],[146,0,146,5],[130,0,130,5],[117,0,117,5],[118,0,118,5],[120,0,120,5],[121,0,121,5],[73,0,73,5],[74,0,74,5],[98,0,98,5],[88,0,88,5],[85,0,85,5],[86,0,86,5],[103,0,103,5],[112,0,112,5],[106,0,106,5],[70,0,70,3],[62,1,62,2],[66,0,66,2],[178,0,178,5],[172,0,174,5],[153,0,153,6],[154,0,154,5],[108,0,108,5],[109,0,109,5],[83,0,83,6],[84,0,84,5],[81,0,81,3],[96,0,96,5],[94,0,94,5],[82,0,82,6],[149,0,149,5],[169,0,169,6],[170,0,170,6],[175,0,175,5],[163,0,163,5],[159,0,159,5],[171,0,171,6],[119,0,119,5],[90,0,90,5],[176,0,177,5],[176,6,177,6],[172,6,174,6],[9,3,9,5],[183,2,184,4],[63,0,63,2],[80,0,80,3],[81,4,81,5],[75,1,75,3],[76,1,76,3],[145,0,145,5],[144,0,144,5],[142,0,142,5],[124,0,124,5],[181,0,181,4],[166,0,166,5],[167,0,167,5],[155,0,155,5],[125,0,125,5],[97,0,97,6],[67,0,67,3],[138,0,138,5],[139,0,139,5],[63,3,63,5],[157,0,157,5],[72,0,72,6],[53,0,53,6],[0,0,0,6],[3,0,3,6],[15,0,15,6],[19,0,19,6],[28,0,28,6],[31,1,33,1],[27,0,27,5],[10,0,10,6],[14,0,14,6],[20,0,20,6],[4,0,4,5],[5,0,5,5],[6,0,6,5],[7,0,7,5],[25,1,25,4],[11,0,11,5],[13,0,13,5],[21,1,21,4],[26,0,26,5],[2,0,2,5],[8,0,8,5],[12,0,12,5],[22,1,22,5],[16,0,16,6],[49,0,49,6],[47,0,47,6],[40,1,41,1],[40,0,41,0],[34,1,34,4],[23,2,23,5],[23,1,24,1],[23,0,24,0],[40,2,40,5],[36,0,36,5],[37,0,37,5],[39,1,39,5],[32,2,32,4],[31,2,31,5],[31,0,33,0],[33,2,33,5],[24,2,24,4],[35,0,35,5],[65,0,65,6],[87,0,87,5],[101,0,101,5],[115,0,115,5],[123,0,123,5],[113,0,113,5],[114,0,114,5],[110,0,110,5],[99,0,99,5],[100,0,100,5],[105,0,105,5],[104,0,104,5],[107,0,107,5],[66,4,66,5],[79,0,79,3],[92,0,92,5],[68,0,68,6],[160,0,160,5],[158,0,158,5],[156,0,156,5],[67,4,67,5],[79,4,79,5],[150,0,150,5],[129,0,129,5],[126,0,126,6],[127,0,127,5],[102,0,102,5],[93,0,93,5],[116,0,116,5],[128,0,128,5],[91,0,91,5],[70,4,70,5],[148,0,148,5],[132,0,132,5],[134,0,134,5],[135,0,135,5],[131,0,131,5],[133,0,133,5],[140,0,140,6],[77,0,77,6],[71,0,71,6],[17,0,17,6],[18,0,18,4],[1,0,1,6],[147,0,147,5],[151,0,151,5],[152,0,152,5],[168,0,168,6],[165,0,165,5],[161,0,161,5],[162,0,162,5],[137,0,137,5],[141,0,141,5],[143,0,143,5],[75,0,76,0],[75,4,76,4],[69,0,69,6],[80,4,80,5],[95,0,95,5],[30,1,30,5],[29,1,29,4],[54,0,54,6],[57,1,57,2],[38,0,38,6],[164,0,164,5]]}
[]
["Annexe au calcul des taux des traitements non commerciaux 2020-2021              \n   Régénération artificielle\nForêt publique"]
[" *** Veuillez saisir les informations dans les cellules blanches seulement ***",null,null,null,null,null,"Version 3 : 2020-04-02"]
["Identification"]
["Unité d'aménagement (UA)"]
["Secteur d'intervention"]
["Unité de compilation"]
["Numéro de la prescription"]
["Traitement (code DICA)"]
["Traitement (code RATF)",null,null,{"$f":"IFERROR(VLOOKUP($G$9,Menus!$A$332:$D$385,3,FALSE),Menus!$C$385)","v":"RA_Codes_RATF"}]
["Traitement de régénération artificielle à taux fixe ou variable"]
["Traitement",null,null,null,null,null,"Inscrire une valeur"]
["Taux de base",null,null,null,null,null,{"$f":"IFERROR(VLOOKUP($G$12,Menus!$A$230:$C$236,2,FALSE),0)","v":0}]
["Unité de mesure",null,null,null,null,null,{"$f":"IFERROR(VLOOKUP($G$12,Menus!$A$230:$C$236,3,FALSE),\"\")","v":"-"}]
["Taux d'exécution à déterminer selon la formule suivante"]
[{"$f":"IF($G$12=Formules!$B$10,Formules!$D$10,IF($G$12=Formules!$B$11,Formules!$D$11,IF($G$12=Formules!$B$12,Formules!$D$12,\"\")))","v":""}]
["Majoration pour le type de préparation de terrain (RAPM)"]
["Majoration pour le type de préparation de terrain (RAPM) - Tous sauf Ensemencement terrestre manuel et Plantation uniforme et regarni mécanique (Scarificateur-planteur Bracke P-11a)"]
["Type de préparation de terrain (RAPM)",null,null,null,null,{"$f":"IFERROR(VLOOKUP($G$19,Menus!$A$388:$B$389,2,FALSE),\"\")","v":""},"Inscrire une valeur"]
[{"$f":"\"Valeurs spécifiques à remplir selon le traitement - \"&$G$12","v":"Valeurs spécifiques à remplir selon le traitement - Inscrire une valeur"}]
["Valeurs spécifiques à remplir selon le traitement - Plantation uniforme et regarni en plein manuel sauf PEH"]
["PR","Préparation de terrain",null,null,null,{"$f":"IF($G$22=Menus!$A$239,Menus!$B$239,IF($G$22=Menus!$A$240,Menus!$B$240,\"\"))","v":""}]
["DE","Densité totale (nombre de plants à mettre en terre par hectare)"]
["DS","Distance entre les rangées de plants\n(sillons si disponible)","Objectif de densité de plantation à terme : Outil de calcul afin de permettre d'afficher une valeur suggérée pour DS"]
[null,null,"Outil de calcul de la valeur de la variable DS en fonction de « Objectif de densité de plantation à terme ».\nUne valeur différente peut être inscrite.",null,null,{"$f":"IFERROR(ROUND(SQRT(10000/$G$24),2),0)","v":0}]
["Gabarit","Constante liée au gabarit retenu",null,null,null,{"$f":"IFERROR(VLOOKUP($G$26,Menus!$A$243:$B$248,2,FALSE),\"\")","v":""}]
["Nombre total de milliers de plants à mettre en terre"]
["Taux calculé à partir de l'équation et des variables reliées au traitement",null,null,null,null,null,{"$f":"IFERROR(('Calculs grille'!$M$35+'Calculs grille'!$M$36*$F$22+('Calculs grille'!$M$37/($G$23*$G$25))+$F$26)*SUM(1,$F$19),0)","v":0}]
["Valeurs spécifiques à remplir selon le traitement - Regarni de sentier et plantation d'enrichissement manuel sauf PEH"]
["PR","Préparation de terrain",null,null,null,{"$f":"IFERROR(VLOOKUP($G$30,Menus!$A$239:$B$240,2,FALSE),\"\")","v":""}]
["DE","Densité totale (nombre de plants à mettre en terre par hectare)"]
["DS","Distance entre les rangées de plants\n(sillons si disponible)","Objectif de densité de plantation uniforme à terme"]
[null,null,"Outil de calcul de la valeur de la variable DS en fonction de « Objectif de densité de plantation à terme ».\nUne valeur différente peut être inscrite.",null,null,{"$f":"IFERROR(ROUND(SQRT(10000/$G$32),2),\"\")","v":""}]
[null,null,"Calcul de la distance ajustée entre les plants (DSA), en fonction de « Objectif de densité de plantation à terme » et de « Pourcentage d'occupation des sentiers (regarni) ou proportion de la superficie traitée (enrichissement) ».\nLa valeur DSA calculée et la valeur DS inscrite par l'utilisateur seront utilisées pour établir le taux.",null,null,null,{"$f":"IFERROR(($F$33/$G$36),\"\")","v":""}]
["Gabarit","Constante liée au gabarit retenu",null,null,null,{"$f":"IFERROR(VLOOKUP($G$35,Menus!$A$243:$B$248,2,FALSE),\"\")","v":""}]
["Pourcentage d'occupation des sentiers (regarni) ou proportion de la superficie traitée (enrichissement)"]
["Nombre total de milliers de plants à mettre en terre"]
["Taux calculé à partir de l'équation et des variables reliées au traitement",null,null,null,null,null,{"$f":"IFERROR(IF($G$36=\"\",('Calculs grille'!$M$35+'Calculs grille'!$M$36*$F$30+('Calculs grille'!$M$37/($G$31*$G$33))+$F$35)*SUM(1,$F$19),('Calculs grille'!$M$35+'Calculs grille'!$M$36*$F$30+('Calculs grille'!$M$37/($G$31*$G$34))+$F$35)*SUM(1,$F$19)*(1+((('Calculs grille'!$M$35+'Calculs grille'!$M$36*$F$30+('Calculs grille'!$M$37/($G$32*$G$33))+$F$35)-('Calculs grille'!$M$35+'Calculs grille'!$M$36*$F$30+('Calculs grille'!$M$37/($G$32*$G$34))+$F$35))/('Calculs grille'!$M$35+'Calculs grille'!$M$36*$F$30+('Calculs grille'!$M$37/($G$32*$G$34))+$F$35)))),0)","v":0}]
["Valeurs spécifiques à remplir selon le traitement - Plantation uniforme et regarni en plein manuel sentier préparé sauf PEH"]
["DE","Densité totale (indiquer le nombre de plants à mettre en terre par hectare)"]
["DS","Distance entre les rangées de plants\n(sillons si disponible)","Objectif de densité de plantation à terme : Outil de calcul afin de permettre d'afficher une valeur suggérée pour DS"]
[null,null,"Outil de calcul de la valeur de la variable DS en fonction de « Objectif de densité de plantation à terme ».\nUne valeur différente peut être inscrite.",null,null,{"$f":"IFERROR(ROUND(SQRT(10000/$G$41),2),0)","v":0}]
["Gabarit","Constante liée au gabarit retenu",null,null,null,{"$f":"IFERROR(VLOOKUP($G$43,Menus!$A$243:$B$248,2,FALSE),\"\")","v":""}]
["Nombre total de milliers de plants à mettre en terre dans les sentiers"]
["Nombre total de milliers de plants à mettre en terre dans les bandes"]
["Taux calculé à partir de l'équation et des variables reliées au traitement AVEC préparation de terrain",null,null,null,null,null,{"$f":"IFERROR(('Calculs grille'!$M$35+'Calculs grille'!$M$36*1+('Calculs grille'!$M$37/($G$40*$G$42))+$F$43)*SUM(1,$F$19),0)","v":0}]
["Taux calculé à partir de l'équation et des variables reliées au traitement SANS préparation de terrain",null,null,null,null,null,{"$f":"IFERROR(('Calculs grille'!$M$35+'Calculs grille'!$M$36*0+('Calculs grille'!$M$37/($G$40*$G$42))+$F$43)*SUM(1,$F$19),0)","v":0}]
["Valeurs spécifiques à remplir selon le traitement - Plantation uniforme PEH"]
["Nombre de milliers de plants à mettre en terre"]
["Valeurs spécifiques à remplir selon le traitement - Plantation uniforme et regarni mécanique (Scarificateur-planteur Bracke P-11a)"]
["Spécification"]
["Nombre de milliers de plants à mettre en terre"]
["Taux",null,null,null,null,null,{"$f":"IFERROR(VLOOKUP($G$51,Menus!$A$251:$B$254,2,FALSE),0)","v":0}]
[{"$f":"\"Majorations applicables à l'exécution - \"&$G$12&\" - Voir l'onglet « Étapes calcul majoration »\"","v":"Majorations applicables à l'exécution - Inscrire une valeur - Voir l'onglet « Étapes calcul majoration »"}]
[{"$f":"IF($G$12='Majorations applicables'!$C$24,'Majorations applicables'!$K$24,IF($G$12='Majorations applicables'!$C$25,'Majorations applicables'!$K$25,IF($G$12='Majorations applicables'!$C$26,'Majorations applicables'!$K$26,IF($G$12='Majorations applicables'!$C$27,'Majorations applicables'!$K$27,IF($G$12='Majorations applicables'!$C$28,'Majorations applicables'!$K$28,IF($G$12='Majorations applicables'!$C$29,'Majorations applicables'!$K$29,\"\"))))))","v":""}]
["Majoration pour la pente (PE2)"]
["Majoration pour la pente (PE2) - Ensemencement terrestre manuel"]
["Classe de pente numérique","Taux calculé",null,"Écart",null,null,"Superficie (hectare)"]
["Pente A",{"$f":"IFERROR($G$13*(1+VLOOKUP($A$59,'Majorations applicables'!$A$49:$B$53,2,FALSE)),0)","v":0},{"$f":"B59-$G$12","v":{"$error":"#VALUE!"}},{"$f":"IFERROR($B$59-$G$13,0)","v":0}]
["Pente B",{"$f":"IFERROR($G$13*(1+VLOOKUP($A$60,'Majorations applicables'!$A$49:$B$53,2,FALSE)),0)","v":0},{"$f":"B60-$G$12","v":{"$error":"#VALUE!"}},{"$f":"IFERROR($B$60-$G$13,0)","v":0}]
["Pente C",{"$f":"IFERROR($G$13*(1+VLOOKUP($A$61,'Majorations applicables'!$A$49:$B$53,2,FALSE)),0)","v":0},{"$f":"B61-$G$12","v":{"$error":"#VALUE!"}},{"$f":"IFERROR($B$61-$G$13,0)","v":0}]
["Pente D",{"$f":"IFERROR($G$13*(1+VLOOKUP($A$62,'Majorations applicables'!$A$49:$B$53,2,FALSE)),0)","v":0},{"$f":"B62-$G$12","v":{"$error":"#VALUE!"}},{"$f":"IFERROR($B$62-$G$13,0)","v":0}]
["Pente E et plus",{"$f":"IFERROR($G$13*(1+VLOOKUP($A$63,'Majorations applicables'!$A$49:$B$53,2,FALSE)),0)","v":0},{"$f":"B63-$G$12","v":{"$error":"#VALUE!"}},{"$f":"IFERROR($B$63-$G$13,0)","v":0}]
[null,null,null,"Total",null,null,{"$f":"IFERROR(SUM($G$59:$G$63),0)","v":0}]
["Majoration pour l'hébergement, le transport collectif et la distance ou la durée du déplacement (HRA ou HPT, TC et DTEXE)"]
["Majoration pour l'hébergement, le transport collectif et la distance ou la durée du déplacement (HRA ou HPT, TC et DTEXE) - Tous sauf TC et DTEXE pour Plantation uniforme et regarni mécanique (Scarificateur-planteur Bracke P-11a)"]
[{"$f":"IFERROR(IF(EXACT($G$12,Menus!$A$233),\"Hébergement (HPT)\",\"Hébergement (HRA) ou transport collectif (TC)\"),\"Hébergement\")","v":"Hébergement (HRA) ou transport collectif (TC)"},null,null,{"$f":"IF(EXACT($G$12,Menus!$A$233),Menus!$B$262,Menus!$B$256)","v":"RA_Majoration_HRA_ou_TC"},{"$f":"IF(EXACT($G$12,Menus!$A$233),IF($G$67=\"\",\"\",IF($G$67=Menus!$A$263,Menus!$B$263,IF($G$67=Menus!$A$264,Menus!$B$264,IF($G$67=Menus!$A$265,Menus!$B$265,IF($G$67<=Menus!$B$264,ROUND($G$67,4),\"Max \"&TEXT(Menus!$B$264,\"0,00%\")))))),IF($G$67=\"\",\"\",IF($G$67=Menus!$A$257,Menus!$B$257,IF($G$67=Menus!$A$258,Menus!$B$258,IF($G$67=Menus!$A$259,Menus!$B$259,IF($G$67=Menus!$A$260,Menus!$B$260,IF($G$67<=Menus!$B$258,ROUND($G$67,4),\"Max \"&TEXT(Menus!$B$258,\"0,00%\"))))))))","v":""}]
["Distance ou durée du déplacement (DTEXE)",null,null,null,{"$f":"IFERROR(VLOOKUP($G$68,Menus!$A$273:$B$275,2,FALSE),\"\")","v":""}]
["Majoration pour la certification (CEAF2 ou ISO2)"]
["Majoration pour la certification (CEAF2 ou ISO2) - Tous"]
["Certification (CEAF2 ou ISO2)",null,null,null,{"$f":"IFERROR(VLOOKUP($G$71,Menus!$A$283:$B$285,2,FALSE),\"\")","v":""}]
["Vérification"]
["Vérification - Tous"]
["Inventaire après traitement (taux par placette inventoriée)"]
["Nombre de placettes inventoriées"]
["Critère 3","Alignement des plants reboisés",null,null,{"$f":"IFERROR(SUM($F$76:$F$77)*'Calculs grille'!$M$134,0)","v":0},{"$f":"IF($G$76=\"Oui\",1,IF($G$76=\"Non\",0,\"\"))","v":""}]
[null,"Nombre de microplacettes localisées en partie ou en totalité sur un andain",null,null,null,{"$f":"IF($G$77=\"Oui\",1,IF($G$77=\"Non\",0,\"\"))","v":""}]
["Vérification - Majoration pour l'hébergement, la distance ou la durée du déplacement et la traçabilité des plants (HPVTM, DTPVTM et TRA)"]
["Vérification - Majoration pour l'hébergement, la distance ou la durée du déplacement et la traçabilité des plants (HPVTM, DTPVTM et TRA) - Tous sauf TRA pour Ensemencement terrestre manuel"]
["Hébergement (HPVTM)",null,null,null,{"$f":"IF($G$80=\"\",\"\",IF($G$80=Menus!$A$268,Menus!$B$268,IF($G$80=Menus!$A$269,Menus!$B$269,IF($G$80=Menus!$A$270,Menus!$B$270,IF($G$80<=Menus!$B$269,ROUND($G$80,4),\"Max \"&TEXT(Menus!$B$269,\"0,0%\"))))))","v":""}]
["Distance ou durée du déplacement (DTPVTM)",null,null,null,{"$f":"IFERROR(VLOOKUP($G$81,Menus!$A$278:$B$280,2,FALSE),\"\")","v":""}]
["Traçabilité (TRA)",null,null,null,{"$f":"IFERROR(VLOOKUP($G$82,Menus!$A$296:$B$297,2,FALSE),\"\")","v":""}]
["Totaux"]
["Calculs - Plantation uniforme et regarni en plein manuel sauf PEH"]
[{"$f":"IFERROR(IF(EXACT($G$19,Menus!$A$510),\"Taux d'exécution de base incluant la majoration RAPM de \"&TEXT($F$19*1000,\"##,0# %\"),\"Taux d'exécution de base\"),\"Taux d'exécution de base\")","v":"Taux d'exécution de base"},null,null,null,null,null,{"$f":"IFERROR($G$28,0)","v":0}]
["Taux HRA ou TC",null,null,null,null,null,{"$f":"IFERROR(($G$85*$E$67),0)","v":0}]
["Taux DTEXE",null,null,null,null,null,{"$f":"IFERROR(($G$85*$E$68),0)","v":0}]
["Taux CEAF2 ou ISO2",null,null,null,null,null,{"$f":"IFERROR((SUM($G$85:$G$87)*$E$71),0)","v":0}]
["Taux exécution total et majoration(s) admissible(s)",null,null,null,null,null,{"$f":"IFERROR((ROUND(SUM($G$85:$G$88),2)),0)","v":0}]
["Taux vérification",null,null,null,null,null,{"$f":"IFERROR((+($G$74*$G$75)+SUM($F$76)*'Calculs grille'!$M$134*$G$75+SUM($F$77)*'Calculs grille'!$M$134*$G$75)/$G$94,0)","v":0}]
["Taux HPVTM et/ou DTPVTM",null,null,null,null,null,{"$f":"IFERROR(($G$90*SUM($E$80:$F$81)),0)","v":0}]
["Taux TRA",null,null,null,null,null,{"$f":"IFERROR(SUM($E$82),0)","v":0}]
["Taux exécution et vérification total",null,null,null,null,null,{"$f":"IFERROR(ROUND(SUM($G$89:$G$92),2),0)","v":0}]
["Nombre de milliers de plants",null,null,null,null,null,{"$f":"IFERROR(ROUND($G$27,3),0)","v":0}]
["Total exécution",null,null,null,null,null,{"$f":"IFERROR(ROUND($G$89*$G$94,2),0)","v":0}]
["Total vérification",null,null,null,null,null,{"$f":"IFERROR(ROUND(SUM($G$90:$G$92)*$G$94,2),0)","v":0}]
["Grand total admissible",null,null,null,null,null,{"$f":"IFERROR(SUM($G$95:$G$96),0)","v":0}]
["Calculs - Regarni de sentier et plantation d'enrichissement manuel sauf PEH"]
[{"$f":"IFERROR(IF(EXACT($G$19,Menus!$A$510),\"Taux d'exécution de base incluant la majoration RAPM de \"&TEXT($F$19*1000,\"##,0# %\"),\"Taux d'exécution de base\"),\"Taux d'exécution de base\")","v":"Taux d'exécution de base"},null,null,null,null,null,{"$f":"IFERROR($G$38,0)","v":0}]
["Taux HRA ou TC",null,null,null,null,null,{"$f":"IFERROR(($G$99*$E$67),0)","v":0}]
["Taux DTEXE",null,null,null,null,null,{"$f":"IFERROR(($G$99*$E$68),0)","v":0}]
["Taux CEAF2 ou ISO2",null,null,null,null,null,{"$f":"IFERROR((SUM($G$99:$G$101)*$E$71),0)","v":0}]
["Taux exécution total et majoration(s) admissible(s)",null,null,null,null,null,{"$f":"IFERROR((ROUND(SUM($G$99:$G$102),2)),0)","v":0}]
["Taux vérification",null,null,null,null,null,{"$f":"IFERROR((+($G$74*$G$75)+SUM($F$76)*'Calculs grille'!$M$134*$G$75+SUM($F$77)*'Calculs grille'!$M$134*$G$75)/$G$108,0)","v":0}]
["Taux HPVTM et/ou DTPVTM",null,null,null,null,null,{"$f":"IFERROR(($G$104*SUM($E$80:$F$81)),0)","v":0}]
["Taux TRA",null,null,null,null,null,{"$f":"IFERROR(SUM($E$82),0)","v":0}]
["Taux exécution et vérification total",null,null,null,null,null,{"$f":"IFERROR((ROUND(SUM($G$103:$G$106),2)),0)","v":0}]
["Nombre de milliers de plants",null,null,null,null,null,{"$f":"IFERROR(ROUND($G$37,3),0)","v":0}]
["Total exécution",null,null,null,null,null,{"$f":"IFERROR(ROUND($G$103*$G$108,2),0)","v":0}]
["Total vérification",null,null,null,null,null,{"$f":"IFERROR(ROUND(SUM($G$104:$G$106)*$G$108,2),0)","v":0}]
["Grand total admissible",null,null,null,null,null,{"$f":"IFERROR(SUM($G$109:$G$110),0)","v":0}]
["Calculs - Plantation uniforme et regarni en plein manuel sentier préparé sauf PEH"]
[{"$f":"IFERROR(IF(EXACT($G$19,Menus!$A$510),\"Taux d'exécution de base incluant la majoration RAPM de \"&TEXT($F$19*1000,\"##,0# %\"),\"Taux d'exécution de base\"),\"Taux d'exécution de base\")","v":"Taux d'exécution de base"},null,null,null,null,null,{"$f":"IFERROR((SUMPRODUCT($G$44:$G$45,$G$46:$G$47)/SUM($G$44:$G$45)),0)","v":0}]
["Taux HRA ou TC",null,null,null,null,null,{"$f":"IFERROR(($G$113*$E$67),0)","v":0}]
["Taux DTEXE",null,null,null,null,null,{"$f":"IFERROR(($G$113*$E$68),0)","v":0}]
["Taux CEAF2 ou ISO2",null,null,null,null,null,{"$f":"IFERROR((SUM($G$113:$G$115)*$E$71),0)","v":0}]
["Taux exécution total et majoration(s) admissible(s)",null,null,null,null,null,{"$f":"IFERROR((ROUND(SUM($G$113:$G$116),2)),0)","v":0}]
["Taux vérification",null,null,null,null,null,{"$f":"IFERROR((+($G$74*$G$75)+SUM($F$76)*'Calculs grille'!$M$134*$G$75+SUM($F$77)*'Calculs grille'!$M$134*$G$75)/SUM($G$122:$G$123),0)","v":0}]
["Taux HPVTM et/ou DTPVTM",null,null,null,null,null,{"$f":"IFERROR(($G$118*SUM($E$80:$F$81)),0)","v":0}]
["Taux TRA",null,null,null,null,null,{"$f":"IFERROR(SUM($E$82),0)","v":0}]
["Taux exécution et vérification total",null,null,null,null,null,{"$f":"IFERROR((ROUND(SUM($G$117:$G$120),2)),0)","v":0}]
["Nombre de milliers de plants dans les sentiers",null,null,null,null,null,{"$f":"IFERROR(ROUND($G$44,3),0)","v":0}]
["Nombre de milliers de plants dans les bandes",null,null,null,null,null,{"$f":"IFERROR(ROUND($G$45,3),0)","v":0}]
["Total exécution",null,null,null,null,null,{"$f":"IFERROR(ROUND(SUM($G$122:$G$123)*$G$117,2),0)","v":0}]
["Total vérification",null,null,null,null,null,{"$f":"IFERROR(ROUND(SUM($G$118:$G$120)*SUM($G$122:$G$123),2),0)","v":0}]
["Grand total admissible",null,null,null,null,null,{"$f":"IFERROR(SUM($G$124:$G$125),0)","v":0}]
["Calculs - Plantation uniforme PEH"]
[{"$f":"IFERROR(IF(EXACT($G$19,Menus!$A$510),\"Taux d'exécution de base incluant la majoration RAPM de \"&TEXT($F$19*1000,\"##,0# %\"),\"Taux d'exécution de base\"),\"Taux d'exécution de base\")","v":"Taux d'exécution de base"},null,null,null,null,null,{"$f":"IFERROR($G$13*SUM(1,$F$19),0)","v":0}]
["Taux HRA ou TC",null,null,null,null,null,{"$f":"IFERROR(($G$128*$E$67),0)","v":0}]
["Taux DTEXE",null,null,null,null,null,{"$f":"IFERROR(($G$128*$E$68),0)","v":0}]
["Taux CEAF2 ou ISO2",null,null,null,null,null,{"$f":"IFERROR((SUM($G$128:$G$130)*$E$71),0)","v":0}]
["Taux exécution total et majoration(s) admissible(s)",null,null,null,null,null,{"$f":"IFERROR((ROUND(SUM($G$128:$G$131),2)),0)","v":0}]
["Taux vérification",null,null,null,null,null,{"$f":"IFERROR((+($G$74*$G$75)+SUM($F$76)*'Calculs grille'!$M$134*$G$75+SUM($F$77)*'Calculs grille'!$M$134*$G$75)/$G$137,0)","v":0}]
["Taux HPVTM et/ou DTPVTM",null,null,null,null,null,{"$f":"IFERROR(($G$133*SUM($E$80:$F$81)),0)","v":0}]
["Taux TRA",null,null,null,null,null,{"$f":"IFERROR(SUM($E$82),0)","v":0}]
["Taux exécution et vérification total",null,null,null,null,null,{"$f":"IFERROR((ROUND(SUM($G$132:$G$135),2)),0)","v":0}]
["Nombre de milliers de plants",null,null,null,null,null,{"$f":"IFERROR(ROUND($G$49,3),0)","v":0}]
["Total exécution",null,null,null,null,null,{"$f":"IFERROR(ROUND($G$132*$G$137,2),0)","v":0}]
["Total vérification",null,null,null,null,null,{"$f":"IFERROR(ROUND(SUM($G$133:$G$135)*$G$137,2),0)","v":0}]
["Grand total admissible",null,null,null,null,null,{"$f":"IFERROR(SUM($G$138:$G$139),0)","v":0}]
["Calculs - Plantation uniforme et regarni mécanique (Scarificateur-planteur Bracke P-11a)"]
["Taux d'exécution de base",null,null,null,null,null,{"$f":"IFERROR(IF($G$53=\"\",0,$G$53),0)","v":0}]
["Taux HPT",null,null,null,null,null,{"$f":"IFERROR(($G$142*$E$67),0)","v":0}]
["Taux CEAF2 ou ISO2",null,null,null,null,null,{"$f":"IFERROR((SUM($G$142:$G$143)*$E$71),0)","v":0}]
["Taux exécution total et majoration(s) admissible(s)",null,null,null,null,null,{"$f":"IFERROR((ROUND(SUM($G$142:$G$144),2)),0)","v":0}]
["Taux vérification",null,null,null,null,null,{"$f":"IFERROR((+($G$74*$G$75)+SUM($F$76)*'Calculs grille'!$M$134*$G$75+SUM($F$77)*'Calculs grille'!$M$134*$G$75)/$G$150,0)","v":0}]
["Taux HPVTM et/ou DTPVTM",null,null,null,null,null,{"$f":"IFERROR(($G$146*SUM($E$80:$F$81)),0)","v":0}]
["Taux TRA",null,null,null,null,null,{"$f":"IFERROR(SUM($E$82),0)","v":0}]
["Taux exécution et vérification total",null,null,null,null,null,{"$f":"IFERROR((ROUND(SUM($G$145:$G$148),2)),0)","v":0}]
["Nombre de milliers de plants",null,null,null,null,null,{"$f":"IFERROR(ROUND($G$52,3),0)","v":0}]
["Total exécution",null,null,null,null,null,{"$f":"IFERROR(ROUND($G$145*$G$150,2),0)","v":0}]
["Total vérification",null,null,null,null,null,{"$f":"IFERROR(ROUND(SUM($G$146:$G$148)*$G$150,2),0)","v":0}]
["Grand total admissible",null,null,null,null,null,{"$f":"IFERROR(SUM($G$151:$G$152),0)","v":0}]
["Calculs - Ensemencement terrestre manuel"]
["Taux d'exécution de base",null,null,null,null,null,{"$f":"IFERROR($G$13,0)","v":0}]
["Taux PE2",null,null,null,null,null,{"$f":"IFERROR((SUMPRODUCT($D$59:$D$63,$G$59:$G$63)/$G$64),0)","v":0}]
["Taux sous-total exécution",null,null,null,null,null,{"$f":"IFERROR(SUM($G$155:$G$156),0)","v":0}]
["Taux HRA ou TC",null,null,null,null,null,{"$f":"IFERROR(($G$157*$E$67),0)","v":0}]
["Taux DTEXE",null,null,null,null,null,{"$f":"IFERROR(($G$157*$E$68),0)","v":0}]
["Taux CEAF2 ou ISO2",null,null,null,null,null,{"$f":"IFERROR((SUM($G$157:$G$159)*$E$71),0)","v":0}]
["Taux exécution total et majoration(s) admissible(s)",null,null,null,null,null,{"$f":"IFERROR((ROUND(SUM($G$157:$G$160),2)),0)","v":0}]
["Taux vérification",null,null,null,null,null,{"$f":"IFERROR((($G$74*$G$75)+SUM($F$76)*'Calculs grille'!$M$134*$G$75+SUM($F$77)*'Calculs grille'!$M$134*$G$75)/$G$165,0)","v":0}]
["Taux HPVTM et/ou DTPVTM",null,null,null,null,null,{"$f":"IFERROR(($G$162*SUM(($E$80:$F$81))),0)","v":0}]
["Taux exécution et vérification total",null,null,null,null,null,{"$f":"IFERROR((ROUND(SUM($G$161:$G$163),2)),0)","v":0}]
["Superficie",null,null,null,null,null,{"$f":"IFERROR(ROUND($G$64,2),0)","v":0}]
["Total exécution",null,null,null,null,null,{"$f":"IFERROR(ROUND($G$161*$G$165,2),0)","v":0}]
["Total vérification",null,null,null,null,null,{"$f":"IFERROR(ROUND(SUM($G$162:$G$163)*$G$165,2),0)","v":0}]
["Grand total admissible",null,null,null,null,null,{"$f":"IFERROR(SUM($G$166:$G$167),0)","v":0}]
[]
["Remarques"]
[]
["J'atteste que les renseignements fournis dans ce document afin de calculer le taux du traitement sont complets et conformes à la vérité, au meilleur de mes connaissances."]
[]
[]
[]
["Nom et prénom de l'ingénieur forestier",null,null,null,null,null,"Numéro de permis"]
[null,null,null,null,null,null,{"$f":"TODAY()","v":"2020-04-02"}]
[]
["Signature de l'ingénieur forestier",null,null,null,null,null,"Date (AAAA-MM-JJ)"]
[]
[]
["Section réservée au suivi du contrat"]
[]
[null,"Numéro de la prescription :",{"$f":"IF($G$8<>\"\",$G$8,\"\")","v":""}]
[]
[null,"Numéro du contrat :"]
[null,"Numéro du projet :"]
[null,"U.G. :"]
[null,"MRC :"]
[null,"Code de traitement DICA :",{"$f":"IF($G$9<>\"\",$G$9,\"\")","v":""}]
[null,"Code de traitement RATF :",{"$f":"IF($G$10<>\"\",$G$10,\"\")","v":""}]
[null,"Type d'attribution : "]
[null,{"$f":"IFERROR(IF($D$193=Menus!$A$668,\"Taux AO (avec vérif.) :\",IF($D$193=Menus!$A$669,\"Taux AO (sans vérif.) :\",\"Taux AO :\")),\"Taux AO :\")","v":"Taux AO (sans vérif.) :"},null,"Vérification EXCLUS"]
[null,{"$f":"IFERROR(IF($D$193=Menus!$A$669,\"Taux Grille (sans vérif.) :\",\"Taux Grille (avec vérif.) :\"),\"Taux Grille (avec vérif.) :\")","v":"Taux Grille (sans vérif.) :"},{"$f":"IFERROR(IF(OR($D$193=\"\",$D$193=Menus!$A$670),VLOOKUP($G$12,RXF!$A$1:$G$34,3,FALSE),IF($D$193=Menus!$A$668,VLOOKUP($G$12,RXF!$A$1:$G$34,3,FALSE),IF($D$193=Menus!$A$669,VLOOKUP($G$12,RXF!$A$1:$G$34,4,FALSE)))),0)","v":0}]
[null,"Ratio AO/Grille :",{"$f":"IF(AND($C$193<>\"\",$C$194>0),ROUND($C$193/$C$194,4),\"S/O\")","v":"S/O"}]
[null,"Grand total AO :",{"$f":"IFERROR(IF(OR($C$193=\"\",$C$194=0),\"S/O\",IF(AND($C$193>0,OR($D$193=Menus!$A$668,$D$193=Menus!$A$670)),ROUND(VLOOKUP($G$12,RXF!$A$1:$G$34,5,FALSE)*$C$195,2),IF(AND($C$193>0,$D$193=Menus!$A$669),ROUND(VLOOKUP($G$12,RXF!$A$1:$G$34,7,FALSE)*$C$195,2)))),\"\")","v":"S/O"}]
[null,"Nom de l'entrepreneur : "]
[null,"Numéro de fournisseur : "]
[null,"Date de début :"]
[null,"Date de fin :"]
[null,"Commentaires :"]

{"sheet":"Éducation de peuplement","index":3,"n_rows":255,"n_cols":7,"rows_kept":255,"cut":false,"hidden":true,"merged":[[35,0,35,4],[246,3,246,4],[34,0,34,4],[36,1,36,5],[2,0,2,5],[222,0,222,6],[150,0,150,5],[166,0,166,5],[182,0,182,5],[117,1,117,3],[100,2,100,3],[101,2,101,3],[102,2,102,3],[103,0,103,3],[146,0,146,5],[129,0,129,5],[130,0,130,5],[132,0,132,5],[133,0,133,5],[135,0,135,5],[139,0,139,5],[138,0,138,5],[134,0,134,5],[123,0,123,6],[127,0,127,6],[117,0,119,0],[99,4,99,5],[100,4,100,5],[101,4,101,5],[102,4,102,5],[105,0,105,6],[68,0,68,1],[69,0,69,1],[92,0,92,1],[93,0,93,1],[114,0,114,5],[116,0,116,5],[115,0,115,5],[104,0,104,6],[106,0,106,4],[109,0,109,6],[110,0,110,4],[99,2,99,3],[136,0,136,5],[137,0,137,5],[117,4,119,4],[120,4,121,4],[51,1,51,5],[52,0,52,5],[89,2,89,3],[90,2,90,3],[66,0,66,1],[79,0,79,2],[87,0,87,2],[73,0,73,1],[77,0,77,1],[78,0,78,1],[70,0,70,1],[125,0,125,4],[126,0,126,4],[103,4,103,5],[95,4,95,5],[95,0,95,3],[97,2,97,3],[98,2,98,3],[124,0,124,6],[120,0,121,0],[4,0,4,5],[5,0,5,5],[6,0,6,5],[7,0,7,5],[8,0,8,5],[11,0,11,5],[19,1,19,5],[20,1,20,5],[18,0,18,6],[17,0,17,6],[9,4,9,5],[9,0,9,3],[14,0,14,6],[16,0,16,4],[15,0,15,6],[22,0,22,5],[21,1,21,4],[24,2,24,5],[25,3,25,5],[26,3,26,4],[27,0,27,5],[38,1,38,4],[37,1,37,5],[94,2,94,3],[94,4,94,5],[57,0,57,1],[58,0,58,1],[59,0,59,1],[60,0,60,1],[61,0,61,1],[62,0,62,1],[65,0,65,1],[55,0,55,6],[63,0,63,2],[41,0,41,6],[56,0,56,6],[54,0,54,6],[44,1,44,5],[46,0,46,5],[42,1,42,5],[67,0,67,1],[74,0,74,1],[48,1,48,5],[49,1,49,5],[111,0,111,6],[112,0,112,6],[98,0,98,1],[47,0,47,6],[96,0,96,6],[90,0,90,1],[91,0,91,1],[82,0,82,1],[81,0,81,1],[83,0,83,1],[84,0,84,1],[86,0,86,1],[80,0,80,6],[85,0,85,1],[94,0,94,1],[107,0,107,4],[97,4,97,5],[98,4,98,5],[50,1,50,5],[33,0,33,6],[26,1,26,2],[23,0,23,6],[25,1,25,2],[64,0,64,6],[72,0,72,6],[91,2,91,3],[92,2,92,3],[93,2,93,3],[89,4,89,5],[90,4,90,5],[91,4,91,5],[92,4,92,5],[93,4,93,5],[29,2,29,5],[30,2,30,4],[31,2,31,4],[32,0,32,5],[40,0,40,5],[39,0,39,5],[75,0,75,1],[76,0,76,1],[88,0,88,6],[89,0,89,1],[223,0,223,6],[225,0,225,6],[224,0,224,6],[191,0,191,5],[193,0,193,5],[194,0,194,5],[192,0,192,6],[195,0,195,5],[168,0,168,5],[186,0,186,5],[174,0,174,5],[216,0,216,5],[177,0,177,5],[184,0,184,5],[185,0,185,5],[170,0,170,5],[176,0,176,6],[175,0,175,5],[198,0,198,5],[213,0,213,5],[201,0,201,5],[202,0,202,5],[204,0,204,5],[208,0,208,5],[218,0,218,5],[217,0,217,5],[140,0,140,5],[141,0,141,5],[142,0,142,5],[156,0,156,5],[181,0,181,5],[153,0,153,5],[162,0,162,5],[164,0,164,5],[165,0,165,5],[172,0,172,5],[152,0,152,5],[180,0,180,5],[158,0,158,5],[147,0,147,5],[160,0,160,6],[167,0,167,5],[235,0,235,4],[230,6,231,6],[232,0,232,5],[237,2,238,4],[173,0,173,5],[159,0,159,5],[144,0,144,6],[143,0,143,5],[187,0,187,5],[188,0,188,5],[221,0,221,5],[206,0,206,5],[226,0,228,5],[226,6,228,6],[229,0,229,5],[230,0,231,5],[211,0,211,5],[207,0,207,6],[196,0,196,5],[197,0,197,5],[199,0,199,5],[203,0,203,5],[200,0,200,5],[209,0,209,5],[219,0,219,5],[220,0,220,5],[161,0,161,5],[189,0,189,5],[128,0,128,6],[190,0,190,5],[148,0,148,5],[149,0,149,5],[169,0,169,5],[145,0,145,5],[205,0,205,5],[215,0,215,5],[171,0,171,5],[131,0,131,5],[154,0,154,5],[157,0,157,5],[183,0,183,5],[178,0,178,5],[179,0,179,5],[155,0,155,5],[210,0,210,5],[212,0,212,5],[214,0,214,5],[163,0,163,5],[0,0,0,6],[3,0,3,6],[53,0,53,6],[10,0,10,6],[12,0,12,6],[13,0,13,6],[151,0,151,5],[118,1,118,3],[119,1,119,3],[120,1,120,3],[121,1,121,3],[28,0,28,6],[113,0,113,5],[99,0,99,1],[100,0,100,1],[101,0,101,1],[102,0,102,1],[71,0,71,2],[108,0,108,6],[122,0,122,5],[1,0,1,6],[45,1,45,4],[43,1,43,4],[97,0,97,1]]}
[]
["Annexe au calcul des taux des traitements non commerciaux 2020-2021                  \n   Éducation de peuplement\nForêt publique"]
[" *** Veuillez saisir les informations dans les cellules blanches seulement ***",null,null,null,null,null,"Version 3 : 2020-04-02"]
["Identification"]
["Unité d'aménagement (UA)"]
["Secteur d'intervention"]
["Unité de compilation"]
["Numéro de la prescription"]
["Traitement (code DICA)"]
["Traitement (code RATF)",null,null,null,{"$f":"IFERROR(VLOOKUP($G$9,Menus!$A$496:$D$507,3,FALSE),Menus!$C$507)","v":"EP_Codes_RATF"}]
["Traitement d'éducation de peuplement à taux variable"]
["Traitement",null,null,null,null,null,"Inscrire une valeur"]
["Taux d'exécution à déterminer selon la formule suivante"]
[{"$f":"IF($G$12=Formules!$B$2,Formules!$D$2,IF($G$12=Formules!$B$3,Formules!$D$3,IF($G$12=Formules!$B$4,Formules!$D$4,IF($G$12=Formules!$B$5,Formules!$D$5,IF($G$12=Formules!$B$6,Formules!$D$6,IF($G$12=Formules!$B$7,Formules!$D$7,\"\"))))))","v":""}]
["Majoration pour le type de préparation de terrain (DEGPM)"]
["Majoration pour le type de préparation de terrain (DEGPM) - Dégagement mécanique"]
["Type de préparation de terrain  (DEGPM)",null,null,null,null,{"$f":"IFERROR(VLOOKUP($G$17,Menus!$A$510:$B$511,2,FALSE),\"\")","v":""},"Inscrire une valeur"]
[{"$f":"\"Valeurs spécifiques à remplir selon le traitement - \"&$G$12","v":"Valeurs spécifiques à remplir selon le traitement - Inscrire une valeur"}]
["Valeurs spécifiques à remplir selon le traitement - Dégagement mécanique"]
["RECFFE","Pourcentage de superficie couverte par le framboisier, la fougère et l'épilobe"]
["DI","Densité initiale à l'hectare soit le dénombrement de toutes les tiges de 1 m et plus de hauteur. Inventaire un an avant exécution : 80 cm."]
["MODE","Mode d'établissement de la régénération",null,null,null,{"$f":"IF($G$22=Menus!$B$403,Menus!$C$403,IF($G$22=Menus!$B$404,Menus!$C$404,\"\"))","v":""}]
[{"$f":"IFERROR(IF(EXACT($G$17,Menus!$A$510),\"Taux calculé à partir de l'équation et des variables reliées au traitement incluant la majoration DEGPM de \"&TEXT($F$17*1000,\"##,## %\"),\"Taux calculé à partir de l'équation et des variables reliées au traitement\"),\"Taux calculé à partir de l'équation et des variables reliées au traitement\")","v":"Taux calculé à partir de l'équation et des variables reliées au traitement"},null,null,null,null,null,{"$f":"IFERROR((('Calculs grille'!$M$59+('Calculs grille'!$M$60*'Éducation de peuplement'!$G$20*100)+('Calculs grille'!$M$61*'Éducation de peuplement'!$G$21)+('Calculs grille'!$M$62*'Éducation de peuplement'!$F$22)))*SUM(1,$F$17),0)","v":0}]
["Valeurs spécifiques à remplir selon le traitement - Nettoiement - scénario sylvicole de base"]
["DI","Densité initiale (tiges/hectare)","Dénombrement de toutes les tiges dont le diamètre à hauteur de souche (15 cm) est supérieur à 1,5 cm. Inventaire un an avant exécution : Résineux > 1,0 m et Feuillus > 1,6 m de hauteur. Inventaire même année qu'exécution : Résineux > 1,2 m et Feuillus > 1,8 m de hauteur. NB : Le dénombrement des tiges peut être effectué à partir de la hauteur de la tige ou du diamètre à hauteur de souche après entente avec les autorités."]
["SRLC","Stocking résineux libre de croître (%)",null,"Nombre de placettes contenant un résineux libre de croître sur le nombre total de placettes"]
[]
["Taux calculé à partir de l'équation et des variables reliées au traitement",null,null,null,null,null,{"$f":"IFERROR(IF(AND($G$25<>\"\",$G$26<>\"\"),('Calculs grille'!$M$66+('Calculs grille'!$M$67*$G$25)-(ABS('Calculs grille'!$M$68)*$G$26)),0),0)","v":0}]
["Valeurs spécifiques à remplir selon le traitement - Nettoiement et EPC systématique- scénario sylvicole intensif ou d'élite"]
["DI","Densité initiale (tiges/hectare)","Dénombrement de toutes les tiges dont le diamètre à hauteur de souche (15 cm) est supérieur à 1,5 cm. Inventaire un an avant exécution : Résineux > 1,0 m et Feuillus > 1,6 m de hauteur. Inventaire même année qu'exécution : Résineux > 1,2 m et Feuillus > 1,8 m de hauteur. NB : Le dénombrement des tiges peut être effectué à partir de la hauteur de la tige ou du diamètre à hauteur de souche après entente avec les autorités."]
["TP","Type de composition visée","Facteur d'ajustement",null,null,{"$f":"IFERROR(VLOOKUP($G$31,Menus!$A$407:$B$408,2,FALSE),\"\")","v":""}]
[]
["Taux calculé à partir de l'équation et des variables reliées au traitement",null,null,null,null,null,{"$f":"IFERROR(IF(AND($G$30<>\"\",$G$31<>\"\"),'Calculs grille'!$M$72+('Calculs grille'!$M$73*LN($G$30)-'Calculs grille'!$M$74)*$F$31,0),0)","v":0}]
["Valeurs spécifiques à remplir selon le traitement - EPC par puit de lumière ET Taille de formation avec martelage"]
["Éclaircie précommerciale",null,null,null,null,{"$f":"IF($G$35=Menus!$B$422,Menus!$C$422,IF($G$35=Menus!$B$423,Menus!$C$423,\"\"))","v":""}]
["Martelage",null,null,null,null,{"$f":"IF($G$36=Menus!$B$418,Menus!$C$418,IF($G$36=Menus!$B$419,Menus!$C$419,\"\"))","v":""}]
["DENSTIGE","Densité des arbres à éclaircir et/ou marteler et/ou tailler à l'hectare"]
["HTTIGE","Hauteur totale des arbres à éclaircir et/ou marteler et/ou tailler (m)"]
["TAIL","Taille de formation",null,null,null,{"$f":"IF($G$39=Menus!$B$414,Menus!$C$414,IF($G$39=Menus!$B$415,Menus!$C$415,\"\"))","v":""}]
[{"$f":"IF($G$35=\"\",\"Taux calculé pour le traitement à partir de l'équation et des variables\",\"Taux calculé pour le traitement à partir de l'équation et des variables - \"&$G$35)","v":"Taux calculé pour le traitement à partir de l'équation et des variables"},null,null,null,null,null,{"$f":"IFERROR((('Calculs grille'!$M$78*$G$37*EXP('Calculs grille'!$M$79*$G$38)+'Calculs grille'!$M$85)*$F$35),0)","v":0}]
[{"$f":"\"Taux calculé pour \"&IF(AND($F$39=0,$F$36=1)=TRUE,\"le martelage sans taille de formation\",IF(AND($F$39=1,$F$36=0)=TRUE,\"la taille de formation sans martelage\",IF(AND($F$39=1,$F$36=1)=TRUE,\"le martelage et la taille de formation\",\"la taille de formation et le martelage\")))","v":"Taux calculé pour la taille de formation et le martelage"},null,null,null,null,null,{"$f":"IFERROR(IF((AND($F$36=1,$F$39=1))=TRUE,(('Calculs grille'!$M$80*$G$37/(('Calculs grille'!$M$81*$G$37)+'Calculs grille'!$M$82)+'Calculs grille'!$M$83*$F$39)+'Calculs grille'!$M$87+'Calculs grille'!$M$88),IF((AND($F$36=1,$F$39=0))=TRUE,(('Calculs grille'!$M$80*$G$37/(('Calculs grille'!$M$81*$G$37)+'Calculs grille'!$M$82)+'Calculs grille'!$M$83*$F$39)+'Calculs grille'!$M$86),IF((AND($F$35=0,$F$36=0,$F$39=1))=TRUE,\"Cette combinaison n'est pas possible\",IF((AND($F$36=0,$F$39=1))=TRUE,(('Calculs grille'!$M$80*$G$37/(('Calculs grille'!$M$81*$G$37)+'Calculs grille'!$M$82)+'Calculs grille'!$M$83*$F$39)+'Calculs grille'!$M$88),0)))),0)","v":0}]
["Valeurs spécifiques à remplir selon le traitement - Élagage pour fins de qualité du pin blanc et du pin rouge"]
["BRAN","Nombre de branches à couper par tige"]
["LONGELA","Longueur d'élagage ",null,null,null,{"$f":"IF($G$44=Menus!$B$426,Menus!$C$426,IF($G$44=Menus!$B$427,Menus!$C$427,\"\"))","v":""}]
["DENSELA","Densité des arbres à élaguer à l'hectare"]
["MP","Martelage positif selon le nombre de tiges à l'hectare",null,null,null,{"$f":"IFERROR(VLOOKUP($G$46,Menus!$A$430:$B$432,2,FALSE),\"\")","v":""}]
["Taux calculé à partir de l'équation et des variables reliées au traitement",null,null,null,null,null,{"$f":"IFERROR(((('Calculs grille'!$M$89*$G$43+'Calculs grille'!$M$90+'Calculs grille'!$M$91*$F$44)+(-'Calculs grille'!$M$92*LN($G$45)+'Calculs grille'!$M$93))*$G$45+$F$46+'Calculs grille'!$M$96),0)","v":0}]
["Valeurs spécifiques à remplir selon le traitement - Taille phytosanitaire"]
["BRAN","Nombre de branches à couper par tige"]
["DENSELA","Densité des arbres à élaguer à l'hectare"]
["DENSCO","Densité des arbres à couper à l'hectare"]
["DENSTF","Densité des arbres avec taille de formation à l'hectare"]
["Taux calculé à partir de l'équation et des variables reliées au traitement",null,null,null,null,null,{"$f":"IFERROR(((('Calculs grille'!$M$97*'Éducation de peuplement'!$G$49+'Calculs grille'!$M$98+(-'Calculs grille'!$M$99*LN('Éducation de peuplement'!$G$50)+'Calculs grille'!$M$100))*'Éducation de peuplement'!$G$50)+'Calculs grille'!$M$101*'Éducation de peuplement'!$G$51+'Calculs grille'!$M$102*'Éducation de peuplement'!$G$52+'Calculs grille'!$M$103),0)","v":0}]
[{"$f":"\"Majorations applicables à l'exécution - \"&$G$12&\" - Voir l'onglet « Étapes calcul majoration »\"","v":"Majorations applicables à l'exécution - Inscrire une valeur - Voir l'onglet « Étapes calcul majoration »"}]
[{"$f":"IF($G$12='Majorations applicables'!$C$18,'Majorations applicables'!$K$18,IF($G$12='Majorations applicables'!$C$19,'Majorations applicables'!$K$19,IF($G$12='Majorations applicables'!$C$20,'Majorations applicables'!$K$20,IF($G$12='Majorations applicables'!$C$21,'Majorations applicables'!$K$21,IF($G$12='Majorations applicables'!$C$22,'Majorations applicables'!$K$22,IF($G$12='Majorations applicables'!$C$23,'Majorations applicables'!$K$23,\"\"))))))","v":""}]
["Majoration pour la pente (PE2)"]
["Majoration pour la pente (PE2) - Dégagement mécanique"]
["Classe de pente numérique",null,"Taux calculé","Écart","Superficie nette (ha) excluant les andains","Superficie brute (hectare)","% andains"]
["Pente A",null,{"$f":"IFERROR($G$23*(1+VLOOKUP($A$59,'Majorations applicables'!$A$49:$B$53,2,FALSE)),0)","v":0},{"$f":"IFERROR($C$59-$G$23,0)","v":0},{"$f":"IFERROR($F$59*(1-$G$59),0)","v":0}]
["Pente B",null,{"$f":"IFERROR($G$23*(1+VLOOKUP($A$60,'Majorations applicables'!$A$49:$B$53,2,FALSE)),0)","v":0},{"$f":"IFERROR($C$60-$G$23,0)","v":0},{"$f":"IFERROR($F$60*(1-$G$60),0)","v":0}]
["Pente C",null,{"$f":"IFERROR($G$23*(1+VLOOKUP($A$61,'Majorations applicables'!$A$49:$B$53,2,FALSE)),0)","v":0},{"$f":"IFERROR($C$61-$G$23,0)","v":0},{"$f":"IFERROR($F$61*(1-$G$61),0)","v":0}]
["Pente D",null,{"$f":"IFERROR($G$23*(1+VLOOKUP($A$62,'Majorations applicables'!$A$49:$B$53,2,FALSE)),0)","v":0},{"$f":"IFERROR($C$62-$G$23,0)","v":0},{"$f":"IFERROR($F$62*(1-$G$62),0)","v":0}]
["Pente E et plus",null,{"$f":"IFERROR($G$23*(1+VLOOKUP($A$63,'Majorations applicables'!$A$49:$B$53,2,FALSE)),0)","v":0},{"$f":"IFERROR($C$63-$G$23,0)","v":0},{"$f":"IFERROR($F$63*(1-$G$63),0)","v":0}]
[null,null,null,"Total",{"$f":"IFERROR(SUM($E$59:$E$63),0)","v":0},{"$f":"IFERROR(SUM($F$59:$F$63),0)","v":0},{"$f":"IFERROR((SUMPRODUCT($G$59:$G$63,$F$59:$F$63)/$F$64),0)","v":0}]
["Majoration pour la pente (PE2) - Nettoiement - scénario sylvicole de base"]
["Classe de pente numérique",null,"Taux calculé","Écart","Superficie nette (ha) excluant les andains","Superficie brute (hectare)","% andains"]
["Pente A",null,{"$f":"IFERROR($G$28*(1+VLOOKUP($A$67,'Majorations applicables'!$A$49:$B$53,2,FALSE)),0)","v":0},{"$f":"IFERROR($C$67-$G$28,0)","v":0},{"$f":"IFERROR($F$67*(1-$G$67),0)","v":0}]
["Pente B",null,{"$f":"IFERROR($G$28*(1+VLOOKUP($A$68,'Majorations applicables'!$A$49:$B$53,2,FALSE)),0)","v":0},{"$f":"IFERROR($C$68-$G$28,0)","v":0},{"$f":"IFERROR($F$68*(1-$G$68),0)","v":0}]
["Pente C",null,{"$f":"IFERROR($G$28*(1+VLOOKUP($A$69,'Majorations applicables'!$A$49:$B$53,2,FALSE)),0)","v":0},{"$f":"IFERROR($C$69-$G$28,0)","v":0},{"$f":"IFERROR($F$69*(1-$G$69),0)","v":0}]
["Pente D",null,{"$f":"IFERROR($G$28*(1+VLOOKUP($A$70,'Majorations applicables'!$A$49:$B$53,2,FALSE)),0)","v":0},{"$f":"IFERROR($C$70-$G$28,0)","v":0},{"$f":"IFERROR($F$70*(1-$G$70),0)","v":0}]
["Pente E et plus",null,{"$f":"IFERROR($G$28*(1+VLOOKUP($A$71,'Majorations applicables'!$A$49:$B$53,2,FALSE)),0)","v":0},{"$f":"IFERROR($C$71-$G$28,0)","v":0},{"$f":"IFERROR($F$71*(1-$G$71),0)","v":0}]
[null,null,null,"Total",{"$f":"IFERROR(SUM($E$67:$E$71),0)","v":0},{"$f":"IFERROR(SUM($F$67:$F$71),0)","v":0},{"$f":"IFERROR((SUMPRODUCT($G$67:$G$71,$F$67:$F$71)/$F$72),0)","v":0}]
["Majoration pour la pente (PE2) - Nettoiement et EPC systématique- scénario sylvicole intensif ou d'élite"]
["Classe de pente numérique",null,"Taux calculé","Écart","Superficie nette (ha) excluant les andains","Superficie brute (hectare)","% andains"]
["Pente A",null,{"$f":"IFERROR($G$33*(1+VLOOKUP($A$75,'Majorations applicables'!$A$49:$B$53,2,FALSE)),0)","v":0},{"$f":"IFERROR($C$75-$G$33,0)","v":0},{"$f":"IFERROR($F$75*(1-$G$75),0)","v":0}]
["Pente B",null,{"$f":"IFERROR($G$33*(1+VLOOKUP($A$76,'Majorations applicables'!$A$49:$B$53,2,FALSE)),0)","v":0},{"$f":"IFERROR($C$76-$G$33,0)","v":0},{"$f":"IFERROR($F$76*(1-$G$76),0)","v":0}]
["Pente C",null,{"$f":"IFERROR($G$33*(1+VLOOKUP($A$77,'Majorations applicables'!$A$49:$B$53,2,FALSE)),0)","v":0},{"$f":"IFERROR($C$77-$G$33,0)","v":0},{"$f":"IFERROR($F$77*(1-$G$77),0)","v":0}]
["Pente D",null,{"$f":"IFERROR($G$33*(1+VLOOKUP($A$78,'Majorations applicables'!$A$49:$B$53,2,FALSE)),0)","v":0},{"$f":"IFERROR($C$78-$G$33,0)","v":0},{"$f":"IFERROR($F$78*(1-$G$78),0)","v":0}]
["Pente E et plus",null,{"$f":"IFERROR($G$33*(1+VLOOKUP($A$79,'Majorations applicables'!$A$49:$B$53,2,FALSE)),0)","v":0},{"$f":"IFERROR($C$79-$G$33,0)","v":0},{"$f":"IFERROR($F$79*(1-$G$79),0)","v":0}]
[null,null,null,"Total",{"$f":"IFERROR(SUM($E$75:$E$79),0)","v":0},{"$f":"IFERROR(SUM($F$75:$F$79),0)","v":0},{"$f":"IFERROR((SUMPRODUCT($G$75:$G$79,$F$75:$F$79)/$F$80),0)","v":0}]
["Majoration pour la pente (PE2) - EPC par puit de lumière ET Taille de formation avec martelage"]
["Classe de pente numérique",null,"Taux calculé","Écart","Superficie nette (ha) excluant les andains","Superficie brute (hectare)","% andains"]
["Pente A",null,{"$f":"IFERROR(SUM($G$40:$G$41)*(1+VLOOKUP($A$83,'Majorations applicables'!$A$49:$B$53,2,FALSE)),0)","v":0},{"$f":"IFERROR($C$83-($G$40+$G$41),0)","v":0},{"$f":"IFERROR($F$83*(1-$G$83),0)","v":0}]
["Pente B",null,{"$f":"IFERROR(SUM($G$40:$G$41)*(1+VLOOKUP($A$84,'Majorations applicables'!$A$49:$B$53,2,FALSE)),0)","v":0},{"$f":"IFERROR($C$84-($G$40+$G$41),0)","v":0},{"$f":"IFERROR($F$84*(1-$G$84),0)","v":0}]
["Pente C",null,{"$f":"IFERROR(SUM($G$40:$G$41)*(1+VLOOKUP($A$85,'Majorations applicables'!$A$49:$B$53,2,FALSE)),0)","v":0},{"$f":"IFERROR($C$85-($G$40+$G$41),0)","v":0},{"$f":"IFERROR($F$85*(1-$G$85),0)","v":0}]
["Pente D",null,{"$f":"IFERROR(SUM($G$40:$G$41)*(1+VLOOKUP($A$86,'Majorations applicables'!$A$49:$B$53,2,FALSE)),0)","v":0},{"$f":"IFERROR($C$86-($G$40+$G$41),0)","v":0},{"$f":"IFERROR($F$86*(1-$G$86),0)","v":0}]
["Pente E et plus",null,{"$f":"IFERROR(SUM($G$40:$G$41)*(1+VLOOKUP($A$87,'Majorations applicables'!$A$49:$B$53,2,FALSE)),0)","v":0},{"$f":"IFERROR($C$87-($G$40+$G$41),0)","v":0},{"$f":"IFERROR($F$87*(1-$G$87),0)","v":0}]
[null,null,null,"Total",{"$f":"IFERROR(SUM($E$83:$E$87),0)","v":0},{"$f":"IFERROR(SUM($F$83:$F$87),0)","v":0},{"$f":"IFERROR((SUMPRODUCT($G$83:$G$87,$F$83:$F$87)/$F$88),0)","v":0}]
["Majoration pour la pente (PE2) - Élagage à des fins de qualité pour le pin blanc et le pin rouge"]
["Classe de pente numérique",null,"Taux calculé",null,"Écart",null,"Superficie (hectare)"]
["Pente A",null,{"$f":"IFERROR($G$47*(1+VLOOKUP($A$91,'Majorations applicables'!$A$49:$B$53,2,FALSE)),0)","v":0},null,{"$f":"IFERROR($C$91-$G$47,0)","v":0}]
["Pente B",null,{"$f":"IFERROR($G$47*(1+VLOOKUP($A$92,'Majorations applicables'!$A$49:$B$53,2,FALSE)),0)","v":0},null,{"$f":"IFERROR($C$92-$G$47,0)","v":0}]
["Pente C",null,{"$f":"IFERROR($G$47*(1+VLOOKUP($A$93,'Majorations applicables'!$A$49:$B$53,2,FALSE)),0)","v":0},null,{"$f":"IFERROR($C$93-$G$47,0)","v":0}]
["Pente D",null,{"$f":"IFERROR($G$47*(1+VLOOKUP($A$94,'Majorations applicables'!$A$49:$B$53,2,FALSE)),0)","v":0},null,{"$f":"IFERROR($C$94-$G$47,0)","v":0}]
["Pente E et plus",null,{"$f":"IFERROR($G$47*(1+VLOOKUP($A$95,'Majorations applicables'!$A$49:$B$53,2,FALSE)),0)","v":0},null,{"$f":"IFERROR($C$95-$G$47,0)","v":0}]
[null,null,null,null,"Total",null,{"$f":"IFERROR(SUM($G$91:$G$95),0)","v":0}]
["Majoration pour la pente (PE2) - Taille phytosanitaire"]
["Classe de pente numérique",null,"Taux calculé",null,"Écart",null,"Superficie (hectare)"]
["Pente A",null,{"$f":"IFERROR($G$53*(1+VLOOKUP($A$99,'Majorations applicables'!$A$49:$B$53,2,FALSE)),0)","v":0},null,{"$f":"IFERROR($C$99-$G$53,0)","v":0}]
["Pente B",null,{"$f":"IFERROR($G$53*(1+VLOOKUP($A$100,'Majorations applicables'!$A$49:$B$53,2,FALSE)),0)","v":0},null,{"$f":"IFERROR($C$100-$G$53,0)","v":0}]
["Pente C",null,{"$f":"IFERROR($G$53*(1+VLOOKUP($A$101,'Majorations applicables'!$A$49:$B$53,2,FALSE)),0)","v":0},null,{"$f":"IFERROR($C$101-$G$53,0)","v":0}]
["Pente D",null,{"$f":"IFERROR($G$53*(1+VLOOKUP($A$102,'Majorations applicables'!$A$49:$B$53,2,FALSE)),0)","v":0},null,{"$f":"IFERROR($C$102-$G$53,0)","v":0}]
["Pente E et plus",null,{"$f":"IFERROR($G$53*(1+VLOOKUP($A$103,'Majorations applicables'!$A$49:$B$53,2,FALSE)),0)","v":0},null,{"$f":"IFERROR($C$103-$G$53,0)","v":0}]
[null,null,null,null,"Total",null,{"$f":"IFERROR(SUM($G$99:$G$103),0)","v":0}]
["Majoration pour l'hébergement, le transport collectif et la distance ou la durée du déplacement (HEP, TC et DTEXE)"]
["Majoration pour l'hébergement, le transport collectif et la distance ou la durée du déplacement (HEP, TC et DTEXE) - Tous "]
["Hébergement (HEP) ou transport collectif (TC)",null,null,null,null,{"$f":"IF($G$107=\"\",\"\",IF($G$107=Menus!$A$447,Menus!$B$447,IF($G$107=Menus!$A$448,Menus!$B$448,IF($G$107=Menus!$A$449,Menus!$B$449,IF($G$107=Menus!$A$450,Menus!$B$450,IF($G$107<=Menus!$B$448,ROUND($G$107,4),\"Max \"&TEXT(Menus!$B$448,\"0,0%\")))))))","v":""}]
["Distance ou durée du déplacement (DTEXE)",null,null,null,null,{"$f":"IFERROR(VLOOKUP($G$108,Menus!$A$458:$B$460,2,FALSE),\"\")","v":""}]
["Majoration pour la certification (CEAF3 ou ISO3)"]
["Majoration pour la certification (CEAF3 ou ISO3) - Tous"]
["Certification (CEAF3 ou ISO3)",null,null,null,null,{"$f":"IFERROR(VLOOKUP($G$111,Menus!$A$468:$B$470,2,FALSE),\"\")","v":""}]
["Vérification"]
["Vérification - Tous"]
["Délimitation des secteurs (taux par kilomètre délimité)"]
["Nombre de kilomètres délimités"]
["Inventaire après traitement (taux par placette inventoriée)"]
["Nombre de placettes inventoriées"]
["Critère 5","Coefficient de distribution total des tiges résineuses ou des arbres d'avenir d'essence désirée (éclaircis, nettoyés, dégagés ou non)",null,null,{"$f":"IFERROR(SUM($F$118:$F$120)*'Calculs grille'!$M$137,0)","v":0},{"$f":"IF($G$118=\"Oui\",1,IF($G$118=\"Non\",0,\"\"))","v":""}]
[null,"Coefficient de distribution des arbres d'essence en raréfaction",null,null,null,{"$f":"IF($G$119=\"Oui\",1,IF($G$119=\"Non\",0,\"\"))","v":""}]
[null,"Coefficient de distribution des arbres feuillus d'essence commerciale",null,null,null,{"$f":"IF($G$120=\"Oui\",1,IF($G$120=\"Non\",0,\"\"))","v":""}]
["Critère 6","Arbre étude",null,null,{"$f":"IFERROR(SUM($F$121:$F$122)*'Calculs grille'!$M$139,0)","v":0},{"$f":"IF($G$121=\"Oui\",1,IF($G$121=\"Non\",0,\"\"))","v":""}]
[null,"Nombre de tiges résineuses  (éclaircies, nettoyées, dégagées ou non)",null,null,null,{"$f":"IF($G$122=\"Oui\",1,IF($G$122=\"Non\",0,\"\"))","v":""}]
["Nombre total de critères",null,null,null,null,null,{"$f":"SUM($F$118:$F$122)","v":0}]
["Vérification - Majoration pour l'hébergement et la distance ou la durée du déplacement (HPVTM et DTPVTM)"]
["Vérification - Majoration pour l'hébergement et la distance ou la durée du déplacement (HPVTM et DTPVTM) - Tous"]
["Hébergement (HPVTM)",null,null,null,null,{"$f":"IF($G$126=\"\",\"\",IF($G$126=Menus!$A$453,Menus!$B$453,IF($G$126=Menus!$A$454,Menus!$B$454,IF($G$126=Menus!$A$455,Menus!$B$455,IF($G$126<=Menus!$B$454,ROUND($G$126,4),\"Max \"&TEXT(Menus!$B$454,\"0,0%\"))))))","v":""}]
["Distance ou durée du déplacement (DTPVTM)",null,null,null,null,{"$f":"IFERROR(VLOOKUP($G$127,Menus!$A$463:$B$465,2,FALSE),\"\")","v":""}]
["Totaux"]
["Calculs - Dégagement mécanique"]
[{"$f":"IFERROR(IF(EXACT($G$17,Menus!$A$510),\"Taux d'exécution de base incluant la majoration DEGPM de \"&TEXT($F$17*1000,\"##,## %\"),\"Taux d'exécution de base\"),\"Taux d'exécution de base\")","v":"Taux d'exécution de base"},null,null,null,null,null,{"$f":"IFERROR($G$23,0)","v":0}]
["Taux PE2",null,null,null,null,null,{"$f":"IFERROR((SUMPRODUCT($D$59:$D$63,$E$59:$E$63)/$E$64),0)","v":0}]
["Taux sous-total exécution",null,null,null,null,null,{"$f":"IFERROR(SUM($G$130:$G$131),0)","v":0}]
["Taux HEP ou TC",null,null,null,null,null,{"$f":"IFERROR(($G$132*$F$107),0)","v":0}]
["Taux DTEXE",null,null,null,null,null,{"$f":"IFERROR(($G$132*$F$108),0)","v":0}]
["Taux CEAF3 ou ISO3",null,null,null,null,null,{"$f":"IFERROR((SUM($G$132:$G$134)*$F$111),0)","v":0}]
["Taux exécution total et majoration(s) admissible(s)",null,null,null,null,null,{"$f":"IFERROR((ROUND(SUM($G$132:$G$135),2)),0)","v":0}]
["Taux vérification",null,null,null,null,null,{"$f":"IFERROR(((($G$114*$G$115)+($G$116*$G$117)+SUM($F$118:$F$120)*'Calculs grille'!$M$137*$G$117+SUM($F$121:$F$122)*'Calculs grille'!M$139*$G$117)/$G$140),0)","v":0}]
["Taux HPVTM et/ou DTPVTM",null,null,null,null,null,{"$f":"IFERROR(($G$137*SUM($F$126:$F$127)),0)","v":0}]
["Taux exécution et vérification total (sur la base de la superficie nette)",null,null,null,null,null,{"$f":"IFERROR((ROUND(SUM($G$136:$G$138),2)),0)","v":0}]
["Superficie brute",null,null,null,null,null,{"$f":"IFERROR(ROUND($F$64,2),0)","v":0}]
["Superficie nette (excluant les andains)",null,null,null,null,null,{"$f":"IFERROR(ROUND($E$64,2),0)","v":0}]
["Total exécution",null,null,null,null,null,{"$f":"IFERROR(ROUND($G$136*$G$141,2),0)","v":0}]
["Total vérification",null,null,null,null,null,{"$f":"IFERROR(ROUND(SUM($G$137:$G$138)*$G$140,2),0)","v":0}]
["Grand total admissible",null,null,null,null,null,{"$f":"IFERROR(SUM($G$142:$G$143),0)","v":0}]
["Calculs - Nettoiement - scénario sylvicole de base"]
["Taux d'exécution de base",null,null,null,null,null,{"$f":"IFERROR($G$28,0)","v":0}]
["Taux PE2",null,null,null,null,null,{"$f":"IFERROR((SUMPRODUCT($D$67:$D$71,$E$67:$E$71)/$E$72),0)","v":0}]
["Taux sous-total exécution",null,null,null,null,null,{"$f":"IFERROR(SUM($G$146:$G$147),0)","v":0}]
["Taux HEP ou TC",null,null,null,null,null,{"$f":"IFERROR(($G$148*$F$107),0)","v":0}]
["Taux DTEXE",null,null,null,null,null,{"$f":"IFERROR(($G$148*$F$108),0)","v":0}]
["Taux CEAF3 ou ISO3",null,null,null,null,null,{"$f":"IFERROR((SUM($G$148:$G$150)*$F$111),0)","v":0}]
["Taux exécution total et majoration(s) admissible(s)",null,null,null,null,null,{"$f":"IFERROR((ROUND(SUM($G$148:$G$151),2)),0)","v":0}]
["Taux vérification",null,null,null,null,null,{"$f":"IFERROR(((($G$114*$G$115)+($G$116*$G$117)+SUM($F$118:$F$120)*'Calculs grille'!$M$137*$G$117+SUM($F$121:$F$122)*'Calculs grille'!M$139*$G$117)/$G$156),0)","v":0}]
["Taux HPVTM et/ou DTPVTM",null,null,null,null,null,{"$f":"IFERROR(($G$153*SUM($F$126:$F$127)),0)","v":0}]
["Taux exécution et vérification total (sur la base de la superficie nette)",null,null,null,null,null,{"$f":"IFERROR(ROUND(SUM($G$152:$G$154),2),0)","v":0}]
["Superficie brute",null,null,null,null,null,{"$f":"IFERROR(ROUND($F$72,2),0)","v":0}]
["Superficie nette (excluant les andains)",null,null,null,null,null,{"$f":"IFERROR(ROUND($E$72,2),0)","v":0}]
["Total exécution",null,null,null,null,null,{"$f":"IFERROR(ROUND($G$152*$G$157,2),0)","v":0}]
["Total vérification",null,null,null,null,null,{"$f":"IFERROR(ROUND(SUM($G$153:$G$154)*$G$156,2),0)","v":0}]
["Grand total admissible",null,null,null,null,null,{"$f":"IFERROR(SUM($G$158:$G$159),0)","v":0}]
["Calculs - Nettoiement et EPC systématique- scénario sylvicole intensif ou d'élite"]
["Taux d'exécution de base",null,null,null,null,null,{"$f":"IFERROR($G$33,0)","v":0}]
["Taux PE2",null,null,null,null,null,{"$f":"IFERROR((SUMPRODUCT($D$75:$D$79,$E$75:$E$79)/$E$80),0)","v":0}]
["Taux sous-total exécution",null,null,null,null,null,{"$f":"IFERROR(SUM($G$162:$G$163),0)","v":0}]
["Taux HEP ou TC",null,null,null,null,null,{"$f":"IFERROR(($G$164*$F$107),0)","v":0}]
["Taux DTEXE",null,null,null,null,null,{"$f":"IFERROR(($G$164*$F$108),0)","v":0}]
["Taux CEAF3 ou ISO3",null,null,null,null,null,{"$f":"IFERROR((SUM($G$164:$G$166)*$F$111),0)","v":0}]
["Taux exécution total et majoration(s) admissible(s)",null,null,null,null,null,{"$f":"IFERROR((ROUND(SUM($G$164:$G$167),2)),0)","v":0}]
["Taux vérification",null,null,null,null,null,{"$f":"IFERROR(((($G$114*$G$115)+($G$116*$G$117)+SUM($F$118:$F$120)*'Calculs grille'!$M$137*$G$117+SUM($F$121:$F$122)*'Calculs grille'!M$139*$G$117)/$G$172),0)","v":0}]
["Taux HPVTM et/ou DTPVTM",null,null,null,null,null,{"$f":"IFERROR(($G$169*SUM($F$126:$F$127)),0)","v":0}]
["Taux exécution et vérification total (sur la base de la superficie nette)",null,null,null,null,null,{"$f":"IFERROR((ROUND(SUM($G$168:$G$170),2)),0)","v":0}]
["Superficie brute",null,null,null,null,null,{"$f":"IFERROR(ROUND($F$80,2),0)","v":0}]
["Superficie nette (excluant les andains)",null,null,null,null,null,{"$f":"IFERROR(ROUND($E$80,2),0)","v":0}]
["Total exécution",null,null,null,null,null,{"$f":"IFERROR(ROUND($G$168*$G$173,2),0)","v":0}]
["Total vérification",null,null,null,null,null,{"$f":"IFERROR(ROUND(SUM($G$169:$G$170)*$G$172,2),0)","v":0}]
["Grand total admissible",null,null,null,null,null,{"$f":"IFERROR(SUM($G$174:$G$175),0)","v":0}]
["Calculs - EPC par puit de lumière ET Taille de formation avec martelage"]
["Taux d'exécution de base",null,null,null,null,null,{"$f":"IFERROR(SUM($G$40:$G$41),0)","v":0}]
["Taux PE2",null,null,null,null,null,{"$f":"IFERROR((SUMPRODUCT($D$83:$D$87,$E$83:$E$87)/$E$88),0)","v":0}]
["Taux sous-total exécution",null,null,null,null,null,{"$f":"IFERROR(SUM($G$178:$G$179),0)","v":0}]
["Taux HEP ou TC",null,null,null,null,null,{"$f":"IFERROR(($G$180*$F$107),0)","v":0}]
["Taux DTEXE",null,null,null,null,null,{"$f":"IFERROR(($G$180*$F$108),0)","v":0}]
["Taux CEAF3 ou ISO3",null,null,null,null,null,{"$f":"IFERROR((SUM($G$180:$G$182)*$F$111),0)","v":0}]
["Taux exécution total et majoration(s) admissible(s)",null,null,null,null,null,{"$f":"IFERROR((ROUND(SUM($G$180:$G$183),2)),0)","v":0}]
["Taux vérification",null,null,null,null,null,{"$f":"IFERROR(((($G$114*$G$115)+($G$116*$G$117)+SUM($F$118:$F$120)*'Calculs grille'!$M$137*$G$117+SUM($F$121:$F$122)*'Calculs grille'!M$139*$G$117)/$G$188),0)","v":0}]
["Taux HPVTM et/ou DTPVTM",null,null,null,null,null,{"$f":"IFERROR(($G$185*SUM($F$126:$F$127)),0)","v":0}]
["Taux exécution et vérification total (sur la base de la superficie nette)",null,null,null,null,null,{"$f":"IFERROR((ROUND(SUM($G$184:$G$186),2)),0)","v":0}]
["Superficie brute",null,null,null,null,null,{"$f":"IFERROR(ROUND($F$88,2),0)","v":0}]
["Superficie nette (excluant les andains)",null,null,null,null,null,{"$f":"IFERROR(ROUND($E$88,2),0)","v":0}]
["Total exécution",null,null,null,null,null,{"$f":"IFERROR(ROUND($G$184*$G$189,2),0)","v":0}]
["Total vérification",null,null,null,null,null,{"$f":"IFERROR(ROUND(SUM($G$185:$G$186)*$G$188,2),0)","v":0}]
["Grand total admissible",null,null,null,null,null,{"$f":"IFERROR(SUM($G$190:$G$191),0)","v":0}]
["Calculs - Élagage à des fins de qualité pour le pin blanc et le pin rouge"]
["Taux d'exécution de base",null,null,null,null,null,{"$f":"IFERROR($G$47,0)","v":0}]
["Taux PE2",null,null,null,null,null,{"$f":"IFERROR((SUMPRODUCT($E$91:$E$95,$G$91:$G$95)/$G$96),0)","v":0}]
["Taux sous-total exécution",null,null,null,null,null,{"$f":"IFERROR(SUM($G$194:$G$195),0)","v":0}]
["Taux HEP ou TC",null,null,null,null,null,{"$f":"IFERROR(($G$196*$F$107),0)","v":0}]
["Taux DTEXE",null,null,null,null,null,{"$f":"IFERROR(($G$196*$F$108),0)","v":0}]
["Taux CEAF3 ou ISO3",null,null,null,null,null,{"$f":"IFERROR((SUM($G$196:$G$198)*F$111),0)","v":0}]
["Taux exécution total et majoration(s) admissible(s)",null,null,null,null,null,{"$f":"IFERROR((ROUND(SUM($G$196:$G$199),2)),0)","v":0}]
["Taux vérification",null,null,null,null,null,{"$f":"IFERROR(((($G$114*$G$115)+($G$116*$G$117)+SUM($F$118:$F$120)*'Calculs grille'!$M$137*$G$117+SUM($F$121:$F$122)*'Calculs grille'!M$139*$G$117)/$G$204),0)","v":0}]
["Taux HPVTM et/ou DTPVTM",null,null,null,null,null,{"$f":"IFERROR(($G$201*SUM($F$126:$F$127)),0)","v":0}]
["Taux exécution et vérification total",null,null,null,null,null,{"$f":"IFERROR((ROUND(SUM($G$200:$G$202),2)),0)","v":0}]
["Superficie",null,null,null,null,null,{"$f":"IFERROR(ROUND($G$96,2),0)","v":0}]
["Total exécution",null,null,null,null,null,{"$f":"IFERROR(ROUND($G$200*$G$204,2),0)","v":0}]
["Total vérification",null,null,null,null,null,{"$f":"IFERROR(ROUND(SUM($G$201:$G$202)*$G$204,2),0)","v":0}]
["Grand total admissible",null,null,null,null,null,{"$f":"IFERROR(SUM($G$205:$G$206),0)","v":0}]
["Calculs - Taille phytosanitaire"]
["Taux d'exécution de base",null,null,null,null,null,{"$f":"IFERROR($G$53,0)","v":0}]
["Taux PE2",null,null,null,null,null,{"$f":"IFERROR((SUMPRODUCT($E$99:$E$103,$G$99:$G$103)/$G$104),0)","v":0}]
["Taux sous-total exécution",null,null,null,null,null,{"$f":"IFERROR(SUM($G$209:$G$210),0)","v":0}]
["Taux HEP ou TC",null,null,null,null,null,{"$f":"IFERROR(($G$211*$F$107),0)","v":0}]
["Taux DTEXE",null,null,null,null,null,{"$f":"IFERROR(($G$211*$F$108),0)","v":0}]
["Taux CEAF3 ou ISO3",null,null,null,null,null,{"$f":"IFERROR((SUM($G$211:$G$213)*$F$111),0)","v":0}]
["Taux exécution total et majoration(s) admissible(s)",null,null,null,null,null,{"$f":"IFERROR((ROUND(SUM($G$211:$G$214),2)),0)","v":0}]
["Taux vérification",null,null,null,null,null,{"$f":"IFERROR(((($G$114*$G$115)+($G$116*$G$117)+SUM($F$118:$F$120)*'Calculs grille'!$M$137*$G$117+SUM($F$121:$F$122)*'Calculs grille'!M$139*$G$117)/$G$219),0)","v":0}]
["Taux HPVTM et/ou DTPVTM",null,null,null,null,null,{"$f":"IFERROR(($G$216*SUM($F$126:$F$127)),0)","v":0}]
["Taux exécution et vérification total",null,null,null,null,null,{"$f":"IFERROR((ROUND(SUM($G$215:$G$217),2)),0)","v":0}]
["Superficie",null,null,null,null,null,{"$f":"IFERROR(ROUND($G$104,2),0)","v":0}]
["Total exécution",null,null,null,null,null,{"$f":"IFERROR(ROUND($G$215*$G$219,2),0)","v":0}]
["Total vérification",null,null,null,null,null,{"$f":"IFERROR(ROUND(SUM($G$216:$G$217)*$G$219,2),0)","v":0}]
["Grand total admissible",null,null,null,null,null,{"$f":"IFERROR(SUM($G$220:$G$221),0)","v":0}]
[]
["Remarques"]
[]
["J'atteste que les renseignements fournis dans ce document afin de calculer le taux du traitement sont complets et conformes à la vérité, au meilleur de mes connaissances."]
[]
[]
[]
["Nom et prénom de l'ingénieur forestier",null,null,null,null,null,"Numéro de permis"]
[null,null,null,null,null,null,{"$f":"TODAY()","v":"2020-04-02"}]
[]
["Signature de l'ingénieur forestier",null,null,null,null,null,"Date (AAAA-MM-JJ)"]
[]
[]
["Section réservée au suivi du contrat"]
[]
[null,"Numéro de la prescription :",{"$f":"IF($G$8<>\"\",$G$8,\"\")","v":""}]
[]
[null,"Numéro du contrat :"]
[null,"Numéro du projet :"]
[null,"U.G. :"]
[null,"MRC :"]
[null,"Code de traitement DICA : ",{"$f":"IF($G$9<>\"\",$G$9,\"\")","v":""}]
[null,"Code de traitement RATF :",{"$f":"IF($G$10<>\"\",$G$10,\"\")","v":""}]
[null,"Type d'attribution :"]
[null,{"$f":"IF($D$247=Menus!$A$668,\"Taux AO (avec vérif.) :\",IF($D$247=Menus!$A$669,\"Taux AO (sans vérif.) :\",\"Taux AO :\"))","v":"Taux AO :"},null,"Inscrire une valeur"]
[null,{"$f":"IFERROR(IF($D$247=Menus!$A$669,\"Taux Grille (sans vérif.) :\",\"Taux Grille (avec vérif.) :\"),\"Taux Grille (avec vérif.) :\")","v":"Taux Grille (avec vérif.) :"},{"$f":"IFERROR(IF(OR($D$247=\"\",$D$247=Menus!$A$670),VLOOKUP($G$12,RXF!$A$1:$G$34,3,FALSE),IF($D$247=Menus!$A$668,VLOOKUP($G$12,RXF!$A$1:$G$34,3,FALSE),IF($D$247=Menus!$A$669,VLOOKUP($G$12,RXF!$A$1:$G$34,4,FALSE)))),0)","v":0}]
[null,"Ratio AO/Grille :",{"$f":"IFERROR(IF(AND($C$247<>\"\",$C$248>0),ROUND($C$247/$C$248,4),\"S/O\"),\"\")","v":"S/O"}]
[null,"Grand total AO :",{"$f":"IFERROR(IF(OR($C$247=\"\",$C$248=0),\"S/O\",IF(AND($C$247>0,OR($D$247=Menus!$A$668,$D$247=Menus!$A$670)),ROUND(VLOOKUP($G$12,RXF!$A$1:$G$34,5,FALSE)*$C$249,2),IF(AND($C$247>0,$D$247=Menus!$A$669),ROUND(VLOOKUP($G$12,RXF!$A$1:$G$34,7,FALSE)*$C$249,2)))),\"\")","v":"S/O"}]
[null,"Nom de l'entrepreneur :"]
[null,"Numéro de fournisseur :"]
[null,"Date de début :"]
[null,"Date de fin :"]
[null,"Commentaires :"]

{"sheet":"Éclaircie commerciale EAF","index":4,"n_rows":81,"n_cols":7,"rows_kept":81,"cut":false,"hidden":true,"merged":[[36,0,36,4],[32,4,32,5],[32,0,32,3],[33,0,33,6],[35,0,35,6],[34,0,34,4],[31,0,31,1],[31,2,31,3],[29,0,29,1],[30,0,30,1],[29,2,29,3],[30,2,30,3],[29,4,29,5],[30,4,30,5],[31,4,31,5],[12,0,12,5],[13,0,13,5],[19,1,19,5],[20,0,20,5],[22,0,22,6],[23,0,23,6],[26,0,26,1],[27,0,27,1],[28,0,28,1],[26,4,26,5],[24,0,24,6],[25,0,25,6],[27,4,27,5],[6,0,6,5],[7,0,7,5],[8,0,8,5],[11,0,11,5],[10,0,10,6],[9,0,9,3],[9,4,9,5],[28,4,28,5],[26,2,26,3],[27,2,27,3],[28,2,28,3],[21,0,21,5],[14,0,14,6],[15,0,15,6],[16,0,16,6],[17,0,17,6],[18,1,18,5],[5,0,5,5],[0,0,0,6],[3,0,3,6],[4,0,4,5],[2,0,2,5],[1,0,1,6],[37,0,37,6],[38,0,38,6],[39,0,39,5],[42,0,42,5],[40,0,40,5],[41,0,41,5],[46,0,46,5],[47,0,47,5],[43,0,43,5],[45,0,45,5],[44,0,44,5],[72,3,72,4],[63,2,64,4],[48,0,48,6],[51,0,51,6],[61,0,61,4],[52,0,54,5],[52,6,54,6],[55,0,55,5],[56,0,57,5],[56,6,57,6],[58,0,58,5],[50,0,50,6],[49,0,49,6]]}
[]
["Annexe au calcul des taux des traitements non commerciaux 2020-2021\nÉclaircie commerciale EAF (réservé aux entreprises d'aménagement forestier)\nForêt publique"]
[" *** Veuillez saisir les informations dans les cellules blanches seulement ***",null,null,null,null,null,"Version 3 : 2020-04-02"]
["Identification"]
["Unité d'aménagement (UA)"]
["Secteur d'intervention"]
["Unité de compilation"]
["Numéro de la prescription"]
["Traitement (code DICA)"]
["Traitement (code RATF)",null,null,null,{"$f":"IFERROR(VLOOKUP($G$9,Menus!$A$546:$D$553,3,FALSE),Menus!$C$553)","v":"ECEAF_Codes_RATF"}]
["Traitement d'éclaircie commerciale à taux variable"]
["Traitement",null,null,null,null,null,"Inscrire une valeur"]
["Taux de base",null,null,null,null,null,{"$f":"IFERROR(VLOOKUP($G$12,Menus!$A$516:$C$517,2,FALSE),\"\")","v":0}]
["Unité de mesure",null,null,null,null,null,{"$f":"IFERROR(VLOOKUP($G$12,Menus!$A$516:$C$517,3,FALSE),\"\")","v":"-"}]
["Taux d'exécution à déterminer selon la formule suivante"]
[{"$f":"IF($G$12=Formules!$B$13,Formules!$D$13,\"\")","v":""}]
[{"$f":"\"Valeurs spécifiques à remplir selon le traitement - \"&G12&\" - Voir l'onglet « Étapes calcul majoration »\"","v":"Valeurs spécifiques à remplir selon le traitement - Inscrire une valeur - Voir l'onglet « Étapes calcul majoration »"}]
["Valeurs spécifiques à remplir selon le traitement - Éclaircie commerciale EAF"]
["P","Volume net à prélever (m³/hectare)"]
["VREC","Volume moyen des tiges à récolter (m³/tige)"]
["Taux par mètre cube calculé à partir de l'équation et des variables reliées au traitement",null,null,null,null,null,{"$f":"IFERROR(IF(ISBLANK($G$20),0,(('Calculs grille'!$M$122*$G$20^'Calculs grille'!$M$123)+'Calculs grille'!$M$124)+'Calculs grille'!$M$126/$G$19),0)","v":0}]
["Taux par hectare calculé à partir de l'équation et des variables reliées au traitement",null,null,null,null,null,{"$f":"IFERROR(($G$19*$G$21),0)","v":0}]
[{"$f":"\"Majorations applicables à l'exécution - \"&$G$12&\" - Voir l'onglet « Étapes calcul majoration »\"","v":"Majorations applicables à l'exécution - Inscrire une valeur - Voir l'onglet « Étapes calcul majoration »"}]
[{"$f":"IF($G$12='Majorations applicables'!$B$30,'Majorations applicables'!$K$30,\"\")","v":""}]
["Majoration pour la pente (PE2)"]
["Majoration pour la pente (PE2) - Éclaircie commerciale EAF"]
["Classe de pente numérique",null,"Taux calculé",null,"Écart",null,"Superficie (hectare)"]
["Pente A",null,{"$f":"IFERROR($G$22*(1+VLOOKUP($A$28,'Majorations applicables'!$A$49:$B$53,2,FALSE)),0)","v":0},null,{"$f":"IFERROR($C$28-$G$22,0)","v":0}]
["Pente B",null,{"$f":"IFERROR($G$22*(1+VLOOKUP($A$29,'Majorations applicables'!$A$49:$B$53,2,FALSE)),0)","v":0},null,{"$f":"IFERROR($C$29-$G$22,0)","v":0}]
["Pente C",null,{"$f":"IFERROR($G$22*(1+VLOOKUP($A$30,'Majorations applicables'!$A$49:$B$53,2,FALSE)),0)","v":0},null,{"$f":"IFERROR($C$30-$G$22,0)","v":0}]
["Pente D",null,{"$f":"IFERROR($G$22*(1+VLOOKUP($A$31,'Majorations applicables'!$A$49:$B$53,2,FALSE)),0)","v":0},null,{"$f":"IFERROR($C$31-$G$22,0)","v":0}]
["Pente E et plus",null,{"$f":"IFERROR($G$22*(1+VLOOKUP($A$32,'Majorations applicables'!$A$49:$B$53,2,FALSE)),0)","v":0},null,{"$f":"IFERROR($C$32-$G$22,0)","v":0}]
[null,null,null,null,"Total",null,{"$f":"IFERROR(SUM($G$28:$G$32),0)","v":0}]
["Majoration pour les opérations manuelles (MAN)"]
["Type d'opérations",null,null,null,null,{"$f":"IFERROR(VLOOKUP($G$35,Menus!$A$524:$B$525,2,FALSE),\"\")","v":""}]
["Majoration pour l'hébergement (HECEAF)"]
["Hébergement (HECEAF)",null,null,null,null,{"$f":"IFERROR(VLOOKUP($G$37,Menus!$A$520:$B$521,2,FALSE),\"\")","v":""}]
["Totaux"]
["Calculs -  Éclaircie commerciale EAF"]
["Taux d'exécution par mètre cube",null,null,null,null,null,{"$f":"IFERROR($G$21,0)","v":0}]
["Taux d'exécution par hectare",null,null,null,null,null,{"$f":"IFERROR($G$22,0)","v":0}]
["Taux PE2",null,null,null,null,null,{"$f":"IFERROR((SUMPRODUCT($E$28:$E$32,$G$28:$G$32)/$G$33),0)","v":0}]
["Taux sous-total exécution",null,null,null,null,null,{"$f":"IFERROR(ROUND(SUM($G$41:$G$42),2),0)","v":0}]
["Taux MAN",null,null,null,null,null,{"$f":"IFERROR(($G$43*$F$35),0)","v":0}]
["Taux HECEAF",null,null,null,null,null,{"$f":"IFERROR((SUM($G$43:$G$44)*$F$37),0)","v":0}]
["Taux exécution total et majoration(s) admissible(s)",null,null,null,null,null,{"$f":"IFERROR(ROUND(SUM($G$43:$G$45),2),0)","v":0}]
["Superficie",null,null,null,null,null,{"$f":"IFERROR(ROUND($G$33,2),0)","v":0}]
["Grand total admissible",null,null,null,null,null,{"$f":"IFERROR(ROUND($G$46*$G$47,2),0)","v":0}]
[]
["Remarques"]
[]
["J'atteste que les renseignements fournis dans ce document afin de calculer le taux du traitement sont complets et conformes à la vérité, au meilleur de mes connaissances."]
[]
[]
[]
["Nom et prénom de l'ingénieur forestier",null,null,null,null,null,"Numéro de permis"]
[null,null,null,null,null,null,{"$f":"TODAY()","v":"2020-04-02"}]
[]
["Signature de l'ingénieur forestier",null,null,null,null,null,"Date (AAAA-MM-JJ)"]
[]
[]
["Section réservée au suivi du contrat"]
[]
[null,"Numéro de la prescription :",{"$f":"IF($G$8<>\"\",$G$8,\"\")","v":""}]
[]
[null,"Numéro du contrat :"]
[null,"Numéro du projet :"]
[null,"U.G. :"]
[null,"MRC :"]
[null,"Code de traitement DICA :",{"$f":"IF($G$9<>\"\",$G$9,\"\")","v":""}]
[null,"Code de traitement RATF :",{"$f":"IF($G$10<>\"\",$G$10,\"\")","v":""}]
[null,"Type d'attribution : "]
[null,"Taux AO : "]
[null,"Taux Grille :",{"$f":"IFERROR(VLOOKUP($G$12,RXF!$A$1:$G$34,3,FALSE),0)","v":0}]
[null,"Ratio AO/Grille :",{"$f":"IFERROR(IF(AND($C$73<>\"\",$C$74>0),ROUND($C$73/$C$74,4),\"S/O\"),\"\")","v":"S/O"}]
[null,"Grand total AO :",{"$f":"IFERROR(IF(OR($C$73=\"\",$C$74=0),\"S/O\",ROUND(VLOOKUP($G$12,RXF!$A$1:$G$30,5,FALSE)*$C$75,2)),\"\")","v":"S/O"}]
[null,"Nom de l'entrepreneur : "]
[null,"Numéro de fournisseur : "]
[null,"Date de début :"]
[null,"Date de fin :"]
[null,"Commentaires :"]

{"sheet":"Martelage","index":5,"n_rows":94,"n_cols":7,"rows_kept":94,"cut":false,"hidden":true,"merged":[[71,0,71,5],[74,0,74,4],[76,2,77,4],[1,0,1,6],[85,3,85,4],[64,0,64,6],[65,0,67,5],[65,6,67,6],[68,0,68,5],[69,0,70,5],[69,6,70,6],[58,0,58,5],[59,0,59,5],[60,0,60,5],[61,0,61,6],[62,0,62,6],[63,0,63,6],[52,0,52,5],[53,0,53,5],[54,0,54,5],[55,0,55,5],[56,0,56,5],[57,0,57,5],[51,0,51,5],[40,0,40,5],[41,0,41,5],[42,0,42,5],[43,0,43,5],[44,0,44,5],[45,0,45,5],[46,0,46,5],[47,0,47,5],[48,0,48,5],[49,0,49,6],[50,0,50,5],[39,0,39,5],[28,0,28,6],[29,0,29,5],[30,0,30,5],[31,0,31,5],[32,0,32,5],[33,0,33,6],[34,0,34,4],[35,0,35,4],[36,0,36,6],[37,0,37,6],[38,0,38,5],[27,0,27,6],[16,0,16,6],[17,0,17,6],[18,1,18,5],[19,1,19,5],[20,1,20,3],[21,0,21,5],[22,0,22,6],[23,0,23,6],[24,0,24,6],[25,0,25,4],[26,0,26,4],[15,0,15,5],[6,0,6,5],[7,0,7,5],[8,0,8,6],[9,0,9,5],[10,0,10,5],[11,0,11,5],[12,0,12,6],[13,0,13,6],[14,0,14,6],[0,0,0,6],[2,0,2,5],[3,0,3,6],[4,0,4,5],[5,0,5,5]]}
[]
["Annexe au calcul des taux des traitements non commerciaux 2020-2021          \nMartelage\nForêt publique"]
[" *** Veuillez saisir les informations dans les cellules blanches seulement ***",null,null,null,null,null,"Version 3 : 2020-04-02"]
["Identification"]
["Unité d'aménagement (UA)"]
["Secteur d'intervention"]
["Unité de compilation"]
["Numéro de la prescription"]
["Traitement de martelage à taux fixe ou variable"]
["Traitement",null,null,null,null,null,"Inscrire une valeur"]
["Taux de base",null,null,null,null,null,{"$f":"IF(ISNA(VLOOKUP($G$10,Menus!$A$558:$C$561,2,FALSE)),\"\",VLOOKUP($G$10,Menus!$A$558:$C$561,2,FALSE))","v":0}]
["Unité de mesure",null,null,null,null,null,{"$f":"IF(ISNA(VLOOKUP($G$10,Menus!$A$558:$C$561,3,FALSE)),\"\",VLOOKUP($G$10,Menus!$A$558:$C$561,3,FALSE))","v":"-"}]
["Taux d'exécution à déterminer selon la formule suivante"]
[{"$f":"IF($G$10=Formules!$B$14,Formules!$D$14,\"\")","v":""}]
["Superficie"]
["Superficie du traitement (hectares)"]
[{"$f":"\"Valeurs spécifiques à remplir selon le traitement - \"&G10&\" - Voir l'onglet « Étapes calcul majoration »\"","v":"Valeurs spécifiques à remplir selon le traitement - Inscrire une valeur - Voir l'onglet « Étapes calcul majoration »"}]
["Valeurs spécifiques à remplir selon le traitement - Martelage"]
["PF","Proportion de feuillus (surface terrière des feuillus commerciaux par rapport à la surface terrière totale du peuplement)"]
["NbMSCROP","Nombre de priorité de récolte combinant MSCR et OP\nValeur de 0 à 8 : MO-MP-SO-SP-CO-CP-RO-RP\n\nPour les directives de martelage faisant référence à une classification MSCR- SciagePâte et MSCR-ABCD, la correspondance est la suivante :\nMSCR-SciagePâte \n- MO-SO-CO-RO : MSciage-SSciage-CSciage-RSciage\n- MP-SP-CP-RP : MPâte-SPâte-CPâte-RPâte\nMSCR-ABCD \n- MO-SO-CO-RO : MABC-SABC-CABC-RABC\n- MP-SP-CP-RP : MD-SD-CD-RD"]
["TC","Type de coupe",null,null,"Valeur",{"$f":"IF(ISNA(VLOOKUP($G$21,Menus!$A$564:$B$568,2,FALSE)),\"\",VLOOKUP($G$21,Menus!$A$564:$B$568,2,FALSE))","v":""}]
["Taux par hectare calculé à partir de l'équation et des variables reliées à l'activité",null,null,null,null,null,{"$f":"IFERROR((('Calculs grille'!$M$165-('Calculs grille'!$M$166*$G$19)+('Calculs grille'!$M$167*$G$20))*$F$21),0)","v":0}]
[{"$f":"\"Majorations applicables à l'exécution - \"&$G$10","v":"Majorations applicables à l'exécution - Inscrire une valeur"}]
[{"$f":"IF($G$10='Majorations applicables'!$B$31,'Majorations applicables'!$K$31,IF($G$10='Majorations applicables'!$B$32,'Majorations applicables'!$K$32,IF($G$10='Majorations applicables'!$B$33,'Majorations applicables'!$K$33,\"\")))","v":""}]
["Majoration pour l'hébergement et la distance ou la durée du déplacement (HPVTM et DTPVTM)"]
["Hébergement (HPVTM)",null,null,null,null,{"$f":"IF($G$26=\"\",\"\",IF($G$26=Menus!$A$571,Menus!$B$571,IF($G$26=Menus!$A$572,Menus!$B$572,IF($G$26=Menus!$A$573,Menus!$B$573,IF($G$26<=Menus!$B$572,ROUND($G$26,4),\"Max \"&TEXT(Menus!$B$572,\"0,0%\"))))))","v":""}]
["Distance ou durée du déplacement (DTPVTM)",null,null,null,null,{"$f":"IFERROR(VLOOKUP($G$27,Menus!$A$576:$B$578,2,FALSE),\"\")","v":""}]
["Vérification"]
["Vérification - Tous"]
["Délimitation des secteurs (taux par kilomètre délimité)"]
["Nombre de kilomètres délimités"]
["Inventaire après traitement (taux par placette inventoriée)"]
["Nombre de placettes inventoriées"]
["Vérification - Majoration pour l'hébergement et la distance ou la durée du déplacement (HPVTM et DTPVTM)"]
["Hébergement (HPVTM)",null,null,null,null,{"$f":"IF($G$35=\"\",\"\",IF($G$35=Menus!$A$571,Menus!$B$571,IF($G$35=Menus!$A$572,Menus!$B$572,IF($G$35=Menus!$A$573,Menus!$B$573,IF($G$35<=Menus!$B$572,ROUND($G$35,4),\"Max \"&TEXT(Menus!$B$572,\"0,0%\"))))))","v":""}]
["Distance ou durée du déplacement (DTPVTM)",null,null,null,null,{"$f":"IFERROR(VLOOKUP($G$36,Menus!$A$576:$B$578,2,FALSE),\"\")","v":""}]
["Totaux"]
["Calculs -  Martelage"]
["Taux d'exécution de base",null,null,null,null,null,{"$f":"IFERROR($G$22,0)","v":0}]
["Taux HPVTM",null,null,null,null,null,{"$f":"IFERROR(($G$39*$F$26),0)","v":0}]
["Taux DTPVTM",null,null,null,null,null,{"$f":"IFERROR(($G$39*$F$27),0)","v":0}]
["Taux exécution total et majoration(s) admissible(s)",null,null,null,null,null,{"$f":"IFERROR((ROUND(SUM($G$39:$G$41),2)),0)","v":0}]
["Taux vérification",null,null,null,null,null,{"$f":"IFERROR(((($G$30*$G$31)+($G$32*$G$33))/$G$16),0)","v":0}]
["Taux HPVTM et/ou DTPVTM",null,null,null,null,null,{"$f":"IFERROR(($G$43*SUM($F$35:$F$36)),0)","v":0}]
["Taux exécution et vérification total",null,null,null,null,null,{"$f":"IFERROR((ROUND(SUM($G$42:$G$44),2)),0)","v":0}]
["Superficie",null,null,null,null,null,{"$f":"IFERROR($G$16,0)","v":0}]
["Total exécution",null,null,null,null,null,{"$f":"IFERROR(ROUND($G$42*$G$46,2),0)","v":0}]
["Total vérification",null,null,null,null,null,{"$f":"IFERROR(ROUND(SUM($G$43:$G$44)*$G$46,2),0)","v":0}]
["Grand total admissible",null,null,null,null,null,{"$f":"IFERROR(SUM($G$47:$G$48),0)","v":0}]
["Calculs - Martelage positif et négatif  - EC (résineux ou mixte résineux)"]
["Taux d'exécution de base",null,null,null,null,null,{"$f":"IFERROR($G$11,0)","v":0}]
["Taux HPVTM",null,null,null,null,null,{"$f":"IFERROR(($G$51*$F$26),0)","v":0}]
["Taux DTPVTM",null,null,null,null,null,{"$f":"IFERROR(($G$51*$F$27),0)","v":0}]
["Taux exécution total et majoration(s) admissible(s)",null,null,null,null,null,{"$f":"IFERROR((ROUND(SUM($G$51:$G$53),2)),0)","v":0}]
["Taux vérification",null,null,null,null,null,{"$f":"IFERROR(((($G$30*$G$31)+($G$32*$G$33))/$G$16),0)","v":0}]
["Taux HPVTM et/ou DTPVTM",null,null,null,null,null,{"$f":"IFERROR(($G$55*SUM($F$35:$F$36)),0)","v":0}]
["Taux exécution et vérification total",null,null,null,null,null,{"$f":"IFERROR((ROUND(SUM($G$54:$G$56),2)),0)","v":0}]
["Superficie",null,null,null,null,null,{"$f":"IFERROR($G$16,0)","v":0}]
["Total exécution",null,null,null,null,null,{"$f":"IFERROR(ROUND($G$54*$G$58,2),0)","v":0}]
["Total vérification",null,null,null,null,null,{"$f":"IFERROR(ROUND(SUM($G$55:$G$56)*$G$58,2),0)","v":0}]
["Grand total admissible",null,null,null,null,null,{"$f":"IFERROR(SUM($G$59:$G$60),0)","v":0}]
[]
["Remarques"]
[]
["J'atteste que les renseignements fournis dans ce document afin de calculer le taux du traitement sont complets et conformes à la vérité, au meilleur de mes connaissances."]
[]
[]
[]
["Nom et prénom de l'ingénieur forestier",null,null,null,null,null,"Numéro de permis"]
[null,null,null,null,null,null,{"$f":"TODAY()","v":"2020-04-02"}]
[]
["Signature de l'ingénieur forestier",null,null,null,null,null,"Date (AAAA-MM-JJ)"]
[]
[]
["Section réservée au suivi du contrat"]
[]
[null,"Numéro de la prescription :",{"$f":"IF($G$8<>\"\",$G$8,\"\")","v":""}]
[]
[null,"Numéro du contrat :"]
[null,"Numéro du projet :"]
[null,"U.G. :"]
[null,"MRC :"]
[null,"Code de traitement DICA :"]
[null,"Code de traitement RATF :"]
[null,"Type d'attribution : "]
[null,"Taux AO : ",null,"Inscrire une valeur"]
[null,{"$f":"IFERROR(IF($D$86=Menus!$A$669,\"Taux Grille (sans vérif.) :\",\"Taux Grille (avec vérif.) :\"),\"Taux Grille (avec vérif.) :\")","v":"Taux Grille (avec vérif.) :"},{"$f":"IFERROR(IF(OR($D$86=\"\",$D$86=Menus!$A$670),VLOOKUP($G$10,RXF!$A$1:$G$34,3,FALSE),IF($D$86=Menus!$A$668,VLOOKUP($G$10,RXF!$A$1:$G$34,3,FALSE),IF($D$86=Menus!$A$669,VLOOKUP($G$10,RXF!$A$1:$G$34,4,FALSE)))),0)","v":0}]
[null,"Ratio AO/Grille :",{"$f":"IFERROR(IF(AND($C$86<>\"\",$C$87>0),ROUND($C$86/$C$87,4),\"S/O\"),\"\")","v":"S/O"}]
[null,"Grand total AO :",{"$f":"IFERROR(IF(OR($C$86=\"\",$C$87=0),\"S/O\",IF(AND($C$86>0,OR($D$86=Menus!$A$668,$D$86=Menus!$A$670)),ROUND(VLOOKUP($G$10,RXF!$A$1:$G$34,5,FALSE)*$C$88,2),IF(AND($C$86>0,$D$86=Menus!$A$669),ROUND(VLOOKUP($G$10,RXF!$A$1:$G$34,7,FALSE)*$C$88,2)))),\"\")","v":"S/O"}]
[null,"Nom de l'entrepreneur : "]
[null,"Numéro de fournisseur : "]
[null,"Date de début :"]
[null,"Date de fin :"]
[null,"Commentaires :"]

{"sheet":"Travaux de planif et techniques","index":6,"n_rows":105,"n_cols":7,"rows_kept":105,"cut":false,"hidden":true,"merged":[[66,0,66,4],[73,0,73,6],[74,0,74,6],[82,0,82,5],[76,0,78,5],[21,0,21,6],[32,0,32,1],[39,2,39,3],[33,0,33,1],[33,3,33,4],[27,0,31,0],[37,0,39,0],[37,1,39,1],[36,1,36,6],[25,0,25,6],[27,1,30,1],[27,2,27,3],[28,2,28,3],[29,2,29,3],[31,2,31,3],[34,0,34,6],[32,3,32,4],[23,3,23,4],[23,0,23,1],[0,0,0,6],[4,0,4,5],[2,0,2,5],[5,0,5,5],[1,0,1,6],[3,0,3,5],[10,0,10,1],[11,0,11,1],[12,0,12,1],[6,0,6,5],[7,0,7,5],[9,0,9,1],[9,3,9,4],[12,3,12,4],[10,3,10,4],[11,3,11,4],[22,3,22,4],[22,0,22,1],[14,3,14,4],[8,0,8,6],[20,0,20,1],[20,3,20,4],[15,0,15,1],[16,0,16,1],[18,0,18,6],[15,3,15,4],[16,3,16,4],[13,0,13,6],[17,0,17,1],[17,3,17,4],[14,0,14,1],[19,3,19,4],[19,0,19,1],[80,0,81,5],[67,0,67,6],[79,0,79,5],[80,6,81,6],[76,6,78,6],[75,0,75,6],[68,0,68,5],[72,0,72,6],[69,0,69,5],[70,0,70,5],[71,0,71,5],[24,0,24,6],[65,0,65,4],[41,0,41,6],[42,0,42,6],[62,3,62,4],[61,3,61,4],[61,0,61,1],[52,2,52,3],[51,2,51,3],[50,2,50,3],[49,2,49,3],[57,2,57,3],[55,2,55,3],[54,2,54,3],[63,0,63,1],[35,0,35,6],[37,2,37,3],[37,4,39,4],[27,4,30,4],[30,2,30,3],[38,2,38,3],[63,3,63,4],[64,0,64,6],[87,2,88,4],[48,2,48,3],[44,2,44,3],[62,0,62,1],[43,1,43,6],[44,1,46,1],[26,1,26,6],[60,0,60,6],[44,0,58,0],[53,2,53,3],[47,2,47,3],[46,2,46,3],[45,2,45,3],[40,3,40,4],[40,0,40,1],[59,0,59,1],[59,3,59,4],[58,2,58,3],[47,1,55,1],[47,4,55,4],[56,2,56,3],[56,1,58,1],[56,4,58,4],[44,4,46,4]]}
[]
["Annexe au calcul des taux des traitements non commerciaux 2020-2021   \n   Travaux de planification et techniques\nForêt publique"]
[" *** Veuillez saisir les informations dans les cellules blanches seulement ***",null,null,null,null,null,"Version 3 : 2020-04-02"]
["Identification",null,null,null,null,null,"Travaux de planification"]
["Unité d'aménagement (UA)"]
["Secteur d'intervention"]
["Unité de compilation"]
["Numéro de la prescription"]
["Recherche de secteur d'intervention potentiel (terrain)"]
["Traitement",null,"Valeur","Unité",null,"Total","Quantité"]
["Préparation de terrain",null,{"$f":"'Calculs grille'!$M$140","v":5},"Nombre d'hectares recherchés",null,{"$f":"IFERROR(($C$11*$G$11),0)","v":0}]
["Régénération artificielle",null,{"$f":"'Calculs grille'!$M$140","v":5},"Nombre d'hectares recherchés",null,{"$f":"IFERROR(($C$12*$G$12),0)","v":0}]
["Éducation de peuplement",null,{"$f":"'Calculs grille'!$M$141","v":10},"Nombre d'hectares recherchés",null,{"$f":"IFERROR(($C$13*$G$13),0)","v":0}]
["Secteur d'intervention proposé"]
["Traitement",null,"Valeur","Unité",null,"Total","Quantité"]
["Préparation de terrain",null,{"$f":"'Calculs grille'!$M$142","v":13},"Nombres d'hectares trouvés",null,{"$f":"IFERROR(($C$16*$G$16),0)","v":0}]
["Régénération artificielle",null,{"$f":"'Calculs grille'!$M$142","v":13},"Nombres d'hectares trouvés",null,{"$f":"IFERROR(($C$17*$G$17),0)","v":0}]
["Éducation de peuplement",null,{"$f":"'Calculs grille'!$M$143","v":18},"Nombres d'hectares trouvés",null,{"$f":"IFERROR(($C$18*$G$18),0)","v":0}]
["Confection du plan de sondage"]
["Traitement",null,"Valeur","Unité",null,"Total","Quantité"]
["Plan de sondage",null,{"$f":"'Calculs grille'!$M$144","v":2.14},"Nombre d'hectares inventoriés",null,{"$f":"IFERROR(($C$21*$G$21),0)","v":0}]
["Inventaire avant traitement"]
["Traitement",null,"Valeur","Unité",null,"Total","Quantité"]
["Préparation de terrain (sauf drainage sylvicole)",null,{"$f":"'Calculs grille'!$M$145","v":35},"Nombre de PE inventoriées",null,{"$f":"IFERROR((SUM($E$28:$E$32)+$C$24)*$G$24,0)","v":0}]
["Critères supplémentaires avant traitement - Préparation de terrain"]
["Critères supplémentaires pour l'inventaire avant traitement pour « Préparation de terrain (sauf drainage sylvicole) »\nLa valeur de la placette est calculée selon la formule suivante :"]
[null,{"$f":"Formules!$D$16","v":"Taux ($/PE) = 35 + (Nombre de critère #7 * 0,48) + (Nombre de critère #8 * 2,39)"}]
[null,"Critère 7","Localisation des problématiques relatives aux chemins pour accéder au territoire",null,{"$f":"IFERROR(SUM($F$28:$F$31)*'Calculs grille'!$M$146,0)","v":0},{"$f":"IF($G$28=\"Oui\",1,IF($G$28=\"Non\",0,\"\"))","v":""}]
[null,null,"Facteur limitatif à la préparation de terrain",null,null,{"$f":"IF($G$29=\"Oui\",1,IF($G$29=\"Non\",0,\"\"))","v":""}]
[null,null,"Détermination du pourcentage de la pente sur le terrain",null,null,{"$f":"IF($G$30=\"Oui\",1,IF($G$30=\"Non\",0,\"\"))","v":""}]
[null,null,"Détermination de la rugosité ou de la quantité de débris ligneux au sol ",null,null,{"$f":"IF($G$31=\"Oui\",1,IF($G$31=\"Non\",0,\"\"))","v":""}]
[null,"Critère 8","Hauteur de la régénération pour les arbres d'avenir d'essence désirée",null,{"$f":"IFERROR(SUM($F$32)*'Calculs grille'!$M$147,0)","v":0},{"$f":"IF($G$32=\"Oui\",1,IF($G$32=\"Non\",0,\"\"))","v":""}]
["Préparation de terrain (drainage sylvicole - plan et devis)",null,{"$f":"'Calculs grille'!$M$150","v":34},"Nombre de km ou Mm³ du devis",null,{"$f":"IFERROR(($C$33*$G$33),0)","v":0}]
["Régénération artificielle",null,{"$f":"'Calculs grille'!$M$148","v":26},"Nombre de PE inventoriées",null,{"$f":"IFERROR((SUM($E$38)+$C$34)*$G$34,0)","v":0}]
["Critères supplémentaires avant traitement - Régénération artificielle"]
["Critères supplémentaires pour l'inventaire avant traitement pour « Régénération artificielle »\nLa valeur de la placette est calculée selon la formule suivante :"]
[null,{"$f":"Formules!$D$17","v":"Taux ($/PE) = 26 + (Nombre de critère #9 * 0,48)"}]
[null,"Critère 9","Localisation des problématiques relatives aux chemins pour accéder au territoire",null,{"$f":"IFERROR(SUM($F$38:$F$40)*'Calculs grille'!$M$149,0)","v":0},{"$f":"IF($G$38=\"Oui\",1,IF($G$38=\"Non\",0,\"\"))","v":""}]
[null,null,"Détermination du pourcentage de la pente sur le terrain",null,null,{"$f":"IF($G$39=\"Oui\",1,IF($G$39=\"Non\",0,\"\"))","v":""}]
[null,null,"Détermination de la rugosité ou de la quantité de débris ligneux au sol ",null,null,{"$f":"IF($G$40=\"Oui\",1,IF($G$40=\"Non\",0,\"\"))","v":""}]
["Éducation de peuplement (dégagement, nettoiement et éclaircie précommerciale)",null,{"$f":"'Calculs grille'!$M$151","v":99},"Nombre de PE inventoriées",null,{"$f":"IFERROR((SUM($E$45:E59)+C$41)*$G$41,0)","v":0}]
["Critères supplémentaires avant traitement - Éducation de peuplement"]
["Critères supplémentaires pour l'inventaire avant traitement pour « Éducation de peuplement »\n(dégagement, nettoiement et éclaircie précommerciale)\nLa valeur de la placette est calculée selon la formule suivante :"]
[null,{"$f":"Formules!$D$15","v":"Taux ($/PE) = 99 + (Nombre de critère #10 * 0,72) + (Nombre de critère #11 * 3,58) + (Nombre de critère #12 * 7,17)"}]
[null,"Critère 10","Localisation des problématiques relatives aux chemins pour accéder au territoire",null,{"$f":"IFERROR(SUM($F$45:$F$47)*'Calculs grille'!$M$152,0)","v":0},{"$f":"IF($G$45=\"Oui\",1,IF($G$45=\"Non\",0,\"\"))","v":""}]
[null,null,"Nombre d'arbres d'essence désirée attaqués par un insecte ou une maladie",null,null,{"$f":"IF($G$46=\"Oui\",1,IF($G$46=\"Non\",0,\"\"))","v":""}]
[null,null,"Détermination du pourcentage de la pente sur le terrain",null,null,{"$f":"IF($G$47=\"Oui\",1,IF($G$47=\"Non\",0,\"\"))","v":""}]
[null,"Critère 11","Coefficient de distribution des arbres, arbustes ou arbrisseaux fruitiers, dégagés ou non",null,{"$f":"IFERROR(SUM($F$48:$F$56)*'Calculs grille'!$M$153,0)","v":0},{"$f":"IF($G$48=\"Oui\",1,IF($G$48=\"Non\",0,\"\"))","v":""}]
[null,null,"Coefficient de distribution par essence des arbres éclaircis, non éclaircis, libres de croître et non libres de croître",null,null,{"$f":"IF($G$49=\"Oui\",1,IF($G$49=\"Non\",0,\"\"))","v":""}]
[null,null,"Hauteur de l'arbre d'essence résineuse à maîtriser",null,null,{"$f":"IF($G$50=\"Oui\",1,IF($G$50=\"Non\",0,\"\"))","v":""}]
[null,null,"Hauteur moyenne des arbres, arbustes ou arbrisseaux d'espèces non commerciales",null,null,{"$f":"IF($G$51=\"Oui\",1,IF($G$51=\"Non\",0,\"\"))","v":""}]
[null,null,"Hauteur des arbres, arbustes ou arbrisseaux fruitiers",null,null,{"$f":"IF($G$52=\"Oui\",1,IF($G$52=\"Non\",0,\"\"))","v":""}]
[null,null,"Nombre de faces des arbres d'avenirs d'essence désirée concurrencés",null,null,{"$f":"IF($G$53=\"Oui\",1,IF($G$53=\"Non\",0,\"\"))","v":""}]
[null,null,"Coefficient de distribution des arbres, arbustes ou arbrisseaux d'espèces commerciales ou non commerciales",null,null,{"$f":"IF($G$54=\"Oui\",1,IF($G$54=\"Non\",0,\"\"))","v":""}]
[null,null,"Détermination de la rugosité ou de la quantité de débris ligneux au sol ",null,null,{"$f":"IF($G$55=\"Oui\",1,IF($G$55=\"Non\",0,\"\"))","v":""}]
[null,null,"Type écologique sur le terrain (inclure le critère pour le GEI)",null,null,{"$f":"IF($G$56=\"Oui\",1,IF($G$56=\"Non\",0,\"\"))","v":""}]
[null,"Critère 12","Pourcentage de recouvrement des framboisiers, des fougères et des épilobes (FFÉ)",null,{"$f":"IFERROR(SUM($F$57:$F$59)*'Calculs grille'!$M$154,0)","v":0},{"$f":"IF($G$57=\"Oui\",1,IF($G$57=\"Non\",0,\"\"))","v":""}]
[null,null,"Identifier et mesurer le recouvrement du groupe d’espèces indicatrices (GEI)",null,null,{"$f":"IF($G$58=\"Oui\",1,IF($G$58=\"Non\",0,\"\"))","v":""}]
[null,null,"Pourcentage de recouvrement par espèces végétales",null,null,{"$f":"IF($G$59=\"Oui\",1,IF($G$59=\"Non\",0,\"\"))","v":""}]
["Éducation de peuplement (élagage et taille de formation)",null,{"$f":"'Calculs grille'!$M$155","v":49},"Nombre de PE inventoriées",null,{"$f":"IFERROR(($C$60*$G$60),0)","v":0}]
["Délimitation des secteurs"]
["Traitement",null,"Valeur","Unité",null,"Total","Oui"]
["Traitement de préparation de site lorsque réalisé sans exécution (tierce partie)",null,{"$f":"'Calculs grille'!$M$157","v":32},"Nombre de km délimités",null,{"$f":"IFERROR(($C$63*$G$63),0)","v":0}]
["Éducation de peuplement",null,{"$f":"'Calculs grille'!$M$161","v":156},"Nombre de km délimités",null,{"$f":"IFERROR(($C$64*$G$64),0)","v":0}]
["Majoration pour l'hébergement et la distance ou la durée du déplacement (HPVTM et DTPVTM)"]
["Hébergement (HPVTM)",null,null,null,null,{"$f":"IF($G$66=\"\",\"\",IF($G$66=Menus!$A$595,Menus!$B$595,IF($G$66=Menus!$A$596,Menus!$B$596,IF($G$66=Menus!$A$597,Menus!$B$597,IF($G$66<=Menus!$B$596,ROUND($G$66,4),\"Max \"&TEXT(Menus!B596,\"0,0%\"))))))","v":""}]
["Distance ou durée du déplacement (DTPVTM)",null,null,null,null,{"$f":"IFERROR(VLOOKUP($G$67,Menus!$A$600:$B$602,2,FALSE),\"\")","v":""}]
["Totaux"]
["Montant de base admissible",null,null,null,null,null,{"$f":"IFERROR(SUM($F$11:$F$13,$F$16:$F$18,$F$21,$F$24:$F$24,$F$33:$F$34,$F$41,$F$60,$F$63:$F$64),0)","v":0}]
["Taux HPVTM",null,null,null,null,null,{"$f":"IFERROR($G$69*SUM($F$66),0)","v":0}]
["Taux DTPVTM (non applicable pour le plan de sondage)",null,null,null,null,null,{"$f":"IFERROR((($G$69-$F$21)*$F$67),0)","v":0}]
["Grand total admissible",null,null,null,null,null,{"$f":"IFERROR(ROUND(SUM($G$69:$G$71),2),0)","v":0}]
[]
["Remarques"]
[]
["J'atteste que les renseignements fournis dans ce document afin de calculer le taux du traitement sont complets et conformes à la vérité, au meilleur de mes connaissances."]
[]
[]
[]
["Nom et prénom de l'ingénieur forestier",null,null,null,null,null,"Numéro de permis"]
[null,null,null,null,null,null,{"$f":"TODAY()","v":"2020-04-02"}]
[]
["Signature de l'ingénieur forestier",null,null,null,null,null,"Date (AAAA-MM-JJ)"]
[]
[]
[null,"Section réservée au suivi du contrat"]
[]
[null,"Numéro de la prescription :",{"$f":"IF($G$8<>\"\",$G$8,\"\")","v":""}]
[]
[null,"Numéro du contrat :"]
[null,"Numéro du projet :"]
[null,"U.G. :"]
[null,"MRC :"]
[null,"Code de traitement DICA :"]
[null,"Code de traitement RATF :"]
[null,"Type d'attribution : "]
[null,"Taux global AO : "]
[null,"Taux global Grille :",{"$f":"IFERROR(VLOOKUP($G$4,RXF!$A$1:$G$34,3,FALSE),0)","v":0}]
[null,"Ratio AO/Grille :",{"$f":"IFERROR(IF(AND($C$97<>\"\",$C$98>0),ROUND($C$97/$C$98,4),\"S/O\"),\"\")","v":"S/O"}]
[null,"Grand total AO :",{"$f":"IFERROR(IF(OR($C$97=\"\",$C$98=0),\"S/O\",ROUND(VLOOKUP($G$4,RXF!$A$1:$G$34,5,FALSE)*$C$99,2)),\"\")","v":"S/O"}]
[null,"Nom de l'entrepreneur : "]
[null,"Numéro de fournisseur : "]
[null,"Date de début :"]
[null,"Date de fin :"]
[null,"Commentaires :"]

{"sheet":"Dispersion 2020-2021","index":7,"n_rows":68,"n_cols":6,"rows_kept":68,"cut":false,"hidden":true,"merged":[[0,0,0,5],[65,0,65,5],[66,0,66,5],[67,0,67,5],[3,0,3,5],[2,0,2,4],[1,0,1,5]]}
[]
["Annexe au calcul des taux des traitements non commerciaux 2020-2021         \n   Indice relatif de dispersion 1\nForêt publique"]
[null,null,null,null,null,"Version 3 : 2020-04-02"]
["Indice relatif de dispersion et majorations applicables par catégorie de traitement et par unité d'aménagement"]
["Région","Unité d'aménagement 2018 (UA)","Indice relatif de dispersion DRAP","Indice relatif de dispersion DMOD","Majoration pour les traitements à productivité élevée 2 DRAP","Majoration pour les traitements à productivité modérée 3 DMOD"]
["01","01171",0,4.2560900000000004,0.21060000000000001,3.56E-2]
["01","01272",5.7095500000000001,2.64805,0.21060000000000001,2.2200000000000001E-2]
["02","02371",0.91973000000000005,2.1255700000000002,3.39E-2,1.78E-2]
["02","02471",1.76664,2.1116299999999999,6.5199999999999994E-2,1.77E-2]
["02","02571",1.1357200000000001,1.4949300000000001,4.19E-2,1.2500000000000001E-2]
["02","02751",1.1045700000000001,3.54169,4.07E-2,2.9600000000000001E-2]
["03","03153",0,0,0.1646,2.6800000000000001E-2]
["03","03171",3.4948199999999998,3.1975799999999999,0.12889999999999999,2.6800000000000001E-2]
["03","03351",4.4624100000000002,0,0.1646,2.6800000000000001E-2]
["04","02651",4.6924099999999997,0,0.1731,1.8800000000000001E-2]
["04","04151",4.0702499999999997,3.6547900000000002,0.15010000000000001,3.0599999999999999E-2]
["04","04251",2.0210300000000001,2.2394799999999999,7.46E-2,1.8700000000000001E-2]
["04","04351",3.2025100000000002,0,0.1181,1.8800000000000001E-2]
["04","04352",3.3349700000000002,2.2431700000000001,0.123,1.8800000000000001E-2]
["05","05151",0,7.1375000000000002,0.42320000000000002,5.9700000000000003E-2]
["07","07151",8.0712600000000005,1.9828699999999999,0.29770000000000002,1.66E-2]
["07","07152",4.4531499999999999,1.71366,0.1643,1.43E-2]
["07","07251",0,2.7815500000000002,0.29770000000000002,2.3300000000000001E-2]
["07","07351",9.2973700000000008,1.4731300000000001,0.34289999999999998,1.23E-2]
["07","07352",5.6028799999999999,2.02657,0.20669999999999999,1.7000000000000001E-2]
["07","07451",3.8810799999999999,2.29583,0.14319999999999999,1.9199999999999998E-2]
["08","08151",11.491,1.43119,0.4239,1.2E-2]
["08","08152",2.27542,1.53535,8.3900000000000002E-2,1.2800000000000001E-2]
["08","08251",2.1145,4.3505700000000003,7.8E-2,3.6400000000000002E-2]
["08","08351",1.4831099999999999,4.1970700000000001,5.4699999999999999E-2,3.5099999999999999E-2]
["08","08451",1.5714900000000001,5.0752100000000002,5.8000000000000003E-2,4.2500000000000003E-2]
["08","08462",3.3166500000000001,0,0.12230000000000001,4.2500000000000003E-2]
["08","08651",2.5670899999999999,4.7450000000000001,9.4700000000000006E-2,3.9699999999999999E-2]
["09","09351",0.76529999999999998,0.73860000000000003,2.8199999999999999E-2,6.1999999999999998E-3]
["09","09352",0,0,2.8199999999999999E-2,6.1999999999999998E-3]
["09","09471",8.4780700000000007,3.7533500000000002,0.31269999999999998,3.1399999999999997E-2]
["09","09551",0,0,0.31269999999999998,3.1399999999999997E-2]
["09","09751",4.9934599999999998,1.93614,0.1842,1.6199999999999999E-2]
["10","02661",2.6806800000000002,0,9.8900000000000002E-2,9.6000000000000002E-2]
["10","02662",4.89215,0,0.18049999999999999,9.6000000000000002E-2]
["10","02663",2.5686900000000001,5.1844400000000004,9.4799999999999995E-2,4.3400000000000001E-2]
["10","02664",2.9903200000000001,11.475,0.1103,9.6000000000000002E-2]
["10","02665",2.7396600000000002,10.702500000000001,0.1011,8.9499999999999996E-2]
["10","02666",2.70309,8.5175000000000001,9.9699999999999997E-2,7.1199999999999999E-2]
["10","08551",1.76376,7.9275000000000002,6.5100000000000005E-2,6.6299999999999998E-2]
["10","08562",0,0,6.5100000000000005E-2,6.6299999999999998E-2]
["10","08652",1.5302,2.8219599999999998,5.6399999999999999E-2,2.3599999999999999E-2]
["10","08663",0,0,8.6099999999999996E-2,3.2099999999999997E-2]
["10","08664",2.3336999999999999,3.8324699999999998,8.6099999999999996E-2,3.2099999999999997E-2]
["10","08665",4.0528899999999997,1.7924,0.14949999999999999,1.4999999999999999E-2]
["10","08666",4.1681499999999998,6.3568499999999997,0.1537,5.3199999999999997E-2]
["10","08751",1.42608,5.6075600000000003,5.2600000000000001E-2,4.6899999999999997E-2]
["10","08762",1.4715,7.9667599999999998,5.4300000000000001E-2,6.6600000000000006E-2]
["10","08763",3.50631,10.407400000000001,0.1293,8.7099999999999997E-2]
["10","08764",3.7682500000000001,10.5062,0.13900000000000001,8.7900000000000006E-2]
["11","11161",3.5517300000000001,3.0741100000000001,0.13100000000000001,2.5700000000000001E-2]
["11","11262",5.6192200000000003,3.3983500000000002,0.20730000000000001,2.8400000000000002E-2]
["11","11263",5.9418300000000004,2.4357099999999998,0.21920000000000001,2.0400000000000001E-2]
["12","03451",0,0,0.42320000000000002,3.9800000000000002E-2]
["12","03571",11.473100000000001,4.7542400000000002,0.42320000000000002,3.9800000000000002E-2]
["14","06271",0,2.6931400000000001,0.28539999999999999,2.2499999999999999E-2]
["15","06151",0,0,0.27679999999999999,2.87E-2]
["15","06452",7.50448,3.4308000000000001,0.27679999999999999,2.87E-2]
["15","06471",7.7380899999999997,2.8385899999999999,0.28539999999999999,2.3699999999999999E-2]
[]
["1 L'indice relatif de dispersion est obtenu via une analyse géomatique réalisée à l'échelle du polygone et du chantier qui considère la superficie des chantiers, les\n  déplacements en distance et en temps (intrachantiers, interchantiers et extrachantiers) de même que la densité relative des travaux des années précédentes dans\n  la limite de leur disponibilité. Pour davantage d'information à ce sujet, voir le document « Directives sur les paiements concernant la réalisation des traitements\n  sylvicoles non commerciaux - Saison 2020-2021 »."]
["2 Traitements à productivité élevée : regroupent les traitement dont le code RATF débute par BRM36D, BRM36P, DH, DHAD, DHAP, DO, EQSLY, HERSE, REQ, ROUECA,\n   TTS et WAD. Les UA pour lesquelles aucune superficie n'a pu être considérée dans l'analyse (la valeur de l'indice est 0) utilisent la valeur d'une UA limitrophe\n   à l'intérieur de la même région pour l'établissement de la majoration."]
["3 Traitements à productivité modérée : regroupent les traitement dont le code RATF débute par AGR, BPR, DRAV, DRDV, DREV, SCAIPV, SCAMV et SCAPV.\n  Les UA pour lesquelles aucune superficie n'a pu être considérée dans l'analyse (la valeur de l'indice est 0) utilisent la valeur d'une UA limitrophe à l'intérieur de la\n  même région pour l'établissement de la majoration."]

{"sheet":"Versions du fichier","index":8,"n_rows":14,"n_cols":21,"rows_kept":14,"cut":false,"hidden":true,"merged":[[20,2,20,14],[0,0,0,16],[0,20,0,27],[9,2,9,13],[8,2,8,13],[12,2,12,16]]}
["Suivi des versions du fichier de l’annexe au calcul des taux des traitements non commerciaux 2020-2021\nForêt publique",null,null,null,null,null,null,null,null,null,null,null,null,null,null,null,null,null,null,null,"Version 3 : 2020-04-02"]
[0]
["Version 1","Nom du fichier :","Annexe_TSNC_2020-2021_2020-02-11.xlsm"]
[{"$f":"A3","v":"Version 1"},"Date de mise en ligne :","2020-02-11"]
[{"$f":"A4","v":"Version 1"},"Remarques :","• Version initiale proposée pour la période de consultation"]
[{"$f":"A5","v":"Version 1"}]
["Version 2","Nom du fichier :","Annexe_TSNC_2020-2021_2020-02-12.xlsm"]
[{"$f":"A7","v":"Version 2"},"Date de mise en ligne :","2020-02-12"]
[{"$f":"A8","v":"Version 2"},"Remarques :","• Onglet « Éclaircie commerciale EAF » et taux m³/ha :  correction d'une coquille dans la formule à G21"]
[{"$f":"A9","v":"Version 2"}]
["Version 3","Nom du fichier :","Annexe_TSNC_2020-2021_2020-04-02.xlsm"]
[{"$f":"A11","v":"Version 3"},"Date de mise en ligne :","2020-04-02"]
[{"$f":"A12","v":"Version 3"},"Remarques :","• Version officielle"]
[{"$f":"A13","v":"Version 3"}]

{"sheet":"Étapes calcul majorations","index":9,"n_rows":40,"n_cols":6,"rows_kept":40,"cut":false,"hidden":true,"merged":[[38,1,38,3],[38,4,38,5]]}
["Famille","Traitement","Équipement ou modalité","Type d'engin forestier","Étapes pour appliquer les majorations à l'exécution","Étapes pour appliquer les majorations à la vérification"]
["Préparation de terrain","Déblaiement des résidus de coupe","Abatteuse groupeuse après feux","S/O","Taux = EXE * (1 + PE2) * (1 + DMOD) * (1 + HPT) * (1 + CEAF1 ou ISO1)","Taux = VERIF * (1 + HPVTM + DTPVTM)"]
["Préparation de terrain","Déblaiement des résidus de coupe","Bouteur avec pelle râteau","S/O","Taux = EXE * (1 + PE4) * (1 + DMOD) * (1 + HPT) * (1 + CEAF1 ou ISO1)","Taux = VERIF * (1 + HPVTM + DTPVTM)"]
["Préparation de terrain","Déblaiement des résidus de coupe","Excavatrice ou débusqueuse ou abatteuse","Débusqueuse","Taux = EXE * (1 + PE3) * (1 + DMOD) * (1 + HPT) * (1 +  CEAF1 ou ISO1)","Taux = VERIF * (1 + HPVTM + DTPVTM)"]
["Préparation de terrain","Déblaiement des résidus de coupe","Excavatrice ou débusqueuse ou abatteuse","Abatteuse lors de la récolte","Taux = EXE * (1 + PE2) * (1 + DMOD) * (1 + HPT) * (1 + CEAF1 ou ISO1)","Taux = VERIF * (1 + HPVTM + DTPVTM)"]
["Préparation de terrain","Déblaiement des résidus de coupe","Excavatrice ou débusqueuse ou abatteuse","Excavatrice","Taux = EXE * (1 + PE2) * (1 + DMOD) * (1 + HPT) * (1 + CEAF1 ou ISO1)","Taux = VERIF * (1 + HPVTM + DTPVTM)"]
["Préparation de terrain","Scarifiage par monticule ou inversion par placeau ou décapage par placeau","Excavatrice","Abatteuse lors de la récolte","Taux = EXE * (1 + PE2) * (1 + DMOD) * (1 + HPT) * (1 + CEAF1 ou ISO1)","Taux = VERIF * (1 + HPVTM + DTPVTM)"]
["Préparation de terrain","Scarifiage par monticule ou inversion par placeau ou décapage par placeau","Excavatrice","Excavatrice","Taux = EXE * (1 + PE2) * (1 + DMOD) * (1 + HPT) * (1 + CEAF1 ou ISO1)","Taux = VERIF * (1 + HPVTM + DTPVTM)"]
["Préparation de terrain","Drainage sylvicole","Milieu boisé","S/O","Taux = EXE * (1 + HPT) * (1 + CEAF1 ou ISO1)","Taux = VERIF * (1 + HPVTM + DTPVTM)"]
["Préparation de terrain","Drainage sylvicole","Milieu dénudé","S/O","Taux = EXE * (1 + HPT) * (1 + CEAF1 ou ISO1)","Taux = VERIF * (1 + HPVTM + DTPVTM)"]
["Préparation de terrain","Fertilisation du peuplier hybride","S/O","S/O","Taux = EXE * (1 + PE2) * (1 + HRA + DTEXE) * (1 + CEAF1 ou ISO1)","Taux = VERIF * (1 + HPVTM + DTPVTM)"]
["Préparation de terrain","Scarifiage par hersage ou labour","Herses forestières","S/O","Taux = EXE * (1 +  PA2) *(1 + PE2) * (1 + DRAP) * (1 + HPT) * (1 + CEAF1 ou ISO1)","Taux = VERIF * (1 + HPVTM + DTPVTM)"]
["Préparation de terrain","Scarifiage par mixage par placeau","Taupe ou pioche forestière","S/O","Taux = EXE * (1 + HRA + DTEXE) * (1 + CEAF1 ou ISO1)","Taux = VERIF * (1 + HPVTM + DTPVTM)"]
["Préparation de terrain","Scarifiage par monticule avec scarificateur","Bracke M-36a avec débardeur","S/O","Taux = EXE * (1 + PE1) * (1 + DRAP) * (1 + HPT) * (1 + CEAF1 ou ISO1)","Taux = VERIF * (1 + HPVTM + DTPVTM)"]
["Préparation de terrain","Scarifiage par monticule avec scarificateur","Bracke M-36a avec porteur ou débardeur à six roues","S/O","Taux = EXE * (1 + PE1) * (1 + DRAP) * (1 + HPT) * (1 + CEAF1 ou ISO1)","Taux = VERIF * (1 + HPVTM + DTPVTM)"]
["Préparation de terrain","Scarifiage par monticule ou inversion par placeau ou décapage par placeau","Excavatrice","Excavatrice","Taux = EXE * (1 + PE2) * (1 + DMOD) * (1 + HPT) * ( 1 + CEAF1 ou ISO1)","Taux = VERIF * (1 + HPVTM + DTPVTM)"]
["Préparation de terrain","Scarifiage par monticule ou inversion par placeau ou décapage par placeau","Excavatrice","Abatteuse lors de la récolte","Taux = EXE * (1 + PE2) * (1 + DMOD) * (1 + HPT) * ( 1 + CEAF1 ou ISO1)","Taux = VERIF * (1 + HPVTM + DTPVTM)"]
["Préparation de terrain","Scarifiage par sillon avec scarificateur","Bracke T-26 avec débardeur, Types TTS hydrauliques, Donaren ou Requin","S/O","Taux = EXE * (1 + PA0) * (1 + PA1) * (1 + PE1) * (1 + DRAP) * (1 + HPT) * (1 + CEAF1 ou ISO1)","Taux = VERIF * (1 + HPVTM + DTPVTM)"]
["Préparation de terrain","Scarifiage par sillon avec scarificateur","Bracke T-26 avec porteur ou débardeur à six roues","S/O","Taux = EXE * (1 + PA0) * (1 + PA1) * (1 + PE1) * (1 + DRAP) * (1 + HPT) * (1 + CEAF1 ou ISO1)","Taux = VERIF * (1 + HPVTM + DTPVTM)"]
["Préparation de terrain","Scarifiage par sillon avec scarificateur","Rouleau écraseur et scarificateur à disques passifs","S/O","Taux = EXE * (1 + PE2) * (1 + DRAP) * (1 + HPT) * (1 + CEAF1 ou ISO1)","Taux = VERIF * (1 + HPVTM + DTPVTM)"]
["Préparation de terrain","Scarifiage par sillon avec scarificateur","Types TTS passifs","S/O","Taux = EXE * (1 + PA0) * (1 + PA1) * (1 + PE1) * (1 + DRAP) * (1 + HPT) * (1 + CEAF1 ou ISO1)","Taux = VERIF * (1 + HPVTM + DTPVTM)"]
["Préparation de terrain","Scarifiage par sillon avec scarificateur","Wadell","S/O","Taux = EXE * (1 + PA0) * (1 + PA1) * (1 + PE1) * (1 + DRAP) * (1 + HPT) * (1 + CEAF1 ou ISO1)","Taux = VERIF * (1 + HPVTM + DTPVTM)"]
["Régénération artificielle","Ensemencement terrestre manuel","S/O","S/O","Taux = EXE * (1 + PE2) * (1 + HRA ou TC + DTEXE) * (1 + CEAF2 ou ISO2)","Taux = VERIF * (1 + HPVTM + DTPVTM)"]
["Régénération artificielle","Plantation uniforme et regarni en plein manuel sauf PEH","S/O","S/O","Taux = (EXE * 1 + RAPM) * (1 + HRA ou TC + DTEXE) * (1 + CEAF2 ou ISO2)) + TRA","Taux = VERIF * (1 + HPVTM + DTPVTM)"]
["Régénération artificielle","Plantation uniforme et regarni en plein manuel sentier préparé sauf PEH","S/O","S/O","Taux = (EXE * 1 + RAPM) * (1 + HRA ou TC + DTEXE) * (1 + CEAF2 ou ISO2)) + TRA","Taux = VERIF * (1 + HPVTM + DTPVTM)"]
["Régénération artificielle","Plantation uniforme et regarni mécanique (Scarificateur­planteur Bracke P­11a)","S/O","S/O","Taux = EXE * (1 +  HPT) * (1 + CEAF2 ou ISO2) + TRA","Taux = VERIF * (1 + HPVTM + DTPVTM)"]
["Régénération artificielle","Plantation uniforme PEH","S/O","S/O","Taux = (EXE * 1 + RAPM) * (1 + HRA ou TC + DTEXE) * (1 + CEAF2 ou ISO2) + TRA","Taux = VERIF * (1 + HPVTM + DTPVTM)"]
["Régénération artificielle","Regarni de sentier et enrichissement manuel sauf PEH","S/O","S/O","Taux = (EXE * 1 + RAPM) * (1 + HRA ou TC + DTEXE) * (1 + CEAF2 ou ISO2) + TRA","Taux = VERIF * (1 + HPVTM + DTPVTM)"]
["Éducation de peuplement","Dégagement mécanique","S/O","S/O","Taux = (EXE * 1 + DEGPM) * (1 + PE2) * (1 + HEP ou TC + DTEXE) * (1 + CEAF3 ou ISO3)","Taux = VERIF * (1 + HPVTM + DTPVTM)"]
["Éducation de peuplement","Élagage à des fins de qualité pour le pin blanc et le pin rouge","S/O","S/O","Taux = EXE * (1 + PE2) * (1 + HEP ou TC + DTEXE) * (1 + CEAF3 ou ISO3)","Taux = VERIF * (1 + HPVTM + DTPVTM)"]
["Éducation de peuplement","EPC par puit de lumière ET Taille de formation avec martelage","S/O","S/O","Taux = EXE * (1 + PE2) * (1 + HEP ou TC + DTEXE) * (1 + CEAF3 ou ISO3)","Taux = VERIF * (1 + HPVTM + DTPVTM)"]
["Éducation de peuplement","Nettoiement - Peuplement résineux ou mixte (FI) à dominance résineuse","S/O","S/O","Taux = EXE * (1 + PE2) * (1 + HEP ou TC + DTEXE) * (1 + CEAF3 ou ISO3)","Taux = VERIF * (1 + HPVTM + DTPVTM)"]
["Éducation de peuplement","Nettoiement et EPC systématique - scénario sylvicole intensif ou d'élite","S/O","S/O","Taux = EXE * (1 + PE2) * (1 + HEP ou TC + DTEXE) * (1 + CEAF3 ou ISO3)","Taux = VERIF * (1 + HPVTM + DTPVTM)"]
["Éducation de peuplement","Taille phytosanitaire","S/O","S/O","Taux = EXE * (1 + PE2) * (1 + HEP ou TC + DTEXE) * (1 + CEAF3 ou ISO3)","Taux = VERIF * (1 + HPVTM + DTPVTM)"]
["Éclaircie commerciale EAF","Éclaircie commerciale EAF","S/O","S/O","Taux = (EXE * (1 + PE2) * (1 + MAN) * (1 + HECEAF)","Taux = VERIF * (1 + HPVTM + DTPVTM)"]
["Travaux de planification","Travaux de planification et techniques","S/O","S/O","Taux = EXE * (1 + HPVTM) + (EXE - Plan de sondage) * DTPVTM","Taux = VERIF * (1 + HPVTM + DTPVTM)"]
["Martelage","Martelage","S/O","S/O","Taux = EXE * (1 + HPVTM + DTPVTM)","Taux = VERIF * (1 + HPVTM + DTPVTM)"]
[]
["Exemple","Traitement = Préparation de terrain  => Déblaiement des résidus de coupe  => Abatteuse groupeuse après feux\nTaux = EXE * (1 + PE2) * (1 + DMOD) * (1 + HPT) * (1 + CEAF1 ou ISO1)\nEXE : 100 $;   PE2 : 6,1 %;  DMOD : 3,8%; HPT : 9,2%; CEAF1 : 0,42%",null,null,"Taux = 100 * (1 + 0,061) * (1 + 0,038) * (1 + 0,092) * (1 + 0,0042)\nTaux = 100 * 1,061 * 1,038 * 1,092 * 1,0042\nTaux = 120,77$"]
[null,null,null,null,","]

{"sheet":"Traitements admissibles","index":10,"n_rows":98,"n_cols":8,"rows_kept":98,"cut":false,"hidden":true,"merged":[]}
["Taux présent dans la grille","Admissible au paiement","Famille","Traitement","Type ","Équipement / Modalité","Structure du taux","Unité"]
["Oui","Oui","Préparation de site","Scarifiage par sillon avec scarificateur","Scarificateurs à disques passifs","Type TTS passifs","Fixe","Hectare"]
["Oui","Oui","Préparation de site","Scarifiage par sillon avec scarificateur","Scarificateurs à disques passifs","Rouleau écraseur et scarificateur à disques passifs","Fixe","Hectare"]
["Oui","Oui","Préparation de site","Scarifiage par sillon avec scarificateur","Scarificateurs à disques hydrauliques","Types TTS hydrauliques, Donaren, ou Requin","Fixe","Hectare"]
["Oui","Oui","Préparation de site","Scarifiage par sillon avec scarificateur","Scarificateurs à disques hydrauliques","Bracke T-26 avec débardeur","Fixe","Hectare"]
["Oui","Oui","Préparation de site","Scarifiage par sillon avec scarificateur","Scarificateurs à disques hydrauliques","Bracke T-26 avec porteur ou débardeur à six roues ","Fixe","Hectare"]
["Oui","Oui","Préparation de site","Scarifiage par sillon avec scarificateur","Scarificateurs à cônes hydrauliques","Wadell","Fixe","Hectare"]
["Oui","Oui","Préparation de site","Scarifiage par monticule avec scarificateur",null,"Bracke M-36a avec débardeur","Fixe","Hectare"]
["Oui","Oui","Préparation de site","Scarifiage par monticule avec scarificateur",null,"Bracke M-36a avec porteur ou débardeur à six roues","Fixe","Hectare"]
["Oui","Oui","Préparation de site","Scarifiage par hersage/labour",null,"Herses forestières","Fixe","Hectare"]
["Oui","Oui","Préparation de site","Scarifiage par mixage par placeau",null,"Taupe ou pioche forestière","Fixe","Millier de microsites"]
["Oui","Oui","Préparation de site","Déblaiement des résidus de coupe",null,"Bouteur avec pelle râteau","Fixe","Hectare"]
["Oui","Oui","Préparation de site","Déblaiement des résidus de coupe",null,"Abatteuse groupeuse après feux","Fixe","Hectare"]
["Oui","Oui","Préparation de site","Drainage sylvicole",null,"Milieu dénudé","Fixe","Hectare"]
["Oui","Oui","Préparation de site","Drainage sylvicole",null,"Milieu boisé","Fixe","Hectare"]
["Oui","Oui","Préparation de site","Scarifiage par monticule ou inversion par placeau ou décapage par placeau",null,"Excavatrice","Variable","Hectare"]
["Oui","Oui","Préparation de site","Déblaiement des résidus de coupe",null,"Excavatrice ou débusqueuse ou abatteuse","Variable","Hectare"]
["Oui","Oui","Préparation de site","Fertilisation",null,null,"Fixe","Hectare"]
["Non","Oui","Préparation de site","Déblaiement d'hiver",null,"Bouteur à lame tranchante","Sur demande","Hectare"]
["Non","Non","Préparation de site","Récupération de la matière ligneuse",null,null,"Aucun"]
["Non","Oui","Préparation de site","Élimination des tiges résiduelles",null,null,"Sur demande","Hectare"]
["Non","Non","Préparation de site","Scarifiage par sillon avec scarificateur","Scarificateurs à disques hydrauliques","Esquisyl","Aucun","Hectare"]
["Non","Oui","Préparation de site","Brûlage",null,null,"Sur demande","Andain"]
["Non","Projet","Préparation de site","Broyage",null,null,"Sur demande","Hectare"]
["Non","Projet","Préparation de site","Déblaiement des résidus de coupe","Bouteur avec pelle modifiée (deux dents)",null,"Sur demande","Hectare"]
["Non","Projet","Préparation de site","Déblaiement des résidus de coupe et monticules","Excavatrice",null,"Sur demande","Hectare"]
["Non","Non","Préparation de site","Déchiquetage ",null,null,"Aucun"]
["Non","Non","Préparation de site","Amendement, chaulage",null,null,"Aucun"]
["Non","Non","Préparation de site","Amendement, organique",null,null,"Aucun"]
["Non","Projet","Préparation de site","Débroussaillement de la végétation et des résidus de coupes",null,"Manuel","Sur demande","Hectare"]
["Oui","Oui","Régénération artificielle","Plantation uniforme et regarni mécanique ","Scarificateur-planteur (Bracke P-11a)","1500 plants/ha et + Récipient 45-110","Fixe","Millier de plants"]
["Oui","Oui","Régénération artificielle","Plantation uniforme et regarni mécanique ","Scarificateur-planteur (Bracke P-11a)","1500 plants/ha et + Récipient 25-200","Fixe","Millier de plants"]
["Oui","Oui","Régénération artificielle","Plantation uniforme et regarni mécanique ","Scarificateur-planteur (Bracke P-11a)","1499 plants/ha et - Récipient 45-110","Fixe","Millier de plants"]
["Oui","Oui","Régénération artificielle","Plantation uniforme et regarni mécanique ","Scarificateur-planteur (Bracke P-11a)","1499 plants/ha et - Récipient 25-200","Fixe","Millier de plants"]
["Oui","Oui","Régénération artificielle","Plantation uniforme PEH",null,null,"Fixe","Millier de plants"]
["Oui","Oui","Régénération artificielle","Plantation d'enrichissement",null,"Puit de lumière (300 plants/ha), enrichissement (350plants/ha) ou regarni pins et feuillus (≤ 799plants/ha)","Fixe","Millier de plants"]
["Oui","Oui","Régénération artificielle","Ensemencement",null,"Terrestre manuel","Fixe","Hectare"]
["Non","Non","Régénération artificielle","Ensemencement aérien",null,null,"Aucun"]
["Non","Non","Régénération artificielle","Ensemencement terrestre mécanisé après préparation de terrain",null,null,"Aucun"]
["Non","Non","Régénération artificielle","Ensemencement terrestre mécanisé simultanément préparation de terrain",null,null,"Aucun"]
["Non","Non","Régénération artificielle","Ensemencement terrestre mécanisé simultanément récolte",null,null,"Aucun"]
["Oui","Oui","Régénération artificielle","Plantation uniforme et regarni manuel sauf PEH","Gabarits de plants 113-25, 67-50, 45-110, 25-200, PFD récipients, PFD Racines Nues.",null,"Variable","Millier de plants"]
["Oui","Oui","Régénération artificielle","Plantation uniforme et regarni manuel sauf PEH","Autres gabarits",null,"Sur demande","Millier de plants"]
["Oui","Oui","Régénération artificielle","Plantation uniforme et regarni manuel sauf PEH","Gabarits de plants 113-25, 67-50, 45-110, 25-200, PFD récipients, PFD Racines Nues.",null,"Variable","Millier de plants"]
["Oui","Oui","Régénération artificielle","Plantation uniforme et regarni manuel sauf PEH",null,null,"Variable","Millier de plants"]
["Non","Non","Éducation de peuplement","Dégagement mécanisé, outil installé sur un débardeur",null,null,"Aucun"]
["Oui","Oui","Éducation de peuplement","Dégagement mécanique de la régénération","Débrousailleuse",null,"Variable","Hectare"]
["Non","Non","Éducation de peuplement","Dégagement mécanique de la régénération, dénombrement à 15 cm, taux variable",null,null,"Aucun"]
["Non","Non","Éducation de peuplement","Nettoiement, annélation",null,null,"Aucun"]
["Non","Non","Éducation de peuplement","Nettoiement manuel",null,null,"Aucun"]
["Non","Non","Éducation de peuplement","Nettoiement mécanisé",null,null,"Aucun"]
["Non","Non","Éducation de peuplement","Gaulis I",null,"Secteur d'intervention sans choix de tige, soit inter spécifique (par groupe d'essence, résineux / feuillus) et sans espacement ","Variable","Hectare"]
["Oui","Oui","Éducation de peuplement","Nettoiement d'un peuplement résineux ou mixte (MR-FI) à dominance de résineux en scénario sylvicole de base des peuplements en régénération naturelle, en plantation uniforme ou en regarni de la régénération artificielle",null,null,"Variable","Hectare"]
["Non","Non","Éducation de peuplement","Gaulis III",null,"Secteur d'intervention avec un choix de tige intraspécifique (par essence) sans  espacement (peuplement naturel et plantation) OU avec un espacement d'une plantation avec un coefficient de distribution < 75 % OU Secteur d'intervention sans choix de tige, soit interspécifique (par groupe d'essence, résineux / feuillus) et sans espacement d'une plantation avec SRLC < 20% et DI > 20 000","Variable","Hectare"]
["Non","Non","Éducation de peuplement","Gaulis II",null,"Secteur d'intervention avec un choix de tige intraspécifique (par essence) et avec un espacement d'un peuplement naturel et d'une plantation avec un coefficient de distribution >= 75 %","Variable","Hectare"]
["Oui","Oui","Éducation de peuplement","Nettoiement d'un peuplement résineux en scénario intensif ou élite de plantation uniforme et éclaircie précommerciale systématique d'un peuplement résineux ou de peuplier en scénario sylvicole intensif ou d'élite des peuplements en régénération naturelle ou en regarni de la régénération artificielle",null,null,"Variable","Hectare"]
["Oui","Oui","Éducation de peuplement","Éclaircie précommerciale par puit de lumière et taille de formation avec martelage",null,null,"Variable","Hectare"]
["Oui","Oui","Éducation de peuplement","Élagage à des fins de qualité pour le pin blanc et le pin rouge",null,null,"Variable","Hectare"]
["Oui","Oui","Éducation de peuplement","Taille phytosanitaire",null,null,"Variable","Hectare"]
["Non","Non","Éducation de peuplement","Nettoiement, phytocides biologiques",null,null,"Aucun"]
["Non","Non","Éducation de peuplement","Nettoiement, phytocides chimiques",null,null,"Aucun"]
["Non","Projet","Éducation de peuplement","Nettoiement, annélation",null,null,"Sur demande","Hectare"]
["Non","Non","Éducation de peuplement","Éclaircie précommerciale par puit de lumière","Prescription 2012",null,"Aucun"]
["Non","Non","Éducation de peuplement","Dégagement manuel",null,"Manuelle (machette, hache, …)","Aucun"]
["Non","Projet","Éducation de peuplement","Dépressage",null,null,"Sur demande","Hectare"]
["Non","Non","Éducation de peuplement","Nettoiement cerf de Virginie et caribou",null,null,"Aucun"]
["Non","Non","Éducation de peuplement","Nettoiement 5 m et plus",null,null,"Aucun"]
["Non","Projet","Éducation de peuplement","Nettoiement HÊTRE",null,null,"Sur demande","Hectare"]
["Non","Projet","Éducation de peuplement","Dégagement annélation",null,null,"Sur demande","Hectare"]
["Non","Non","Éducation de peuplement","Dégagement, phytocides biologiques",null,null,"Aucun"]
["Non","Non","Éducation de peuplement","Dégagement, phytocides chimiques",null,null,"Aucun"]
["Oui","Oui","Éclaircie commerciale EAF","Première éclaircie commerciale de plantation résineuse réservé aux entreprises d'aménagement forestier",null,"Pourcentage de majoration pour les opérations manuelles","Variable","Hectare"]
["Oui","Oui","Travaux techniques","Vérification technique","Inventaire après traitement","Traitement de préparation de site mécanisé","Variable","PE"]
["Oui","Oui","Travaux techniques","Vérification technique","Inventaire après traitement","Traitement de préparation de site manuelle","Fixe","PE"]
["Oui","Oui","Travaux techniques","Vérification technique","Inventaire après traitement","Traitement de préparation de site drainage sylvicole","Fixe","PE"]
["Oui","Oui","Travaux techniques","Vérification technique","Inventaire après traitement","Traitement de régénération artificielle","Variable","PE"]
["Oui","Oui","Travaux techniques","Vérification technique","Inventaire après traitement","Traitement d'éducation de peuplement","Variable","PE"]
["Oui","Oui","Travaux techniques","Planification","Recherche de secteur d'intervention potentiel (terrain)","Traitement de préparation de site et régénération artificielle","Fixe","Hectare"]
["Oui","Oui","Travaux techniques","Planification","Recherche de secteur d'intervention potentiel (terrain)","Traitement d'éducation de peuplement","Fixe","Hectare"]
["Oui","Oui","Travaux techniques","Planification","Recherche de secteur d'intervention trouvé (terrain)","Traitement de préparation de site et régénération artificielle","Fixe","Hectare"]
["Oui","Oui","Travaux techniques","Planification","Recherche de secteur d'intervention trouvé (terrain)","Traitement d'éducation de peuplement","Fixe","Hectare"]
["Oui","Oui","Travaux techniques","Planification","Confection du plan de sondage",null,"Fixe","Hectare"]
["Oui","Oui","Travaux techniques","Planification","Inventaire avant traitement","Traitement de préparation de site (sauf drainage sylvicole) ","Variable","PE"]
["Oui","Oui","Travaux techniques","Planification","Inventaire avant traitement","Régénération artificielle","Variable","PE"]
["Oui","Oui","Travaux techniques","Planification","Inventaire avant traitement","Traitement d'éducation de peuplement (dégagement, nettoiement et éclaircie précommerciale)","Variable","PE"]
["Oui","Oui","Travaux techniques","Planification","Inventaire avant traitement","Traitement d'éducation (élagage et taille)","Fixe","Hectare"]
["Oui","Oui","Travaux techniques","Planification","Délimitation des secteurs","Traitement de préparation de site et régénération artificielle","Fixe","Hectare"]
["Oui","Oui","Travaux techniques","Planification","Délimitation des secteurs","Traitement d'éducation de peuplement","Fixe","Hectare"]
["Oui","Oui","Travaux techniques","Activités liées au martelage pour les traitements commerciaux","Délimitation des secteurs",null,"Fixe","Kilomètre délimité"]
["Oui","Oui","Travaux techniques","Activités liées au martelage pour les traitements commerciaux","Martelage feuillus",null,"Fixe","Hectare"]
["Oui","Oui","Travaux techniques","Activités liées au martelage pour les traitements commerciaux","Martelage résineux",null,"Fixe","Hectare"]
["Oui","Oui","Travaux techniques","Activités liées au martelage pour les traitements commerciaux","Martelage à taux variable",null,"Variable","Hectare"]
["Oui","Oui","Travaux techniques","Activités liées au martelage pour les traitements commerciaux","Martelage en éclaircie commerciale en peuplement résineux (ou mixte à tendance résineuse)","Martelage négatif","Fixe","Hectare"]
["Oui","Oui","Travaux techniques","Activités liées au martelage pour les traitements commerciaux","Inventaire après martelage",null,"Fixe","Hectare"]
["Non","Oui","Autre","Clôture Anticosti",null,null,"Sur demande"]
["Non","Oui","Majoration","Majoration Hébergement R07","Appliqué en 2019-2020 - cas particuliers",null,"Sur demande","Budget"]
["Non","Oui","Majoration","Majoration Côte Nord  (SCA et RA)","Retirée en 2020-2021",null,"Sur demande","Pourcentage du taux d'exécution"]
["Non","Oui","Majoration","Scarifiage par monticule avec excavatrice","Scarifiage par monticule PEH R04",null,"Sur demande","Pourcentage du taux d'exécution"]

{"sheet":"Calculs grille","index":11,"n_rows":171,"n_cols":14,"rows_kept":171,"cut":false,"hidden":true,"merged":[[0,10,1,10],[0,13,1,13],[0,12,1,12],[0,6,1,6],[0,5,1,5],[0,8,1,8],[0,0,1,0],[0,1,1,1],[0,2,1,2],[0,3,1,3],[0,4,1,4]]}
["Famille","Traitement","Type","Équipement / Modalité","Taux","Paiement","Information","2018-2019","2018-2019","2019-2020","2019-2020","2020-2021","2020-2021","Source 2020-2021"]
[null,null,null,null,null,null,null,"Non arrondis",null,"Non \narrondis",null,"Non \narrondis"]
["Préparation de terrain","Scarifiage en sillon avec scarificateur","Scarificateurs à disques passifs","Type TTS passifs","Fixe","Hectare","Type TTS passifs",213.04370735649201,213,221.62576840382877,{"$f":"ROUND(J3,0)","v":222},228.12033402930734,{"$f":"ROUND(L3,0)","v":228},"[Grilles TSNC 2020-2021.xlsx]Feuille de calcul'!$AD$2"]
["Préparation de terrain","Scarifiage en sillon avec scarificateur","Scarificateurs à disques passifs","Rouleau écraseur et scarificateur à disques passifs","Fixe","Hectare","Rouleau écraseur et scarificateur à disques passifs",726.10922773486539,726,755.35915863767127,755,777.49435375469307,777,"[Grilles TSNC 2020-2021.xlsx]Feuille de calcul'!$AD$3"]
["Préparation de terrain","Scarifiage en sillon avec scarificateur","Scarificateurs à disques hydrauliques","Types TTS hydrauliques, Donaren, ou Requin","Fixe","Hectare","Bracke T-26 avec débardeur, Types TTS hydrauliques, Donaren, Equisyl ou Requin",312.70498270840034,313,325.30170891406658,325,334.83441493394218,335,"[Grilles TSNC 2020-2021.xlsx]Feuille de calcul'!$AD$4"]
["Préparation de terrain","Scarifiage en sillon avec scarificateur","Scarificateurs à disques hydrauliques","Bracke T-26 avec débardeur","Fixe","Hectare",null,312.70498270840034,313,325.30170891406658,325,334.83441493394218,335,"[Grilles TSNC 2020-2021.xlsx]Feuille de calcul'!$AD$5"]
["Préparation de terrain","Scarifiage en sillon avec scarificateur","Scarificateurs à disques hydrauliques","Bracke T-26 avec porteur ou débardeur à six roues ","Fixe","Hectare","Bracke T-26 avec porteur",355.37242456917471,355,369.68792761798943,370,380.52133622455256,381,"[Grilles TSNC 2020-2021.xlsx]Feuille de calcul'!$AD$6"]
["Préparation de terrain","Scarifiage en sillon avec scarificateur","Scarificateurs à cônes hydrauliques","Wadell","Fixe","Hectare","Wadell",374.13108627663803,374,389.20224637788283,389,400.6075064651443,401,"[Grilles TSNC 2020-2021.xlsx]Feuille de calcul'!$AD$7"]
["Préparation de terrain","Scarifiage par monticule avec scarificateur",null,"Bracke M-36a avec débardeur","Fixe","Hectare","Bracke M-36a avec débardeur",319.94314178407336,320,332.83144347830262,333,342.58480233842357,343,"[Grilles TSNC 2020-2021.xlsx]Feuille de calcul'!$AD$8"]
["Préparation de terrain","Scarifiage par monticule avec scarificateur",null,"Bracke M-36a avec porteur ou débardeur à six roues","Fixe","Hectare","Bracke M-36a avec porteur",383.62453232242387,384,399.0781178636193,399,410.77278245440419,411,"[Grilles TSNC 2020-2021.xlsx]Feuille de calcul'!$AD$9"]
["Préparation de terrain","Scarifiage en herse/labour",null,"Herses forestières","Fixe","Hectare","Herses forestières",408.45645148509061,408,424.91034371837685,425,437.36200099676392,437,"[Grilles TSNC 2020-2021.xlsx]Feuille de calcul'!$AD$10"]
["Préparation de terrain","Scarifiage par mixage par placeau",null,"Taupe ou pioche forestière","Fixe","Millier de microsites","Taupe ou pioche forestière",598.33209656352869,598,619.39623507057047,619,635.62506775454438,636,"[Grilles TSNC 2020-2021.xlsx]Feuille de calcul'!$AD$11"]
["Préparation de terrain","Déblaiement des résidus de coupe",null,"Bouteur avec pelle râteau","Fixe","Hectare","Bouteur avec pelle râteau",754.02724130756133,754,784.40179635333857,784,807.38806270607392,807,"[Grilles TSNC 2020-2021.xlsx]Feuille de calcul'!$AD$12"]
["Préparation de terrain","Déblaiement des résidus de coupe",null,"Abatteuse groupeuse après feux","Fixe","Hectare","Abatteuse groupeuse",891.89067550807329,892,927.81879711155443,928,955.00778379749738,955,"[Grilles TSNC 2020-2021.xlsx]Feuille de calcul'!$AD$13"]
["Préparation de terrain","Drainage sylvicole",null,"Milieu dénudé","Fixe","Hectare","Excavatrice",2311.2195130428559,2311,2404.3226006714367,2404,2474.7793486721002,2475,"[Grilles TSNC 2020-2021.xlsx]Feuille de calcul'!$AD$14"]
["Préparation de terrain","Drainage sylvicole",null,"Milieu boisé","Fixe","Hectare","Excavatrice",2567.9872159688989,2568,2671.4337027470647,2671,2749.71792764366,2750,"[Grilles TSNC 2020-2021.xlsx]Feuille de calcul'!$AD$15"]
["Préparation de terrain","Scarifiage par monticule ou inversion par placeau ou décapage par placeau","(Variable 1 * R) / e EXP (1,683 * R - 0,299 * TP  - 0,313 * TR + 0,17 * PER + 2,014)  * VEH","Excavatrice","Variable","Hectare","Excavatrice",27136.020595559035,27136,28229.143636941237,28229,29056.376080269376,29056,"[Grilles TSNC 2020-2021.xlsx]Feuille de calcul'!$AD$16"]
["Préparation de terrain","Déblaiement des résidus de coupe","(Variable 1 * R) / e EXP (1,683 * R - 0,299 * TP  - 0,313 * TR + 0,17 * PER + 2,014)  * VEH","Excavatrice ou débusqueuse ou abatteuse","Variable","Hectare","Excavatrice ou débusqueuse ou abatteuse",27136.020595559035,27136,28229.143636941237,28229,29056.376080269376,29056,"[Grilles TSNC 2020-2021.xlsx]Feuille de calcul'!$AD$17"]
["Préparation de terrain","Fertilisation","Origine (2012-2013) : 484$/ha\nK:\\F1411ae\\DEEF\\1-Valeur des traitements sylvicoles\\TSNC\\Taux\\1_Preparation de terrain\\Fertilisation",null,"Fixe","Hectare",null,542.18463029676434,542,572.28824630482245,572,587.2828001468032,587,"[Grilles TSNC 2020-2021.xlsx]Feuille de calcul'!$AD$18"]
["Préparation de terrain","Brûlage","Origine (2014-2015) 220 $/km ou $/ha ou 20 $/andains - calcul modifié en 2019-2020\nK:\\F1411ae\\DEEF\\1-Valeur des traitements sylvicoles\\TSNC\\Taux\\1_Preparation de terrain\\Brulage_andains",null,"Fixe","Andain","Particulier",25.527981413318766,26,26.945366759537016,27,27.651363702994409,28,"[Grilles TSNC 2020-2021.xlsx]Feuille de calcul'!$AD$19"]
["Préparation de terrain","Bouteur modifié R01","Origine (2018-2019) : 611$/ha\nK:\\F1411ae\\DEEF\\1-Valeur des traitements sylvicoles\\TSNC\\Taux\\1_Preparation de terrain\\Bouteur_deux_dents","Bouteur avec pelle modifiée (deux dents)","Fixe","Hectare","Particulier",610.21220000000005,{"$f":"ROUND(H21,0)","v":610},622.97975837954561,623,654.23910342808495,654,"[Grilles TSNC 2020-2021.xlsx]Feuille de calcul'!$AD$20"]
["Préparation de terrain","Monticule PEH productivité R04","Origine 2018-2019\nK:\\F1411ae\\DEEF\\1-Valeur des traitements sylvicoles\\TSNC\\Taux\\1_Preparation de terrain\\Monticules_PEH","R04-CNESST","Variable","Hectare","Majoration du taux régulier « Scarifiage par monticule ou inversion par placeau ou décapage par placeau » en fonction de la perte de productivité (21,93%) et calibré sur la frais variables à 14,8%. Informations de l'entrepreneur à venir. Aucune indexation à faire, pourcentage appliqué directement sur le taux parent.","-","-","-","-","-","-","-"]
["Préparation de terrain","Monticule et déblaiement productivité R01","Origine 2019-2020\nK:\\F1411ae\\DEEF\\1-Valeur des traitements sylvicoles\\TSNC\\Taux\\1_Preparation de terrain\\Monticule et déblaiement combinés","Excavatrice - Traitements combinés R01","Variable","Hectare","Majoration du taux régulier « Scarifiage par monticule ou inversion par placeau ou décapage par placeau » en fonction de la perte de productivité préliminaire de 67%. Informations de l'entrepreneur à venir. Aucune indexation à faire, pourcentage appliqué directement sur le taux parent.","-","-","-","-","-","-","-"]
["Préparation de terrain","Déblaiement d'hiver",null,"Bouteur à lame tranchante","Fixe","Hectare","Particulier"]
["Préparation de terrain","Broyage",null,null,"Fixe","Hectare","Particulier"]
["Préparation de terrain","Scarifiage par monticule ou inversion par placeau ou décapage par placeau ET Déblaiement des résidus de coupe","Constante e = 2,718",null,"Variable","Hectare","Taux moyen",751.60258191365233,752,781.87946416169382,782,913.93821970268675,914,"[Grilles TSNC 2020-2021.xlsx]Feuille de calcul'!$AD$25"]
["Plantation uniforme et regarni mécanique ","Scarificateur-planteur (Bracke P-11a)","1500 plants/ha et + Récipient 45-110","Fixe","Millier de plants","Millier de plants",null,1264.5601152550284,1265,1315.5005173058889,1316,1354.0502062771941,{"$f":"ROUND(L27,0)","v":1354},"[Grilles TSNC 2020-2021.xlsx]Feuille de calcul'!$AD$26"]
["Plantation uniforme et regarni mécanique ","Scarificateur-planteur (Bracke P-11a)","1500 plants/ha et + Récipient 25-200","Fixe","Millier de plants","Millier de plants",null,1291.3900367335475,1291,1343.4112312043342,1343,1382.7788212905364,1383,"[Grilles TSNC 2020-2021.xlsx]Feuille de calcul'!$AD$27"]
["Plantation uniforme et regarni mécanique ","Scarificateur-planteur (Bracke P-11a)","1499 plants/ha et - Récipient 45-110","Fixe","Millier de plants","Millier de plants",null,1379.2562607597974,1379,1434.8169791524545,1435,1476.8631414681879,1477,"[Grilles TSNC 2020-2021.xlsx]Feuille de calcul'!$AD$28"]
["Plantation uniforme et regarni mécanique ","Scarificateur-planteur (Bracke P-11a)","1499 plants/ha et - Récipient 25-200","Fixe","Millier de plants","Millier de plants",null,1406.0899773317003,1406,1462.7316410224114,1463,1505.5958201451849,1506,"[Grilles TSNC 2020-2021.xlsx]Feuille de calcul'!$AD$29"]
["Régénération artificielle","Plantation uniforme PEH",null,null,"Fixe","Millier de plants",null,667.35474273071213,667,704.40815552355662,704,722.86438991754846,723,"[Grilles TSNC 2020-2021.xlsx]Feuille de calcul'!$AD$30"]
["Régénération artificielle","Plantation par enrichissement",null,"Puit de lumière (300 plants/ha), enrichissement (350plants/ha) ou regarni pins et feuillus (≤799plants/ha)","Fixe","Millier de plants",null,719.33160900294797,719,759.27092363831628,759,779.16462024777127,779,"[Grilles TSNC 2020-2021.xlsx]Feuille de calcul'!$AD$31"]
["Régénération artificielle","Ensemencement",null,"Terrestre manuel","Fixe","Hectare",5000,195.29136878394485,195,206.13449499418451,206,211.5354355234322,212,"[Grilles TSNC 2020-2021.xlsx]Feuille de calcul'!$AD$32"]
["Régénération artificielle","Traçabilité",null,null,"Fixe","Millier de plants",null,1.8296603925246164,1.83,1.93,{"$f":"ROUND(J34,2)","v":1.93},1.9839134317168967,{"$f":"ROUND(L34,2)","v":1.98},"[Grilles TSNC 2020-2021.xlsx]Feuille de calcul'!$AD$33"]
["Régénération artificielle","Plantation uniforme et regarni manuel sauf PEH","Variable 1 - Variable 2 * PR + Variable 3 / (DE * DS)  + GABARIT",null,"Variable","Millier de plants","Variable 1",107.5303551396886,107.5,113.50074297337453,{"$f":"ROUND(J35,1)","v":113.5},116.47458179080253,{"$f":"ROUND(L35,1)","v":116.5},"[Grilles TSNC 2020-2021.xlsx]Feuille de calcul'!$AD$34"]
["Régénération artificielle","Plantation uniforme et regarni manuel sauf PEH","Variable 1 - Variable 2 * PR + Variable 3 / (DE * DS)  + GABARIT",null,"Variable","Millier de plants","Variable 2",-65.109007482391078,-65.11,-68.724042749700061,{"$f":"ROUND(J36,2)","v":-68.72},-70.52468493639995,{"$f":"ROUND(L36,2)","v":-70.52},"[Grilles TSNC 2020-2021.xlsx]Feuille de calcul'!$AD$35"]
["Régénération artificielle","Plantation uniforme et regarni manuel sauf PEH","Variable 1 - Variable 2 * PR + Variable 3 / (DE * DS)  + GABARIT",null,"Variable","Millier de plants","Variable 3",425014.5573115673,425015,448612.56123163266,{"$f":"ROUND(J37,0)","v":448613},460366.68207372609,{"$f":"ROUND(L37,0)","v":460367},"[Grilles TSNC 2020-2021.xlsx]Feuille de calcul'!$AD$36"]
["Régénération artificielle","Plantation uniforme et regarni manuel sauf PEH","Variable 1 - Variable 2 * PR + Variable 3 / (DE * DS)  + GABARIT",null,"Variable","Millier de plants","Gabarit 113-25",82.011779601611536,82,86.565304329734289,87,88.833406330781301,89,"[Grilles TSNC 2020-2021.xlsx]Feuille de calcul'!$AD$37"]
["Régénération artificielle","Plantation uniforme et regarni manuel sauf PEH","Variable 1 - Variable 2 * PR + Variable 3 / (DE * DS)  + GABARIT",null,"Variable","Millier de plants","Gabarit 67-50",86.974470772450658,87,91.803538075972028,92,94.208887309426814,94,"[Grilles TSNC 2020-2021.xlsx]Feuille de calcul'!$AD$38"]
["Régénération artificielle","Plantation uniforme et regarni manuel sauf PEH","Variable 1 - Variable 2 * PR + Variable 3 / (DE * DS)  + GABARIT",null,"Variable","Millier de plants","Gabarit 45-110",148.51610505853952,149,156.76213703338095,157,160.86946986663119,161,"[Grilles TSNC 2020-2021.xlsx]Feuille de calcul'!$AD$39"]
["Régénération artificielle","Plantation uniforme et regarni manuel sauf PEH","Variable 1 - Variable 2 * PR + Variable 3 / (DE * DS)  + GABARIT",null,"Variable","Millier de plants","Gabarit 25-200",260.82909646133527,261,275.31106169023354,275,282.52450100942633,283,"[Grilles TSNC 2020-2021.xlsx]Feuille de calcul'!$AD$40"]
["Régénération artificielle","Plantation uniforme et regarni manuel sauf PEH","Variable 1 - Variable 2 * PR + Variable 3 / (DE * DS)  + GABARIT",null,"Variable","Millier de plants","Gabarit PFD récipient",298.7930673440062,299,315.38289904076703,315,323.64626263602054,324,"[Grilles TSNC 2020-2021.xlsx]Feuille de calcul'!$AD$41"]
["Régénération artificielle","Plantation uniforme et regarni manuel sauf PEH","Variable 1 - Variable 2 * PR + Variable 3 / (DE * DS)  + GABARIT",null,"Variable","Millier de plants","Gabarit PFD racine nue",350.80073943203996,351,370.27818339688412,370,379.97986116731681,380,"[Grilles TSNC 2020-2021.xlsx]Feuille de calcul'!$AD$42"]
["Régénération artificielle","Plantation uniforme et regarni manuel sauf PEH",null,"Taux moyen plantation - Gabarit 113-25","Variable","Millier de plants",null,214.82215831999994,215,226.74968891146631,227,241.19429393118921,241,"[Grilles TSNC 2020-2021.xlsx]Feuille de calcul'!$AD$43"]
["Régénération artificielle","Plantation uniforme et regarni manuel sauf PEH",null,"Taux moyen plantation - Gabarit 67-50","Variable","Millier de plants",null,230.23154404422962,230,243.01464708249952,243,258.49537655103973,258,"[Grilles TSNC 2020-2021.xlsx]Feuille de calcul'!$AD$44"]
["Régénération artificielle","Plantation uniforme et regarni manuel sauf PEH",null,"Taux moyen plantation - Gabarit 45-110","Variable","Millier de plants",null,287.26255219101068,287,303.21217724755218,303,322.52766190614938,323,"[Grilles TSNC 2020-2021.xlsx]Feuille de calcul'!$AD$45"]
["Régénération artificielle","Plantation uniforme et regarni manuel sauf PEH",null,"Taux moyen plantation - Gabarit 25-200","Variable","Millier de plants",null,398.7524900912527,399,420.89235015588378,421,447.70439908530227,448,"[Grilles TSNC 2020-2021.xlsx]Feuille de calcul'!$AD$46"]
["Régénération artificielle","Plantation uniforme et regarni manuel sauf PEH",null,"Taux moyen plantation - Gabarit PFD récipient","Variable","Millier de plants",null,443.94811327904358,444,468.59736149240445,469,498.44835636051613,498,"[Grilles TSNC 2020-2021.xlsx]Feuille de calcul'!$AD$47"]
["Régénération artificielle","Plantation uniforme et regarni manuel sauf PEH",null,"Taux moyen plantation - Gabarit PFD racine nue","Variable","Millier de plants",null,488.69473040836436,489,515.82843669089505,516,548.68818640746611,549,"[Grilles TSNC 2020-2021.xlsx]Feuille de calcul'!$AD$48"]
["Régénération artificielle","Plantation uniforme et regarni manuel sauf PEH",null,"Taux moyen regarni - Gabarit 113-25","Variable","Millier de plants",null,333.66320060102771,334,352.18912019674764,352,374.62457648296123,375,"[Grilles TSNC 2020-2021.xlsx]Feuille de calcul'!$AD$49"]
["Régénération artificielle","Plantation uniforme et regarni manuel sauf PEH",null,"Taux moyen regarni - Gabarit 67-50","Variable","Millier de plants",null,332.2950266468128,332,350.74498137549591,351,373.08844188007566,373,"[Grilles TSNC 2020-2021.xlsx]Feuille de calcul'!$AD$50"]
["Régénération artificielle","Plantation uniforme et regarni manuel sauf PEH",null,"Taux moyen regarni - Gabarit 45-110","Variable","Millier de plants",null,379.05339951702632,379,400.09951065330819,400,425.58699611675223,426,"[Grilles TSNC 2020-2021.xlsx]Feuille de calcul'!$AD$51"]
["Régénération artificielle","Plantation uniforme et regarni manuel sauf PEH",null,"Taux moyen regarni - Gabarit 25-200","Variable","Millier de plants",null,492.01137981841293,492,519.32923580695581,519,552.41199646006942,552,"[Grilles TSNC 2020-2021.xlsx]Feuille de calcul'!$AD$52"]
["Régénération artificielle","Plantation uniforme et regarni manuel sauf PEH",null,"Taux moyen regarni - Gabarit PFD récipient","Variable","Millier de plants",null,516.2229995660349,516,544.88515279778176,545,579.59589860325173,580,"[Grilles TSNC 2020-2021.xlsx]Feuille de calcul'!$AD$53"]
["Régénération artificielle","Plantation uniforme et regarni manuel sauf PEH",null,"Taux moyen regarni - Gabarit PFD racine nue","Variable","Millier de plants",null,579.88415604292334,580,612.08095578089842,612,651.0722668111049,651,"[Grilles TSNC 2020-2021.xlsx]Feuille de calcul'!$AD$54"]
["Régénération artificielle","Plantation uniforme et regarni manuel sauf PEH",null,"Taux moyen plantation - Tous gabarits","Variable","Millier de plants",null,288.41034053632518,288,304.42369403088406,304,323.81635578063401,324,"[Grilles TSNC 2020-2021.xlsx]Feuille de calcul'!$AD$55"]
["Régénération artificielle","Plantation uniforme et regarni manuel sauf PEH",null,"Taux moyen regarni - Tous gabarits","Variable","Millier de plants",null,390.79361141089191,391,412.49157214038843,412,438.76846743464762,439,"[Grilles TSNC 2020-2021.xlsx]Feuille de calcul'!$AD$56"]
["Régénération artificielle","Plantation uniforme et regarni manuel sauf PEH",null,"Taux moyen - Total","Variable","Millier de plants",null,306.28144632698917,306,323.28705389202418,323,343.88136572494335,344,"[Grilles TSNC 2020-2021.xlsx]Feuille de calcul'!$AD$57"]
["Éducation de peuplement","Dégagement mécanique de la régénération","Variable 1 + (Variable 2 * RECFFE) + (Variable 3 * DI) + (Variable 4 * MODE)","Variable","Hectare","Hectare","Variable 1",831.57789074626146,832,876.51731634788314,877,899.63287325193232,{"$f":"ROUND(L59,2)","v":899.63},"[Grilles TSNC 2020-2021.xlsx]Feuille de calcul'!$AD$58"]
["Éducation de peuplement","Dégagement mécanique de la régénération","Variable 1 + (Variable 2 * RECFFE) + (Variable 3 * DI) + (Variable 4 * MODE)","Variable","Hectare","Hectare","Variable 2",11.740200005486235,11.74,12.374653916016779,{"$f":"ROUND(J60,2)","v":12.37},12.700998885395652,{"$f":"ROUND(L60,2)","v":12.7},"[Grilles TSNC 2020-2021.xlsx]Feuille de calcul'!$AD$59"]
["Éducation de peuplement","Dégagement mécanique de la régénération","Variable 1 + (Variable 2 * RECFFE) + (Variable 3 * DI) + (Variable 4 * MODE)","Variable","Hectare","Hectare","Variable 3",4.0699360019018941E-3,4.1000000000000003E-3,4.2898800242191486E-3,{"$f":"ROUND(J61,4)","v":4.3E-3},4.4030129469371576E-3,{"$f":"ROUND(L61,4)","v":4.4000000000000003E-3},"[Grilles TSNC 2020-2021.xlsx]Feuille de calcul'!$AD$60"]
["Éducation de peuplement","Dégagement mécanique de la régénération","Variable 1 + (Variable 2 * RECFFE) + (Variable 3 * DI) + (Variable 4 * MODE)","Variable","Hectare","Hectare","Variable 4",135.79498006345742,135.79,143.13349696192736,{"$f":"ROUND(J62,2)","v":143.13},146.90822044107631,{"$f":"ROUND(L62,2)","v":146.91},"[Grilles TSNC 2020-2021.xlsx]Feuille de calcul'!$AD$61"]
["Éducation de peuplement","Gaulis I","(Variable 1 + (Variable 2 * DI) - (Variable 3 * SRLC)) ","Secteur d'intervention sans choix de tige, soit inter spécifique (par groupe d'essence, résineux / feuillus) et sans espacement ","Variable","Hectare","Variable 1",805.55546874992081,805.56,910.27097449249197,{"$f":"ROUND(J63,2)","v":910.27},"Abandonné","Abandonné","Abandonné"]
["Éducation de peuplement","Gaulis I","(Variable 1 + (Variable 2 * DI) - (Variable 3 * SRLC)) ","Secteur d'intervention sans choix de tige, soit inter spécifique (par groupe d'essence, résineux / feuillus) et sans espacement ","Variable","Hectare","Variable 2",1.0324409957852384E-2,1.03E-2,1.00783E-2,{"$f":"ROUND(J64,4)","v":1.01E-2},"Abandonné","Abandonné","Abandonné"]
["Éducation de peuplement","Gaulis I","(Variable 1 + (Variable 2 * DI) - (Variable 3 * SRLC)) ","Secteur d'intervention sans choix de tige, soit inter spécifique (par groupe d'essence, résineux / feuillus) et sans espacement ","Variable","Hectare","Variable 3",-196.88014280634434,196.88,-373.30584260000001,{"$f":"ROUND(J65,2)","v":-373.31},"Abandonné","Abandonné","Abandonné"]
["Éducation de peuplement","Nettoiement d'un peuplement résineux ou mixte (FI) à dominance de résineux en scénario sylvicole de base des peuplements en régénérationa naturelle, en plantation uniforme ou en regarni de la régénération artificielle","(Variable 1 + (Variable 2 * DI) - (Variable 3 * SRLC)) ","Équation de Gaulis I 2019-2020 récupérée pour ce traitement","Variable","Hectare","Régulier",null,null,null,null,934.27668449564078,{"$f":"ROUND(L66,2)","v":934.28},"[Grilles TSNC 2020-2021.xlsx]Feuille de calcul'!$AD$65"]
["Éducation de peuplement","Nettoiement d'un peuplement résineux ou mixte (FI) à dominance de résineux en scénario sylvicole de base des peuplements en régénérationa naturelle, en plantation uniforme ou en regarni de la régénération artificielle","(Variable 1 + (Variable 2 * DI) - (Variable 3 * SRLC)) ","Équation de Gaulis I 2019-2020 récupérée pour ce traitement","Variable","Hectare","Régulier",null,null,null,null,1.0344085413249745E-2,{"$f":"ROUND(L67,4)","v":1.03E-2},"[Grilles TSNC 2020-2021.xlsx]Feuille de calcul'!$AD$66"]
["Éducation de peuplement","Nettoiement d'un peuplement résineux ou mixte (FI) à dominance de résineux en scénario sylvicole de base des peuplements en régénérationa naturelle, en plantation uniforme ou en regarni de la régénération artificielle","(Variable 1 + (Variable 2 * DI) - (Variable 3 * SRLC)) ","Équation de Gaulis I 2019-2020 récupérée pour ce traitement","Variable","Hectare","Régulier",null,null,null,null,-383.15068226978411,{"$f":"ROUND(L68,2)","v":-383.15},"[Grilles TSNC 2020-2021.xlsx]Feuille de calcul'!$AD$67"]
["Éducation de peuplement","Gaulis II","Variable 0 + (Variable 1 * ln (DI) - Variable 2) * TP ","Secteur d'intervention avec un choix de tige intraspécifique (par essence) et avec un espacement OU secteur d'intervention avec choix de tige résineuse sans espacement ","constante","Hectare","Variable 0",567.6348382856562,567.63,156.32842429969318,{"$f":"ROUND(J69,2)","v":156.33000000000001},"Abandonné","Abandonné","Abandonné"]
["Éducation de peuplement","Gaulis II","Variable 0 + (Variable 1 * ln (DI) - Variable 2) * TP ","Secteur d'intervention avec un choix de tige intraspécifique (par essence) et avec un espacement OU secteur d'intervention avec choix de tige résineuse sans espacement ","Variable","Hectare","Variable 1",4387.8341980331143,4387.83,630.27817999999991,{"$f":"ROUND(J70,2)","v":630.28},"Abandonné","Abandonné","Abandonné"]
["Éducation de peuplement","Gaulis II","Variable 0 + (Variable 1 * ln (DI) - Variable 2) * TP ","Secteur d'intervention avec un choix de tige intraspécifique (par essence) et avec un espacement OU secteur d'intervention avec choix de tige résineuse sans espacement ","Variable","Hectare","Variable 2",null,null,5094.5390900000002,{"$f":"ROUND(J71,0)","v":5095},"Abandonné","Abandonné","Abandonné"]
["Éducation de peuplement","Nettoiement d'un peuplement résineux en scénario intensif ou élite de plantation uniforme et éclaircie précommerciale systématique d'un peuplement résineux en scénario sylvicole intensi ou d'élite des peuplements en régénération naturelle ou en regarni de la régénération artificielle","Variable 0 + (Variable 1 * ln (DI) - Variable 2) * TP ","Équation de Gaulis II 2019-2020 récupérée pour ce traitement","Variable","Hectare","Régulier",null,null,null,null,160.45112503842643,160.44999999999999,"[Grilles TSNC 2020-2021.xlsx]Feuille de calcul'!$AD$71"]
["Éducation de peuplement","Nettoiement d'un peuplement résineux en scénario intensif ou élite de plantation uniforme et éclaircie précommerciale systématique d'un peuplement résineux en scénario sylvicole intensi ou d'élite des peuplements en régénération naturelle ou en regarni de la régénération artificielle","Variable 0 + (Variable 1 * ln (DI) - Variable 2) * TP ","Équation de Gaulis II 2019-2020 récupérée pour ce traitement","Variable","Hectare","Régulier",null,null,null,null,646.8999065345937,646.9,"[Grilles TSNC 2020-2021.xlsx]Feuille de calcul'!$AD$72"]
["Éducation de peuplement","Nettoiement d'un peuplement résineux en scénario intensif ou élite de plantation uniforme et éclaircie précommerciale systématique d'un peuplement résineux en scénario sylvicole intensi ou d'élite des peuplements en régénération naturelle ou en regarni de la régénération artificielle","Variable 0 + (Variable 1 * ln (DI) - Variable 2) * TP ","Équation de Gaulis II 2019-2020 récupérée pour ce traitement","Variable","Hectare","Régulier",null,null,null,null,5228.8925203754234,5228.8900000000003,"[Grilles TSNC 2020-2021.xlsx]Feuille de calcul'!$AD$73"]
["Éducation de peuplement","Gaulis III","Variable 0 + (Variable 1 * ln (DI) - Variable 2) * TP ",null,"constante","Hectare","Variable 0",null,null,156.32842429969318,{"$f":"ROUND(J75,2)","v":156.33000000000001},160.45112503842643,160.44999999999999,"[Grilles TSNC 2020-2021.xlsx]Feuille de calcul'!$AD$74"]
["Éducation de peuplement","Gaulis III","Variable 0 + (Variable 1 * ln (DI) - Variable 2) * TP ",null,"Variable","Hectare","Variable 1",null,null,479.74525742097478,{"$f":"ROUND(J76,2)","v":479.75},492.39712246748451,492.4,"[Grilles TSNC 2020-2021.xlsx]Feuille de calcul'!$AD$75"]
["Éducation de peuplement","Gaulis III","Variable 0 + (Variable 1 * ln (DI) - Variable 2) * TP ",null,"Variable","Hectare","Variable 2",null,null,3727.6250984036942,{"$f":"ROUND(J77,0)","v":3728},3825.930207124346,3825.93,"[Grilles TSNC 2020-2021.xlsx]Feuille de calcul'!$AD$76"]
["Éducation de peuplement","Éclaircie précommerciale par puit de lumière","Variable 1 * DENSTIGE * EXP (14,052 * HTTIGE) + Variable 3 * DENSTIGE / (Variable 4 * DENSTIGE + Variable 5) + Variable 6 * TAIL + Variable 7","Variable 1","Variable","Hectare","Variable 1",0.4470027153587412,0.44700000000000001,0.47115925618807941,{"$f":"ROUND(J78,3)","v":0.47099999999999997},0.48358469079633587,{"$f":"ROUND(L78,3)","v":0.48399999999999999},"[Grilles TSNC 2020-2021.xlsx]Feuille de calcul'!$AD$77"]
["Éducation de peuplement","Éclaircie précommerciale par puit de lumière","Pas utilisé dans la formule","Variable 2","Variable","Hectare","Pour équation",null,0.1452,null,0.1452,null,0.1452]
["Éducation de peuplement","Éclaircie précommerciale par puit de lumière","Variable 1 * DENSTIGE * EXP (14,052 * HTTIGE) + Variable 3 * DENSTIGE / (Variable 4 * DENSTIGE + Variable 5) + Variable 6 * TAIL + Variable 7","Variable 3 (martelage)","Variable","Hectare","Variable 3 (martelage)",36.962312737252468,37,39.026765685001251,{"$f":"ROUND(J80,0)","v":39},40.048426265183167,{"$f":"ROUND(L80,0)","v":40},"[Grilles TSNC 2020-2021.xlsx]Feuille de calcul'!$AD$78"]
["Éducation de peuplement","Éclaircie précommerciale par puit de lumière","Variable 1 * DENSTIGE * EXP (14,052 * HTTIGE) + Variable 3 * DENSTIGE / (Variable 4 * DENSTIGE + Variable 5) + Variable 6 * TAIL + Variable 7","variable 4 (martelage)","Variable","Hectare","Variable 4 (martelage)",0.12036897310339933,0.12039999999999999,0.12036897310339933,{"$f":"ROUND(J81,4)","v":0.12039999999999999},0.12036897310339933,{"$f":"ROUND(L81,4)","v":0.12039999999999999},"[Grilles TSNC 2020-2021.xlsx]Feuille de calcul'!$AD$79"]
["Éducation de peuplement","Éclaircie précommerciale par puit de lumière","Variable 1 * DENSTIGE * EXP (14,052 * HTTIGE) + Variable 3 * DENSTIGE / (Variable 4 * DENSTIGE + Variable 5) + Variable 6 * TAIL + Variable 7","variable 5 (martelage)","Variable","Hectare","Variable 5 (martelage)",98.632178837555884,98.63,98.632178837555884,{"$f":"ROUND(J82,2)","v":98.63},98.632178837555884,{"$f":"ROUND(L82,2)","v":98.63},"[Grilles TSNC 2020-2021.xlsx]Feuille de calcul'!$AD$80"]
["Éducation de peuplement","Éclaircie précommerciale par puit de lumière","Variable 1 * DENSTIGE * EXP (14,052 * HTTIGE) + Variable 3 * DENSTIGE / (Variable 4 * DENSTIGE + Variable 5) + Variable 6 * TAIL + Variable 7","variable 6 (taille)","Variable","Hectare","Variable 6 (taille)",42.911689317306049,42.91,45.230686360125937,45.23,46.423512200376344,46.42,"[Grilles TSNC 2020-2021.xlsx]Feuille de calcul'!$AD$81"]
["Éducation de peuplement","Éclaircie précommerciale par puit de lumière","Variable 1 * DENSTIGE * EXP (14,052 * HTTIGE) + Variable 3 * DENSTIGE / (Variable 4 * DENSTIGE + Variable 5) + Variable 6 * TAIL + Variable 7","variable 7 (constante totale)","Variable","Hectare","Variable 7 (constante totale)",782.28607715083695,782.29,824.56171645596066,824.56,846.30709777604102,846.31,"[Grilles TSNC 2020-2021.xlsx]Feuille de calcul'!$AD$82"]
["Éducation de peuplement","Éclaircie précommerciale par puit de lumière","Pas utilisé dans la formule","variable 8 (constante exécution)","Variable","Hectare","Variable 8 (constante exécution)",634.07461687078694,634.07000000000005,668.28493252518285,668.28,668.28493252518285,668.28,"[Grilles TSNC 2020-2021.xlsx]Feuille de calcul'!$AD$83"]
["Éducation de peuplement","Éclaircie précommerciale par puit de lumière","Pas utilisé dans la formule","variable 9 (constante martelage et taille)","Variable","Hectare","Variable 9 (constante martelage et taille)",148.21146028005001,148.21,156.27678393077784,156.28,156.27678393077784,156.28,"[Grilles TSNC 2020-2021.xlsx]Feuille de calcul'!$AD$84"]
["Éducation de peuplement","Éclaircie précommerciale par puit de lumière","Pas utilisé dans la formule","variable 10 (constante martelage)","Variable","Hectare","Variable 10 (constante martelage)",30.801927281043721,30.8,32.522304737501038,32.520000000000003,33.373688554319301,33.369999999999997,"[Grilles TSNC 2020-2021.xlsx]Feuille de calcul'!$AD$85"]
["Éducation de peuplement","Éclaircie précommerciale par puit de lumière","Pas utilisé dans la formule","variable 11 (constante taille)","Variable","Hectare","Variable 11 (constante taille)",117.40953299900629,117.41,123.75447919327679,123.75,127.01813828200127,127.02,"[Grilles TSNC 2020-2021.xlsx]Feuille de calcul'!$AD$86"]
["Éducation de peuplement","Élagage à des fins de qualité pour le pin blanc et le pin rouge","(Variable 1 * BRAN + Variable 2 + Variable 3 * LONGELA) + (Variable 4 * ln (DENSELA) + Variable 5)) * DENSELA) + MP + Variable 8","Variable 1","Variable","Hectare","Variable 1",2.4012193585818367E-2,2.4E-2,2.5309840143272221E-2,{"$f":"ROUND(J89,3)","v":2.5000000000000001E-2},2.5977312467152694E-2,{"$f":"ROUND(L89,3)","v":2.5999999999999999E-2},"[Grilles TSNC 2020-2021.xlsx]Feuille de calcul'!$AD$87"]
["Éducation de peuplement","Élagage à des fins de qualité pour le pin blanc et le pin rouge","(Variable 1 * BRAN + Variable 2 + Variable 3 * LONGELA) + (Variable 4 * ln (DENSELA) + Variable 5)) * DENSELA) + MP + Variable 8","Variable 2","Variable","Hectare","Variable 2",0.34928956718492871,0.3493,0.36816557710847692,{"$f":"ROUND(J90,4)","v":0.36820000000000003},0.37787485744902116,{"$f":"ROUND(L90,4)","v":0.37790000000000001},"[Grilles TSNC 2020-2021.xlsx]Feuille de calcul'!$AD$88"]
["Éducation de peuplement","Élagage à des fins de qualité pour le pin blanc et le pin rouge","(Variable 1 * BRAN + Variable 2 + Variable 3 * LONGELA) + (Variable 4 * ln (DENSELA) + Variable 5)) * DENSELA) + MP + Variable 8","Variable 3","Variable","Hectare","Variable 3",0.58168074803499514,0.58169999999999999,0.61311544464141376,{"$f":"ROUND(J91,4)","v":0.61309999999999998},0.62928455469209876,{"$f":"ROUND(L91,4)","v":0.62929999999999997},"[Grilles TSNC 2020-2021.xlsx]Feuille de calcul'!$AD$89"]
["Éducation de peuplement","Élagage à des fins de qualité pour le pin blanc et le pin rouge","(Variable 1 * BRAN + Variable 2 + Variable 3 * LONGELA) + (Variable 4 * ln (DENSELA) + Variable 5)) * DENSELA) + MP + Variable 8","Variable 4","Variable","Hectare","Variable 4",5.8097795212516658E-2,5.8099999999999999E-2,6.1237466883234268E-2,{"$f":"ROUND(J92,4)","v":6.1199999999999997E-2},6.285242431076947E-2,{"$f":"ROUND(L92,4)","v":6.2899999999999998E-2},"[Grilles TSNC 2020-2021.xlsx]Feuille de calcul'!$AD$90"]
["Éducation de peuplement","Élagage à des fins de qualité pour le pin blanc et le pin rouge","(Variable 1 * BRAN + Variable 2 + Variable 3 * LONGELA) + (Variable 4 * ln (DENSELA) + Variable 5)) * DENSELA) + MP + Variable 8","Variable 5","Variable","Hectare","Variable 5",0.49186119819573548,0.4919,0.51844194302867652,{"$f":"ROUND(J93,4)","v":0.51839999999999997},0.53211431893273542,{"$f":"ROUND(L93,4)","v":0.53210000000000002},"[Grilles TSNC 2020-2021.xlsx]Feuille de calcul'!$AD$91"]
["Éducation de peuplement","Élagage à des fins de qualité pour le pin blanc et le pin rouge","(Variable 1 * BRAN + Variable 2 + Variable 3 * LONGELA) + (Variable 4 * ln (DENSELA) + Variable 5)) * DENSELA) + MP + Variable 8","Variable 6 (martelage)","Variable","Hectare","Variable 6 (martelage)",117.38410675306386,117.38,123.9403514049572,{"$f":"ROUND(J94,2)","v":123.94},127.15789689915195,{"$f":"ROUND(L94,2)","v":127.16},"[Grilles TSNC 2020-2021.xlsx]Feuille de calcul'!$AD$92"]
["Éducation de peuplement","Élagage à des fins de qualité pour le pin blanc et le pin rouge","(Variable 1 * BRAN + Variable 2 + Variable 3 * LONGELA) + (Variable 4 * ln (DENSELA) + Variable 5)) * DENSELA) + MP + Variable 8","Variable 7 (martelage)","Variable","Hectare","Variable 7 (martelage)",175.70774878494143,175.71,185.52153891490229,{"$f":"ROUND(J95,2)","v":185.52},190.3377588533254,{"$f":"ROUND(L95,2)","v":190.34},"[Grilles TSNC 2020-2021.xlsx]Feuille de calcul'!$AD$93"]
["Éducation de peuplement","Élagage à des fins de qualité pour le pin blanc et le pin rouge","(Variable 1 * BRAN + Variable 2 + Variable 3 * LONGELA) + (Variable 4 * ln (DENSELA) + Variable 5)) * DENSELA) + MP + Variable 8","Variable 8","Variable","Hectare","Variable 8",556.38009528115742,556.38,586.44751551484421,{"$f":"ROUND(J96,2)","v":586.45000000000005},601.91333765353806,{"$f":"ROUND(L96,2)","v":601.91},"[Grilles TSNC 2020-2021.xlsx]Feuille de calcul'!$AD$94"]
["Éducation de peuplement","Taille phytosanitaire",null,null,"Variable","Hectare","Variable 1",1.8563719340470724E-2,1.8599999999999998E-2,1.9566924083494634E-2,{"$f":"ROUND(J97,4)","v":1.9599999999999999E-2},2.0082943948308937E-2,{"$f":"ROUND(L97,4)","v":2.01E-2},"[Grilles TSNC 2020-2021.xlsx]Feuille de calcul'!$AD$95"]
["Éducation de peuplement","Taille phytosanitaire",null,null,"Variable","Hectare","Variable 2",8.8970020741524297E-2,8.8999999999999996E-2,9.3778062985529126E-2,{"$f":"ROUND(J98,4)","v":9.3799999999999994E-2},9.6251182581529385E-2,{"$f":"ROUND(L98,4)","v":9.6299999999999997E-2},"[Grilles TSNC 2020-2021.xlsx]Feuille de calcul'!$AD$96"]
["Éducation de peuplement","Taille phytosanitaire",null,null,"Variable","Hectare","Variable 3",5.6143931663862681E-2,5.6099999999999997E-2,5.9178014301300846E-2,{"$f":"ROUND(J99,4)","v":5.9200000000000003E-2},6.0738659746105081E-2,{"$f":"ROUND(L99,4)","v":6.0699999999999997E-2},"[Grilles TSNC 2020-2021.xlsx]Feuille de calcul'!$AD$97"]
["Éducation de peuplement","Taille phytosanitaire",null,null,"Variable","Hectare","Variable 4",0.47586509821548106,0.47589999999999999,0.50158139540860613,{"$f":"ROUND(J100,4)","v":0.50160000000000005},0.51480912413835811,{"$f":"ROUND(L100,4)","v":0.51480000000000004},"[Grilles TSNC 2020-2021.xlsx]Feuille de calcul'!$AD$98"]
["Éducation de peuplement","Taille phytosanitaire",null,null,"Variable","Hectare","Variable 5",0.10119490908768794,0.1,0.10666359835758657,{"$f":"ROUND(J101,1)","v":0.1},0.1094765359133426,{"$f":"ROUND(L101,1)","v":0.1},"[Grilles TSNC 2020-2021.xlsx]Feuille de calcul'!$AD$99"]
["Éducation de peuplement","Taille phytosanitaire",null,null,"Variable","Hectare","Variable 6",0.44971742036396445,0.44969999999999999,0.47402066697392786,{"$f":"ROUND(J102,4)","v":0.47399999999999998},0.48652156284531339,{"$f":"ROUND(L102,4)","v":0.48649999999999999},"[Grilles TSNC 2020-2021.xlsx]Feuille de calcul'!$AD$100"]
["Éducation de peuplement","Taille phytosanitaire",null,null,"Variable","Hectare","Variable 7",537.66870040997514,538,566.72493534511887,{"$f":"ROUND(J103,0)","v":567},581.6706326491917,{"$f":"ROUND(L103,2)","v":581.66999999999996},"[Grilles TSNC 2020-2021.xlsx]Feuille de calcul'!$AD$101"]
["Éducation de peuplement","Dépressage","Origine (2019-2020) : Équation Gaulis II calibrée à 60% des frais variables\nK:\\F1411ae\\DEEF\\1-Valeur des traitements sylvicoles\\TSNC\\Taux\\3_EducationPeuplement\\Depressage",null,"Variable","Hectare","Variable 0",0,0,156.32842429969318,156.33000000000001,160.45112503842643,{"$f":"ROUND(L104,2)","v":160.44999999999999},"[Grilles TSNC 2020-2021.xlsx]Feuille de calcul'!$AD$102"]
["Éducation de peuplement","Dépressage",null,null,"Variable","Hectare","Variable 1",0,0,378.17,378.17,388.14311746312933,{"$f":"ROUND(L105,2)","v":388.14},"[Grilles TSNC 2020-2021.xlsx]Feuille de calcul'!$AD$103"]
["Éducation de peuplement","Dépressage",null,null,"Variable","Hectare","Variable 2",0,0,3057,3057,3137.6193513096919,{"$f":"ROUND(L106,2)","v":3137.62},"[Grilles TSNC 2020-2021.xlsx]Feuille de calcul'!$AD$104"]
["Éducation de peuplement","Débrousaillement manuel","Origine (2017-2018) et modifications aux catégories en 2018-2019 : Variable selon niveau de difficulté et certaines caractéristiques d'inventaire. Les taux 2018-2019 sont la base formelle de départ. \nK:\\F1411ae\\DEEF\\1-Valeur des traitements sylvicoles\\TSNC\\Taux\\3_EducationPeuplement\\Débrousaillement manuel","Traitement PRT assimilé à la famille EP","Variable","Hectare",null,544.72161371730101,599,574.15899619902609,574,589.30074491416815,{"$f":"ROUND(L107,0)","v":589},"[Grilles TSNC 2020-2021.xlsx]Feuille de calcul'!$AD$105"]
["Éducation de peuplement","Débrousaillement manuel",null,"Traitement PRT assimilé à la famille EP","Variable","Hectare",null,857.86102566939076,944,904.22082211011127,904,928.06697720308921,{"$f":"ROUND(L108,0)","v":928},"[Grilles TSNC 2020-2021.xlsx]Feuille de calcul'!$AD$106"]
["Éducation de peuplement","Débrousaillement manuel",null,"Traitement PRT assimilé à la famille EP","Variable","Hectare",null,1158.9178879641652,1275,1221.5471434844342,1222,1253.7618436159103,{"$f":"ROUND(L109,0)","v":1254},"[Grilles TSNC 2020-2021.xlsx]Feuille de calcul'!$AD$107"]
["Éducation de peuplement","Débrousaillement manuel",null,"Traitement PRT assimilé à la famille EP","Variable","Hectare",null,1361.3005947241975,1497,1434.8668444752,1435,1472.7072220405828,{"$f":"ROUND(L110,0)","v":1473},"[Grilles TSNC 2020-2021.xlsx]Feuille de calcul'!$AD$108"]
["Éducation de peuplement","Nettoiement HEG","Origine (2018-2019) : adaptation de l'équation Gaulis I de 2018-2019. Le taux 2019-2020 est la base formelle de départ.\nK:\\F1411ae\\DEEF\\1-Valeur des traitements sylvicoles\\TSNC\\Taux\\3_EducationPeuplement\\Nettoiement HEG",null,"Variable","Hectare","Variable 1",805.55546874992103,765.28,795.12352542960946,795.12,816.09256135738519,{"$f":"ROUND(L111,2)","v":816.09},"[Grilles TSNC 2020-2021.xlsx]Feuille de calcul'!$AD$109"]
["Éducation de peuplement","Nettoiement HEG",null,null,"Variable","Hectare","Variable 2",1.0324409957852384E-2,1.03E-2,1.0727061946208627E-2,1.0699999999999999E-2,1.1009956540766109E-2,{"$f":"ROUND(L112,4)","v":1.0999999999999999E-2},"[Grilles TSNC 2020-2021.xlsx]Feuille de calcul'!$AD$110"]
["Éducation de peuplement","Nettoiement HEG",null,null,"Variable","Hectare","Variable 3",-196.88014280634434,-196.88,-204.55846837579176,-204.56,-209.95309416099309,{"$f":"ROUND(L113,2)","v":-209.95},"[Grilles TSNC 2020-2021.xlsx]Feuille de calcul'!$AD$111"]
["Éducation de peuplement","Nettoiement HEG",null,null,"Variable","Hectare","Variable 4",null,null,1.165,1.165,1.165,{"$f":"L114","v":1.165},"[Grilles TSNC 2020-2021.xlsx]Feuille de calcul'!$AD$112"]
["Éducation de peuplement","Dégagement mécanique de la régénération","Variable 1 + (Variable 2 * RECFFE) + (Variable 3 * DI) + (Variable 4 * MODE)",null,"Variable","Hectare","Taux moyen",1254.2882665887214,1254,1322.0714470539533,1322,1507.2540576259853,{"$f":"ROUND(L115,0)","v":1507},"[Grilles TSNC 2020-2021.xlsx]Feuille de calcul'!$AD$113"]
["Éducation de peuplement","Gaulis I","(Variable 1 + (Variable 2 * DI) - (Variable 3 * SRLC)) * CP","Secteur d'intervention sans choix de tige, soit inter spécifique (par groupe d'essence, résineux / feuillus) et sans espacement ","Variable","Hectare","Taux moyen",1075.4697330784254,1075,1133.5893543361542,1134,1170.7599212729401,1171,"[Grilles TSNC 2020-2021.xlsx]Feuille de calcul'!$AD$114"]
["Éducation de peuplement","Gaulis II"," (Variable 1 * ln (DI) - Variable 2) * TP * CP1","Secteur d'intervention avec un choix de tige intraspécifique (par essence) et avec un espacement OU secteur d'intervention avec choix de tige résineuse sans espacement ","Variable","Hectare","Taux moyen",1299.2410617924577,1299,1369.4535430100586,1369,1320.2185531961843,1320,"[Grilles TSNC 2020-2021.xlsx]Feuille de calcul'!$AD$115"]
["Éducation de peuplement","Éclaircie précommerciale par puits de lumière","Variable 1 * DENSTIGE * EXP (14,052 * HTTIGE) + Variable 3 * DENSTIGE / (Variable 4 * DENSTIGE + Variable 5) + Variable 6 * TAIL + Variable 7",null,"Variable","Hectare","Taux moyen",1337.959848528345,1338,1410.2647375110694,1410,1355.7954462390219,1356,"[Grilles TSNC 2020-2021.xlsx]Feuille de calcul'!$AD$116"]
["Éducation de peuplement","Élagage pour fins de qualité du pin blanc et rouge","Élagage pour fins de qualité du pin blanc et rouge","Variable","Hectare","Taux moyen","Taux moyen",1451.972077936083,1452,1530.4383189198161,1530,1090.7207075856477,1091,"[Grilles TSNC 2020-2021.xlsx]Feuille de calcul'!$AD$117"]
["Éducation de peuplement","Taille phytosanitaire","((Variable 1 * BRAN + Variable 2 + (Variable 3 * ln (DENSELA) + Variable 4)) * DENSELA) + Variable 5 * DENSCO + Variable 7 * DENSTF + Variable 8",null,"Variable","Hectare","Taux moyen",471.78335721578429,472,497.27907243093455,497,914.72115419624902,915,"[Grilles TSNC 2020-2021.xlsx]Feuille de calcul'!$AD$118"]
["Éclaircie commerciale EAF","Première éclaircie commerciale de plantation résineuse réservé aux entreprises d'aménagement forestier","(Variable 1 * VREC EXP  Variable 2) + Variable 3","Pourcentage de majoration pour les opérations manuelles","Variable","Hectare","TSC",0.35,0.35,0.36,{"$f":"ROUND(J121,2)","v":0.36},0.34,{"$f":"ROUND(L121,2)","v":0.34},"[Grilles TSNC 2020-2021.xlsx]Feuille de calcul'!AG$119"]
["Éclaircie commerciale EAF","Première éclaircie commerciale de plantation résineuse réservé aux entreprises d'aménagement forestier","(Variable 1 * VREC EXP  Variable 2) + Variable 3","Formule taux","Variable","Hectare","TSC",4.8609999999999998,4.8609999999999998,4.944,{"$f":"ROUND(J122,3)","v":4.944},5.1180000000000003,{"$f":"ROUND(L122,3)","v":5.1180000000000003},"[Grilles TSNC 2020-2021.xlsx]Feuille de calcul'!$AE$120"]
["Éclaircie commerciale EAF","Première éclaircie commerciale de plantation résineuse réservé aux entreprises d'aménagement forestier","(Variable 1 * VREC EXP  Variable 2) + Variable 3","Formule taux","Variable","Hectare","TSC",-0.68200000000000005,-0.68200000000000005,-0.68200000000000005,{"$f":"ROUND(J123,3)","v":-0.68200000000000005},-0.68200000000000005,{"$f":"ROUND(L123,3)","v":-0.68200000000000005},"[Grilles TSNC 2020-2021.xlsx]Feuille de calcul'!$AE$121"]
["Éclaircie commerciale EAF","Première éclaircie commerciale de plantation résineuse réservé aux entreprises d'aménagement forestier","(Variable 1 * VREC EXP  Variable 2) + Variable 3","Formule taux","Variable","Hectare","TSC",8.9160000000000004,8.9160000000000004,9.0860000000000003,{"$f":"ROUND(J124,3)","v":9.0860000000000003},9.3789999999999996,{"$f":"ROUND(L124,3)","v":9.3789999999999996},"[Grilles TSNC 2020-2021.xlsx]Feuille de calcul'!$AE$122"]
["Éclaircie commerciale EAF","Première éclaircie commerciale de plantation résineuse réservé aux entreprises d'aménagement forestier","Variable * Espacement -1","Formule RUB1","Variable","Hectare","TSC",1145,1145,1208.9515887973644,{"$f":"ROUND(J125,0)","v":1209},"Abandonné",{"$f":"L125","v":"Abandonné"},"Abandonné"]
["Éclaircie commerciale EAF","Première éclaircie commerciale de plantation résineuse réservé aux entreprises d'aménagement forestier","Origine 2020-2021","Portion délimitation physique (ruban) ou virtuelles (GPS ou autre) inclue dans le taux d'exécution","Variable","Hectare","TSC",null,null,null,null,55.91,{"$f":"ROUND(L126,2)","v":55.91},"[Grilles TSNC 2020-2021.xlsx]Feuille de calcul'!$AD$124"]
["Éclaircie commerciale EAF","Première éclaircie commerciale de plantation résineuse réservé aux entreprises d'aménagement forestier",null,null,"Variable","Hectare","TSC - Taux Moyen","-","-","-","-",1830,{"$f":"ROUND(L127,0)","v":1830},"[Grilles TSNC 2020-2021.xlsx]Feuille de calcul'!$AD$125"]
["Travaux techniques","Vérification technique","Inventaire après traitement","Traitement de préparation de site mécanisé","Variable","PE","PE + (Nb * Critère #1) + (Nb * Critère #2)",37.250347140306637,37,35.699680670722188,{"$f":"ROUND(J128,0)","v":36},36.626459926906222,{"$f":"ROUND(L128,0)","v":37},"[Grilles TSNC 2020-2021.xlsx]Feuille de calcul'!$AD$126"]
["Travaux techniques","Vérification technique","Inventaire après traitement","Traitement de préparation de site mécanisé","Variable","Critère","Critère #1",2.1728272575680707,2.17,2.2634846886326199,{"$f":"ROUND(J129,2)","v":2.2599999999999998},2.3222457368185574,{"$f":"ROUND(L129,2)","v":2.3199999999999998},"[Grilles TSNC 2020-2021.xlsx]Feuille de calcul'!$AD$127"]
["Travaux techniques","Vérification technique","Inventaire après traitement","Traitement de préparation de site mécanisé","Variable","Critère","Critère #2","-","-",10.124720738380104,{"$f":"ROUND(J130,2)","v":10.119999999999999},10.387562897712986,{"$f":"ROUND(L130,2)","v":10.39},"[Grilles TSNC 2020-2021.xlsx]Feuille de calcul'!$AD$128"]
["Travaux techniques","Vérification technique","Inventaire après traitement","Traitement de préparation de site manuelle","Fixe","PE",null,22.047403334181396,22,24.442755855197078,{"$f":"ROUND(J131,0)","v":24},25.077300441169957,{"$f":"ROUND(L131,0)","v":25},"[Grilles TSNC 2020-2021.xlsx]Feuille de calcul'!$AD$129"]
["Travaux techniques","Vérification technique","Inventaire après traitement","Traitement de préparation de site drainage sylvicole","Fixe","PE",null,41.085154349563666,41,45.5488740246589,{"$f":"ROUND(J132,0)","v":46},46.731342629293046,{"$f":"ROUND(L132,0)","v":47},"[Grilles TSNC 2020-2021.xlsx]Feuille de calcul'!$AD$130"]
["Travaux techniques","Vérification technique","Inventaire après traitement","Traitement de régénération artificielle","Variable","PE","PE + (Nb * Critère #3) + (Nb * Critère #4)",35.575899354859537,36,39.441062926070046,{"$f":"ROUND(J133,0)","v":39},40.464970094845043,{"$f":"ROUND(L133,0)","v":40},"[Grilles TSNC 2020-2021.xlsx]Feuille de calcul'!$AD$131"]
["Travaux techniques","Vérification technique","Inventaire après traitement","Traitement de régénération artificielle","Variable","Critère","Critère #3",0.44480926045956332,0.44,0.45731629423393749,{"$f":"ROUND(J134,2)","v":0.46},0.46918842437762687,{"$f":"ROUND(L134,2)","v":0.47},"[Grilles TSNC 2020-2021.xlsx]Feuille de calcul'!$AD$132"]
["Travaux techniques","Vérification technique","Inventaire après traitement","Traitement de régénération artificielle","Variable","Critère","Critère #4",null,null,2.2479187500000011,{"$f":"ROUND(J135,2)","v":2.25},"-",{"$f":"L135","v":"-"},"[Grilles TSNC 2020-2021.xlsx]Feuille de calcul'!$AD$133"]
["Travaux techniques","Vérification technique","Inventaire après traitement","Traitement d'éducation de peuplement","Variable","PE","PE + (Nb * Critère #5) + (Nb * Critère #6)",89.389275938063477,89,99.101024039394147,{"$f":"ROUND(J136,0)","v":99},101.67372977851379,{"$f":"ROUND(L136,0)","v":102},"[Grilles TSNC 2020-2021.xlsx]Feuille de calcul'!$AD$134"]
["Travaux techniques","Vérification technique","Inventaire après traitement","Traitement d'éducation de peuplement","Variable","Critère","Critère #5",3.3525053410276979,3.35,3.3675108939044494,{"$f":"ROUND(J137,2)","v":3.37},3.4549329431443438,{"$f":"ROUND(L137,2)","v":3.45},"[Grilles TSNC 2020-2021.xlsx]Feuille de calcul'!$AD$135"]
["Travaux techniques","Vérification technique","Inventaire après traitement","Traitement d'éducation de peuplement","Variable","Critère","Fusionné en 2019-2020 avec le critère #5",0.67050106820553945,0.67,"-","-","-","-","[Grilles TSNC 2020-2021.xlsx]Feuille de calcul'!$AD$136"]
["Travaux techniques","Vérification technique","Inventaire après traitement","Traitement d'éducation de peuplement","Variable","Critère","Critère #6 ",6.7050106820553959,6.71,6.7350217878088987,{"$f":"ROUND(J139,2)","v":6.74},6.9098658862886877,{"$f":"ROUND(L139,2)","v":6.91},"[Grilles TSNC 2020-2021.xlsx]Feuille de calcul'!$AD$137"]
["Travaux techniques","Planification","Recherche de secteur d'intervention potentiel (terrain)","Traitement de préparation de site et régénération artificielle","Fixe","Hectare",null,4.8079253077613728,5,5.3302850538157447,{"$f":"ROUND(J140,0)","v":5},5.4686615749669709,{"$f":"ROUND(L140,0)","v":5},"[Grilles TSNC 2020-2021.xlsx]Feuille de calcul'!$AD$138"]
["Travaux techniques","Planification","Recherche de secteur d'intervention potentiel (terrain)","Traitement d'éducation de peuplement","Fixe","Hectare",null,9.1167053028159817,9,10.107194872016221,10,10.36958205222639,10,"[Grilles TSNC 2020-2021.xlsx]Feuille de calcul'!$AD$139"]
["Travaux techniques","Planification","Recherche de secteur d'intervention trouvé (terrain)","Traitement de préparation de site et régénération artificielle","Fixe","Hectare",null,11.198074823197159,11,12.414695953209407,12,12.736986866323996,13,"[Grilles TSNC 2020-2021.xlsx]Feuille de calcul'!$AD$140"]
["Travaux techniques","Planification","Recherche de secteur d'intervention trouvé (terrain)","Traitement d'éducation de peuplement","Fixe","Hectare",null,16.20154717311264,16,17.961773367428361,18,18.428068825775792,18,"[Grilles TSNC 2020-2021.xlsx]Feuille de calcul'!$AD$141"]
["Travaux techniques","Planification","Confection du plan de sondage",null,"Fixe","Hectare",null,1.8811650994636291,2,2.0855453384943599,2,2.1396870036642959,{"$f":"ROUND(L144,2)","v":2.14},"[Grilles TSNC 2020-2021.xlsx]Feuille de calcul'!$AD$142"]
["Travaux techniques","Planification","Inventaire avant traitement","Traitement de préparation de site (sauf drainage sylvicole)","Variable","PE","PE + (Nb * Critère #7) + (Nb * (Critère #8)",30.631900831242923,31,33.959920905419359,34,34.841535240491126,35,"[Grilles TSNC 2020-2021.xlsx]Feuille de calcul'!$AD$143"]
["Travaux techniques","Planification","Inventaire avant traitement","Traitement de préparation de site (sauf drainage sylvicole)","Variable","Critère","Critère #7","-","-",0.46563113594728184,{"$f":"ROUND(J146,2)","v":0.47},0.47771912300267466,{"$f":"ROUND(L146,2)","v":0.48},"[Grilles TSNC 2020-2021.xlsx]Feuille de calcul'!$AD$144"]
["Travaux techniques","Planification","Inventaire avant traitement","Traitement de préparation de site (sauf drainage sylvicole)","Variable","Critère","Critère #8","-","-",2.3281556797364091,{"$f":"ROUND(J147,2)","v":2.33},2.3885956150133731,{"$f":"ROUND(L147,2)","v":2.39},"[Grilles TSNC 2020-2021.xlsx]Feuille de calcul'!$AD$145"]
["Travaux techniques","Planification","Inventaire avant traitement","Traitement de régénération artificielle","Variable","PE","PE + (Nb * Critère #9)","-","-",25.682034044134348,{"$f":"ROUND(J148,0)","v":26},26.348750831554685,{"$f":"ROUND(L148,0)","v":26},"[Grilles TSNC 2020-2021.xlsx]Feuille de calcul'!$AD$146"]
["Travaux techniques","Planification","Inventaire avant traitement","Traitement de régénération artificielle","Variable","Critère","Critère #9 ","-","-",0.46563113594728184,{"$f":"ROUND(J149,2)","v":0.47},0.47771912300267466,{"$f":"ROUND(L149,2)","v":0.48},"[Grilles TSNC 2020-2021.xlsx]Feuille de calcul'!$AD$147"]
["Travaux techniques","Planification","Inventaire avant traitement","Traitement de préparation de site (drainage sylvicole - plan et devis)","Fixe","Hectare",null,29.650028171216508,30,32.871372138648695,{"$f":"ROUND(J150,0)","v":33},33.724727273709881,{"$f":"ROUND(L150,0)","v":34},"[Grilles TSNC 2020-2021.xlsx]Feuille de calcul'!$AD$148"]
["Travaux techniques","Planification","Inventaire avant traitement","Traitement d'éducation de peuplement (dégagement, nettoiement et éclaircie précommerciale)","Variable","PE","PE + (Nb Critère #10) + (Nb Critère #11) + (Nb Critère #12) ",93.6922021590958,94,96.886977057795903,{"$f":"ROUND(J151,0)","v":97},99.402205173132629,{"$f":"ROUND(L151,0)","v":99},"[Grilles TSNC 2020-2021.xlsx]Feuille de calcul'!$AD$149"]
["Travaux techniques","Planification","Inventaire avant traitement","Traitement d'éducation de peuplement (dégagement, nettoiement et éclaircie précommerciale)","Variable","Critère","Critère #10",0.64058124394458038,0.64,0.69844670392092278,{"$f":"ROUND(J152,2)","v":0.7},0.71657868450401196,{"$f":"ROUND(L152,2)","v":0.72},"[Grilles TSNC 2020-2021.xlsx]Feuille de calcul'!$AD$150"]
["Travaux techniques","Planification","Inventaire avant traitement","Traitement d'éducation de peuplement (dégagement, nettoiement et éclaircie précommerciale)","Variable","Critère","Critère #11",3.2197636208793381,3.22,3.4922335196046137,{"$f":"ROUND(J153,2)","v":3.49},3.5828934225200597,{"$f":"ROUND(L153,2)","v":3.58},"[Grilles TSNC 2020-2021.xlsx]Feuille de calcul'!$AD$151"]
["Travaux techniques","Planification","Inventaire avant traitement","Traitement d'éducation de peuplement (dégagement, nettoiement et éclaircie précommerciale)","Variable","Critère","Critère #12",6.4395272417586762,6.44,6.9844670392092274,{"$f":"ROUND(J154,2)","v":6.98},7.1657868450401194,{"$f":"ROUND(L154,2)","v":7.17},"[Grilles TSNC 2020-2021.xlsx]Feuille de calcul'!$AD$152"]
["Travaux techniques","Planification","Inventaire avant traitement","Traitement d'éducation (élagage et taille)","Fixe","Hectare",null,42.827818469534961,43,47.480870866937003,{"$f":"ROUND(J155,0)","v":47},48.713494950914267,{"$f":"ROUND(L155,0)","v":49},"[Grilles TSNC 2020-2021.xlsx]Feuille de calcul'!$AD$153"]
["Travaux techniques","Planification","Délimitation de secteurs","Traitement de préparation de site et régénération artificielle","Fixe","Hectare","Abandon pour la régénération en 2020-2021",27.753304577597927,28,30.768577944661477,31,"Abandonné","Abandonné","Abandonné"]
["Travaux techniques","Planification","Délimitation de secteurs","Traitement de préparation de site ","Fixe","Hectare","Taux disponible pour la technique seule à partir de 2020-2021",null,null,null,null,31.567343626752852,32,"[Grilles TSNC 2020-2021.xlsx]Feuille de calcul'!$AD$155"]
["Travaux techniques","Planification","Délimitation de secteurs","Traitement de préparation de site ","Fixe","Hectare","Taux intégré à la vérification à partir de 2020-2021",null,null,null,null,10.497767019227455,10,"[Grilles TSNC 2020-2021.xlsx]Feuille de calcul'!$AD$156"]
["Travaux techniques","Planification","Délimitation de secteurs","Traitement de préparation de site ","Fixe","Mmicrosites","Taux intégré à la vérification à partir de 2020-2021",null,null,null,null,1.8970334735791614,2,"[Grilles TSNC 2020-2021.xlsx]Feuille de calcul'!$AD$157"]
["Travaux techniques","Planification","Délimitation de secteurs","Traitement de préparation de site ","Fixe","kilomètre ou Mm³","Taux intégré à la vérification à partir de 2020-2021",null,null,null,null,19.483046485407602,19,"[Grilles TSNC 2020-2021.xlsx]Feuille de calcul'!$AD$158"]
["Travaux techniques","Planification","Délimitation de secteurs","Traitement d'éducation de peuplement","Fixe","Hectare",null,136.80289252360305,137,151.66591963485524,152,155.60323295382099,{"$f":"ROUND(L161,0)","v":156},"[Grilles TSNC 2020-2021.xlsx]Feuille de calcul'!$AD$159"]
["Martelage","Activités liées au martelage pour les traitements commerciaux","Délimitation de secteurs",null,"Fixe","Kilomètre délimité",null,75.85640034239141,76,84.097861572141653,84,86.299413982078434,86,"[Grilles TSNC 2020-2021.xlsx]Feuille de calcul'!$AD$160"]
["Martelage","Activités liées au martelage pour les traitements commerciaux","Martelage feuillus","Référence FPr","Fixe","Hectare",null,143.05705106073921,143,158.59956473971499,159,162.75145692151702,163,"[Grilles TSNC 2020-2021.xlsx]Feuille de calcul'!$AD$161"]
["Martelage","Activités liées au martelage pour les traitements commerciaux","Martelage résineux","Référence FPr","Fixe","Hectare",null,162.87624304634389,163,180.57202397260636,181,185.29912127463504,185,"[Grilles TSNC 2020-2021.xlsx]Feuille de calcul'!$AD$162"]
["Martelage","Activités liées au martelage pour les traitements commerciaux","Martelage à taux variable",null,"Variable","Hectare","Constante",144.2301160715844,144.22999999999999,159.90007805766703,{"$f":"ROUND(J165,2)","v":159.9},164.08601567386853,{"$f":"ROUND(L165,2)","v":164.09},"[Grilles TSNC 2020-2021.xlsx]Feuille de calcul'!$AD$163"]
["Martelage","Activités liées au martelage pour les traitements commerciaux","Martelage à taux variable",null,"Variable","Hectare","Variable 1",35.682471036101894,35.68,39.559213147490738,{"$f":"ROUND(J166,2)","v":39.56},40.594812381668063,{"$f":"ROUND(L166,2)","v":40.590000000000003},"[Grilles TSNC 2020-2021.xlsx]Feuille de calcul'!$AD$164"]
["Martelage","Activités liées au martelage pour les traitements commerciaux","Martelage à taux variable",null,"Variable","Hectare","Variable 2",4.0921964158999149,4.09,4.5367953944163641,{"$f":"ROUND(J167,2)","v":4.54},4.6555617060353516,{"$f":"ROUND(L167,2)","v":4.66},"[Grilles TSNC 2020-2021.xlsx]Feuille de calcul'!$AD$165"]
["Martelage","Activités liées au martelage pour les traitements commerciaux","Martelage en éclaircie commerciale en peuplement résineux (ou mixte à tendance résineuse)","Martelage négatif","Fixe","Hectare","Constante",183.44823091251104,183,203.379067017409,{"$f":"ROUND(J168,0)","v":203},208.70321755765522,{"$f":"ROUND(L168,0)","v":209},"[Grilles TSNC 2020-2021.xlsx]Feuille de calcul'!$AD$166"]
["Martelage","Activités liées au martelage pour les traitements commerciaux","Martelage en éclaircie commerciale en peuplement résineux (ou mixte à tendance résineuse)","Martelage positif","Fixe","Hectare","Constante",95.61940559305981,96,106.00802963071503,{"$f":"ROUND(J169,0)","v":106},108.78315647393384,{"$f":"ROUND(L169,0)","v":109},"[Grilles TSNC 2020-2021.xlsx]Feuille de calcul'!$AD$167"]
["Martelage","Activités liées au martelage pour les traitements commerciaux","Inventaire après martelage",null,"Fixe","Hectare","Constante",23.229439282451846,23,25.753214763110631,{"$f":"ROUND(J170,0)","v":26},26.42739423646988,{"$f":"ROUND(L170,0)","v":26},"[Grilles TSNC 2020-2021.xlsx]Feuille de calcul'!$AD$168"]
["Martelage","Valeur des activités liées au martelage pour les traitements commerciaux","Martelage",null,"Variable","Hectare","Constante",8.9160000000000004,8.9160000000000004,8.9160000000000004,8.9160000000000004,8.9160000000000004,8.9160000000000004,"Pas de référence parce que pas utilisé"]

{"sheet":"Menus","index":12,"n_rows":670,"n_cols":10,"rows_kept":670,"cut":false,"hidden":true,"merged":[[603,0,603,2],[587,0,587,2],[0,0,0,8],[390,0,390,2],[226,0,226,2],[512,0,512,2],[554,0,554,2]]}
["Onglet «Préparation de terrain»"]
[]
["Traitement unique_INDIRECT_sans_underscore","Traitement unique_INDIRECT","Traitement","Équipement","Machinerie_INDIRECT_1","Machinerie_INDIRECT_2","Machinerie_INDIRECT_3","Taux","Unité","Variable_INDIRECT"]
["Déblaiement des résidus de coupe","PRT_Déblaiement_des_résidus_de_coupe","Déblaiement_des_résidus_de_coupe","Abatteuse groupeuse après feux",null,null,null,{"$f":"'Calculs grille'!$M$14","v":955},"$/hectare","PRT_PCT_Variable_DEBL"]
["Drainage sylvicole","PRT_Drainage_sylvicole","Déblaiement_des_résidus_de_coupe","Bouteur avec pelle râteau",null,null,null,{"$f":"'Calculs grille'!$M$13","v":807},"$/hectare"]
["Fertilisation du peuplier hybride","PRT_Fertilisation_du_peuplier_hybride","Déblaiement_des_résidus_de_coupe","Excavatrice ou débusqueuse ou abatteuse","PRT_Excavatrice_ou_debusqueuse_ou_abatteuse_R","PRT_Excavatrice_ou_debusqueuse_ou_abatteuse_TP","PRT_Excavatrice_ou_debusqueuse_ou_abatteuse_VEH","Variable","$/hectare"]
["Scarifiage par hersage ou labour","PRT_Scarifiage_par_hersage_ou_labour","Scarifiage_par_monticule_avec_scarificateur","Bracke M-36a avec débardeur",null,null,null,{"$f":"'Calculs grille'!$M$9","v":343},"$/hectare"]
["Scarifiage par mixage par placeau","PRT_Scarifiage_par_mixage_par_placeau","Scarifiage_par_monticule_avec_scarificateur","Bracke M-36a avec porteur ou débardeur à six roues",null,null,null,{"$f":"'Calculs grille'!$M$10","v":411},"$/hectare"]
["Scarifiage par monticule avec scarificateur","PRT_Scarifiage_par_monticule_avec_scarificateur","Drainage_sylvicole","Milieu boisé",null,null,null,{"$f":"'Calculs grille'!$M$16","v":2750},"$/km ou Mm³"]
["Scarifiage par monticule ou inversion par placeau ou décapage par placeau","PRT_Scarifiage_par_monticule_ou_inversion_par_placeau_ou_décapage_par_placeau","Drainage_sylvicole","Milieu dénudé",null,null,null,{"$f":"'Calculs grille'!$M$15","v":2475},"$/km ou Mm³","PRT_PCT_Variable_MONT"]
["Scarifiage par sillon avec scarificateur","PRT_Scarifiage_par_sillon_avec_scarificateur","Scarifiage_par_monticule_ou_inversion_par_placeau_ou_décapage_par_placeau","Excavatrice","PRT_Excavatrice_R","PRT_Excavatrice_TP","PRT_Excavatrice_VEH","Variable","$/hectare"]
["Inscrire une valeur","PRT_Inscrire_une_valeur","Scarifiage_par hersage_ou_labour","Herses forestières",null,null,null,{"$f":"'Calculs grille'!$M$11","v":437},"$/hectare"]
[null,null,"Scarifiage_par_mixage_par_placeau","Taupe ou pioche forestière",null,null,null,{"$f":"'Calculs grille'!$M$12","v":636},"$/Mmicrosites"]
[null,null,"Fertilisation du peuplier hybride","S/O",null,null,null,{"$f":"'Calculs grille'!$M$19","v":587},"$/hectare"]
[null,null,"Scarifiage_par_sillon_avec_scarificateur","Bracke T-26 avec débardeur, Types TTS hydrauliques, Donaren ou Requin",null,null,null,{"$f":"'Calculs grille'!$M$5","v":335},"$/hectare"]
[null,null,"Scarifiage_par_sillon_avec_scarificateur","Bracke T-26 avec porteur ou débardeur à six roues",null,null,null,{"$f":"'Calculs grille'!$M$7","v":381},"$/hectare"]
[null,null,"Scarifiage_par_sillon_avec_scarificateur","Rouleau écraseur et scarificateur à disques passifs",null,null,null,{"$f":"'Calculs grille'!$M$4","v":777},"$/hectare"]
[null,null,"Scarifiage_par_sillon_avec_scarificateur","Types TTS passifs",null,null,null,{"$f":"'Calculs grille'!$M$3","v":228},"$/hectare"]
[null,null,"Scarifiage_par_sillon_avec_scarificateur","Wadell",null,null,null,{"$f":"'Calculs grille'!$M$8","v":401},"$/hectare"]
[null,null,"Inscrire_une_valeur","Inscrire une valeur",null,null,null,0,"-"]
[]
["PA0"]
["Réduction selon la distance entre les passages ","Nb Microsite /ha désiré"]
[3.5,"2800 et + microsites par hectare"]
[4,"2200- 2799 microsites par hectare"]
[4.5,"2000- 2199 microsites par hectare"]
[5,"1600 - 1999 microsites par hectare"]
["Inscrire une valeur"]
["Constante 1",1.4659]
["Constante 2",-7.6499999999999999E-2]
["Formule référencée",{"$f":"\" =ARRONDI(\"&B29&\" EXP (\"&B30&\" * DP);4)\"","v":" =ARRONDI(1,4659 EXP (-0,0765 * DP);4)"}]
[]
["HPT","PRT_Majoration_HPT"]
["AVEC hébergement (inscrire un taux)",0]
["AVEC hébergement (taux maximum)",9.1999999999999998E-2]
["SANS hébergement",0]
[]
["HRA","PRT_Majoration_HPT_MAN"]
["AVEC hébergement (inscrire un taux)",0]
["AVEC hébergement (taux maximum)",0.223]
["SANS hébergement",0]
[]
["HPVTM"]
["AVEC hébergement (inscrire un taux)",0]
["AVEC hébergement (taux maximum)",0.17699999999999999]
["SANS hébergement",0]
[]
["DTEXE"]
["Distance < 175km OU durée du déplacement < 2h30",0]
["Distance ≥ 175km et ≤ 275km OU durée du déplacement ≥ 2h30 et ≤ 4h00",3.5000000000000003E-2]
["Distance > 275km OU durée du déplacement > 4h00",0.106]
[]
["DTPVTM"]
["Distance < 175km OU durée du déplacement < 2h30",0]
["Distance ≥ 175km et ≤ 275km OU durée du déplacement ≥ 2h30 et ≤ 4h00",0.06]
["Distance > 275km OU durée du déplacement > 4h00",0.18]
[]
["CEAF1 et ISO1"]
["CEAF1",4.1999999999999997E-3]
["ISO1",5.1000000000000004E-3]
["Pas de majoration",0]
[]
["Taux variable selon formule"]
["Constante",null,2.718]
["TP : Type de couvert","Type de couvert résineux-feuillus-mixtes — Débusqueuse",0,"PRT_Debusqueuse_Type_de_peuplement_résineux_feuillus_mixtes_VEH"]
[null,"Type de couvert feuillus ou mixtes — Excavatrice ou abatteuse",1,"PRT_Excavatrice_Type_de_peuplement_feuillus_ou_mixtes_VEH"]
[null,"Type de couvert résineux — Excavatrice ou abatteuse",0,"PRT_Excavatrice_Type_de_peuplement_résineux_VEH"]
["TR : Type de procédé de récolte","Peuplement brûlé : aucune récolte de bois",1,"PRT_Peuplement_brule"]
[null,"Peuplement brûlé : récolte de bois ou peuplement en régénération moins de 7m",0,"PRT_Peuplement_brule"]
[null,"Peuplement non brûlé : procédé de récolte par troncs entiers ou bois tronçonnés ",1,"PRT_Peuplement_vert"]
[null,"Peuplement non brûlé : procédé de récolte par arbres entiers",0,"PRT_Peuplement_vert"]
["PER : Type de perturbation","Peuplement brûlé",1]
[null,"Peuplement non brûlé",0]
["Type d'engin forestier","Abatteuse lors de la récolte",3]
[null,"Excavatrice",2]
[null,"Débusqueuse",1]
[]
["Taux variable_1920"]
["Inscrire un pourcentage"]
["Déblaiement en plein"]
["Déblaiement partiel"]
[]
["Taux variable_1920"]
["Inscrire un pourcentage"]
["Monticule ou placeau"]
[]
["Question"]
["Oui","PRT_Delimitation_des_secteurs_en_regie"]
["Non","PRT_Delimitation_des_secteurs_tierce_partie"]
[]
["Délimitation des secteur par une tierce partie"]
[0]
[{"$f":"'Calculs grille'!$M$157","v":32}]
["Calcul automatisé - Voir section « Totaux »"]
[]
["Délimitation des secteur en régie selon unité de mesure du traitement"]
[{"$f":"'Calculs grille'!$M$158","v":10},"$/ha"]
[{"$f":"'Calculs grille'!$M$159","v":2},"$/Mmicrosites"]
[{"$f":"'Calculs grille'!$M$160","v":19},"$/km ou $/Mm³"]
[]
["Vérification"]
["Taux - mécanisé",0]
[null,{"$f":"'Calculs grille'!$M$128","v":37}]
["Taux - manuel",0]
[null,{"$f":"'Calculs grille'!$M$131","v":25}]
["Taux - Drainage",0]
[null,{"$f":"'Calculs grille'!$M$132","v":47}]
[]
["Critères"]
["Oui"]
["Non"]
[]
["Codes_DICA"]
["AMEND_FER"]
["DEBL-PART"]
["DEBL-PLEIN"]
["DR_APP"]
["DR_SYS"]
["SCA_DECAP-PART"]
["SCA_DECAP-PLEIN"]
["SCA_HERS-PART"]
["SCA_HERS-PLEIN"]
["SCA_INV-PART"]
["SCA_INV-PLEIN"]
["SCA_MIX-PART"]
["SCA_MIX-PLEIN"]
["SCA_MONT-PART"]
["SCA_MONT-PLEIN"]
["SCA_SILL-PART"]
["SCA_SILL-PLEIN"]
[]
["Codes_RATF"]
["AMENDFER"]
["AGR"]
["AGRP"]
["BPR"]
["BPRPA"]
["BRM36D"]
["BRM36DP"]
["BRM36P"]
["BRM36PP"]
["DH"]
["DHAD"]
["DHADP"]
["DHAP"]
["DHAPP"]
["DHP"]
["DO"]
["DOP"]
["DRAPPMB"]
["DRAPPMD"]
["DRAV"]
["DRAVP"]
["DRDV"]
["DRDVP"]
["DREV"]
["DREVP"]
["DRSYSMB"]
["DRSYSMD"]
["HERSE"]
["HERSEP"]
["REQ"]
["REQP"]
["ROUECA"]
["ROUECAP"]
["SCAIPV"]
["SCAIPVP"]
["SCAMV"]
["SCAMVP"]
["SCAPV"]
["SCAPVP"]
["TAUPIOF"]
["TAUPIOFP"]
["TTS"]
["TTSP"]
["WAD"]
["WADP"]
[]
["Codes_DICA vs Codes_RATF","Codes_RATF","Indirect","Description"]
["AMEND_FER","AMENDFER","PRT_RATF_AMEND_FER","Amendement, fertilisation"]
["DEBL-PART","AGRP","PRT_RATF_DEBL_PART","Déblaiement des résidus de coupe, abatteuse groupeuse, après feux, partiel"]
["DEBL-PART","BPRPA","PRT_RATF_DEBL_PART","Déblaiement des résidus de coupe, bouteur avec pelle et râteau, partiel"]
["DEBL-PART","DRAVP","PRT_RATF_DEBL_PART","Déblaiement des résidus des coupes avec abatteuse, partiel, Taux variable"]
["DEBL-PART","DRDVP","PRT_RATF_DEBL_PART","Déblaiement des résidus de coupe avec débusqueuse, partiel, Taux variable"]
["DEBL-PART","DREVP","PRT_RATF_DEBL_PART","Déblaiement des résidus de coupe avec excavatrice, partiel, Taux variable"]
["DEBL-PLEIN","AGR","PRT_RATF_DEBL_PLEIN","Déblaiement des résidus de coupe avec abatteuse groupeuse, après feux, en plein"]
["DEBL-PLEIN","BPR","PRT_RATF_DEBL_PLEIN","Déblaiement des résidus de coupe avec bouteur pelle râteau, en plein"]
["DEBL-PLEIN","DRAV","PRT_RATF_DEBL_PLEIN","Déblaiement des résidus des coupes avec abatteuse, en plein, Taux variable"]
["DEBL-PLEIN","DRDV","PRT_RATF_DEBL_PLEIN","Déblaiement des résidus de coupe avec débusqueuse, en plein, Taux variable"]
["DEBL-PLEIN","DREV","PRT_RATF_DEBL_PLEIN","Déblaiement des résidus de coupe avec excavatrice, en plein, Taux variable"]
["DR_APP","DRAPPMB","PRT_RATF_DR_APP","Drainage d'appoint, milieu boisé"]
["DR_APP","DRAPPMD","PRT_RATF_DR_APP","Drainage d'appoint, milieu dénudé"]
["DR_SYS","DRSYSMB","PRT_RATF_DR_SYS","Drainage systématique, milieu boisé"]
["DR_SYS","DRSYSMD","PRT_RATF_DR_SYS","Drainage systématique, milieu dénudé"]
["SCA_DECAP-PART","SCAPVP","PRT_RATF_SCA_DECAP_PART","Scarifiage décapage par placeau, avec excavatrice, partiel, taux variable"]
["SCA_DECAP-PLEIN","SCAPV","PRT_RATF_SCA_DECAP_PLEIN","Scarifiage décapage par placeau, avec excavatrice, taux variable"]
["SCA_HERS-PART","HERSEP","PRT_RATF_SCA_HERS_PART","Herse forestière, partiel"]
["SCA_HERS-PLEIN","HERSE","PRT_RATF_SCA_HERS_PLEIN","Herse forestière"]
["SCA_INV-PART","SCAIPVP","PRT_RATF_SCA_INV_PART","Scarifiage inversion par placeau avec excavatrice, partiel, taux variable"]
["SCA_INV-PLEIN","SCAIPV","PRT_RATF_SCA_INV_PLEIN","Scarifiage inversion par placeau avec excavatrice, taux variable"]
["SCA_MIX-PART","TAUPIOFP","PRT_RATF_SCA_MIX_PART","Scarifiage en mixage par placeau, taupe ou pioche forestière, partiel"]
["SCA_MIX-PLEIN","TAUPIOF","PRT_RATF_SCA_MIX_PLEIN","Taupe ou pioche forestière"]
["SCA_MONT-PART","BRM36DP","PRT_RATF_SCA_MONT_PART","Scarifiage en monticule avec scarificateur, Bracke M-36a avec débardeur, partiel"]
["SCA_MONT-PART","BRM36PP","PRT_RATF_SCA_MONT_PART","Scarifiage en monticule avec scarificateur, Bracke M-36a avec porteur, partiel"]
["SCA_MONT-PART","SCAMVP","PRT_RATF_SCA_MONT_PART","Scarifiage en monticule avec excavatrice, taux variable, partiel"]
["SCA_MONT-PLEIN","BRM36D","PRT_RATF_SCA_MONT_PLEIN","Scarifiage en monticule avec scarificateur, Bracke M-36a avec débardeur"]
["SCA_MONT-PLEIN","BRM36P","PRT_RATF_SCA_MONT_PLEIN","Scarifiage en monticule avec scarificateur, Bracke M-36a avec porteur"]
["SCA_MONT-PLEIN","SCAMV","PRT_RATF_SCA_MONT_PLEIN","Scarifiage en monticule avec excavatrice, taux variable"]
["SCA_SILL-PART","DHADP","PRT_RATF_SCA_SILL_PART","Scarifiage par sillon, Scarificateur à disques hydrauliques, Bracke T-26 avec débardeur, partiel"]
["SCA_SILL-PART","DHAPP","PRT_RATF_SCA_SILL_PART","Scarifiage par sillon, Scarificateur à disques hydrauliques, Bracke T-26, avec porteur, partiel"]
["SCA_SILL-PART","DHP","PRT_RATF_SCA_SILL_PART","Scarifiage par sillon, Scarificateur à disques hydrauliques, TTS hydraulique, partiel"]
["SCA_SILL-PART","DOP","PRT_RATF_SCA_SILL_PART","Scarifiage par sillon, Scarificateur à disques hydrauliques, Donaren, partiel"]
["SCA_SILL-PART","REQP","PRT_RATF_SCA_SILL_PART","Scarifiage par sillon, Scarificateur à disques hydrauliques, Requin, partiel"]
["SCA_SILL-PART","ROUECAP","PRT_RATF_SCA_SILL_PART","Scarifiage par sillon, Rouleau écraseur et scarificateur à disques passifs, partiel"]
["SCA_SILL-PART","TTSP","PRT_RATF_SCA_SILL_PART","Scarifiage par sillon, Scarificateur à disque TTS passifs, partiel"]
["SCA_SILL-PART","WADP","PRT_RATF_SCA_SILL_PART","Scarifiage par sillon, Scarificateur à cônes hydrauliques, type Wadell, partiel"]
["SCA_SILL-PLEIN","DH","PRT_RATF_SCA_SILL_PLEIN","Scarifiage par sillon, Scarificateur à disques hydrauliques, TTS hydraulique, en plein"]
["SCA_SILL-PLEIN","DHAD","PRT_RATF_SCA_SILL_PLEIN","Scarifiage par sillon, Scarificateur à disques hydrauliques, Bracke T-26, avec débardeur, en plein"]
["SCA_SILL-PLEIN","DHAP","PRT_RATF_SCA_SILL_PLEIN","Scarifiage par sillon, Scarificateur à disques hydrauliques, Bracke T-26, avec porteur, en plein"]
["SCA_SILL-PLEIN","DO","PRT_RATF_SCA_SILL_PLEIN","Scarifiage par sillon, Scarificateur à disques hydrauliques, Donaren, en plein"]
["SCA_SILL-PLEIN","REQ","PRT_RATF_SCA_SILL_PLEIN","Scarifiage par sillon, Scarificateur à disques hydrauliques, Requin, en plein"]
["SCA_SILL-PLEIN","ROUECA","PRT_RATF_SCA_SILL_PLEIN","Scarifiage par sillon, Rouleau écraseur et scarificateur à disques passifs, en plein"]
["SCA_SILL-PLEIN","TTS","PRT_RATF_SCA_SILL_PLEIN","Scarifiage par sillon, Scarificateur à disque TTS passifs, en plein"]
["SCA_SILL-PLEIN","WAD","PRT_RATF_SCA_SILL_PLEIN","Scarifiage par sillon, Scarificateur à cônes hydrauliques, type Wadell, en plein"]
[null,null,"PRT_Codes_RATF"]
[]
["Onglet «Régénération artificielle»"]
[]
["Traitement unique","Taux","Unité"]
["Ensemencement terrestre manuel",{"$f":"'Calculs grille'!$M$33","v":212},"$/ha"]
["Plantation uniforme et regarni en plein manuel sauf PEH","Variable","$/Mplants"]
["Plantation uniforme et regarni en plein manuel sentier préparé sauf PEH","Variable","$/Mplants"]
["Plantation uniforme et regarni mécanique (Scarificateur­planteur Bracke P­11a)","Variable selon le gabarit et la densité des plants","$/Mplants"]
["Plantation uniforme PEH",{"$f":"'Calculs grille'!$M$31","v":723},"$/Mplants"]
["Regarni de sentier et plantation d'enrichissement manuel sauf PEH","Variable","$/Mplants"]
["Inscrire une valeur",0,"-"]
[]
["Préparation de terrain"]
["AVEC préparation de terrain",1]
["SANS préparation de terrain",0]
[]
["Gabarit"]
["Gabarit 113-25",{"$f":"'Calculs grille'!$M$38","v":89}]
["Gabarit 67-50",{"$f":"'Calculs grille'!$M$39","v":94}]
["Gabarit 45-110",{"$f":"'Calculs grille'!$M$40","v":161}]
["Gabarit 25-200",{"$f":"'Calculs grille'!$M$41","v":283}]
["Gabarit PFD récipients",{"$f":"'Calculs grille'!$M$42","v":324}]
["Gabarit PFD racines nues",{"$f":"'Calculs grille'!$M$43","v":380}]
[]
["Traitements de plantation mécanique"]
["Récipient 25-200, densité inférieure ou égale à 1499 plants/ha",{"$f":"'Calculs grille'!$M$30","v":1506}]
["Récipient 25-200, densité supérieure ou égale à 1500 plants/ha",{"$f":"'Calculs grille'!$M$28","v":1383}]
["Récipient 45-110, densité inférieure ou égale à 1499 plants/ha",{"$f":"'Calculs grille'!$M$29","v":1477}]
["Récipient 45-110, densité supérieure ou égale à 1500 plants/ha",{"$f":"'Calculs grille'!$M$27","v":1354}]
[]
["HRA ou TC","RA_Majoration_HRA_ou_TC"]
["AVEC hébergement (inscrire un taux)",0]
["AVEC hébergement (taux maximum)",0.223]
["AVEC transport collectif",4.9000000000000002E-2]
["SANS majoration",0]
[]
["HPT","RA_Majoration_HRA_MEC"]
["AVEC hébergement (inscrire un taux)",0]
["AVEC hébergement (taux maximum)",9.1999999999999998E-2]
["SANS majoration",0]
[]
["HPVTM"]
["AVEC hébergement (inscrire un taux)",0]
["AVEC hébergement (taux maximum)",0.17699999999999999]
["SANS hébergement",0]
[]
["DTEXE"]
["Distance < 175km OU durée du déplacement < 2h30",0]
["Distance ≥ 175km et ≤ 275km OU durée du déplacement ≥ 2h30 et ≤ 4h00",3.5000000000000003E-2]
["Distance > 275km OU durée du déplacement > 4h00",0.106]
[]
["DTPVTM"]
["Distance < 175km OU durée du déplacement < 2h30",0]
["Distance ≥ 175km et ≤ 275km OU durée du déplacement ≥ 2h30 et ≤ 4h00",0.06]
["Distance > 275km OU durée du déplacement > 4h00",0.18]
[]
["CEAF2 et ISO2"]
["CEAF2",1.1999999999999999E-3]
["ISO2",1.5E-3]
["Pas de majoration",0]
[]
["Taux vérification"]
[0]
[{"$f":"'Calculs grille'!$M$133","v":40}]
[]
["Vérification - Critères"]
["Oui"]
["Non"]
[]
["Vérification traçabilité des plants"]
["Oui",{"$f":"'Calculs grille'!$M$34","v":1.98}]
["Non",0]
[]
["Codes DICA"]
["ENS_TER-MANU"]
["PL_AGRO-MEL"]
["PL_AGRO-MONO"]
["PL_ENR-MEL"]
["PL_ENR-MONO"]
["PL_REG-MEL"]
["PL_REG-MONO"]
["PL_U-MEL"]
["PL_U-MONO"]
[]
["Codes_RATF"]
["ENR"]
["ENSM"]
["P110"]
["P200"]
["P25"]
["P50"]
["PPFDR"]
["PPFDRN"]
["PPHBO"]
["RPFDR"]
["RPFDRN"]
["RR110"]
["RR200"]
["RR25"]
["RR50"]
["SCAPL110P"]
["SCAPL110R"]
["SCAPL200P"]
["SCAPL200R"]
[]
["Codes_DICA vs Codes_RATF","Codes_RATF","Indirect","Description"]
["ENS_TER-MANU","ENSM","RA_RATF_ENS_TER_MANU","Ensemencement terrestre manuel"]
["PL_AGRO-MEL","P110","RA_RATF_PL_AGRO_MEL","Plantation 45-110"]
["PL_AGRO-MEL","P200","RA_RATF_PL_AGRO_MEL","Plantation 25-200"]
["PL_AGRO-MEL","P25","RA_RATF_PL_AGRO_MEL","Plantation 113-25"]
["PL_AGRO-MEL","P50","RA_RATF_PL_AGRO_MEL","Plantation 67-50"]
["PL_AGRO-MEL","PPFDR","RA_RATF_PL_AGRO_MEL","Plantation PFD livré en récipient"]
["PL_AGRO-MEL","PPFDRN","RA_RATF_PL_AGRO_MEL","Plantation PFD en racines nues"]
["PL_AGRO-MEL","SCAPL110P","RA_RATF_PL_AGRO_MEL","Plantation mécanique 45-110,  Scarificateur planteur Bracke P-11a, 1500 plants et +"]
["PL_AGRO-MEL","SCAPL200P","RA_RATF_PL_AGRO_MEL","Plantation mécanique 25-200,  Scarificateur planteur Bracke P-11a, 1500 plants et +"]
["PL_AGRO-MONO","P110","RA_RATF_PL_AGRO_MONO","Plantation 45-110"]
["PL_AGRO-MONO","P200","RA_RATF_PL_AGRO_MONO","Plantation 25-200"]
["PL_AGRO-MONO","P25","RA_RATF_PL_AGRO_MONO","Plantation 113-25"]
["PL_AGRO-MONO","P50","RA_RATF_PL_AGRO_MONO","Plantation 67-50"]
["PL_AGRO-MONO","PPFDR","RA_RATF_PL_AGRO_MONO","Plantation PFD livré en récipient"]
["PL_AGRO-MONO","PPFDRN","RA_RATF_PL_AGRO_MONO","Plantation PFD en racines nues"]
["PL_AGRO-MONO","PPHBO","RA_RATF_PL_AGRO_MONO","Plantation uniforme de peuplier hybride"]
["PL_AGRO-MONO","SCAPL110P","RA_RATF_PL_AGRO_MONO","Plantation mécanique 45-110,  Scarificateur planteur Bracke P-11a, 1500 plants et +"]
["PL_AGRO-MONO","SCAPL200P","RA_RATF_PL_AGRO_MONO","Plantation mécanique 25-200,  Scarificateur planteur Bracke P-11a, 1500 plants et +"]
["PL_ENR-MEL","ENR","RA_RATF_PL_ENR_MEL","Enrichissement et regarni de feuillus et de pins"]
["PL_ENR-MONO","ENR","RA_RATF_PL_ENR_MONO","Enrichissement et regarni de feuillus et de pins"]
["PL_REG-MEL","RPFDR","RA_RATF_PL_REG_MEL","Regarni PFD livré en récipient"]
["PL_REG-MEL","RPFDRN","RA_RATF_PL_REG_MEL","Regarni PFD en racines nues"]
["PL_REG-MEL","RR110","RA_RATF_PL_REG_MEL","Regarni 45-110"]
["PL_REG-MEL","RR200","RA_RATF_PL_REG_MEL","Regarni 25-200"]
["PL_REG-MEL","RR25","RA_RATF_PL_REG_MEL","Regarni 113-25"]
["PL_REG-MEL","RR50","RA_RATF_PL_REG_MEL","Regarni 67-50"]
["PL_REG-MEL","SCAPL110R","RA_RATF_PL_REG_MEL","Regarni mécanique 45-110,  Scarificateur planteur Bracke P-11a, 1499 plants et -"]
["PL_REG-MEL","SCAPL200R","RA_RATF_PL_REG_MEL","Regarni mécanique 25-200,  Scarificateur planteur Bracke P-11a, 1499 plants et -"]
["PL_REG-MONO","RPFDR","RA_RATF_PL_REG_MONO","Regarni PFD livré en récipient"]
["PL_REG-MONO","RPFDRN","RA_RATF_PL_REG_MONO","Regarni PFD en racines nues"]
["PL_REG-MONO","RR110","RA_RATF_PL_REG_MONO","Regarni 45-110"]
["PL_REG-MONO","RR200","RA_RATF_PL_REG_MONO","Regarni 25-200"]
["PL_REG-MONO","RR25","RA_RATF_PL_REG_MONO","Regarni 113-25"]
["PL_REG-MONO","RR50","RA_RATF_PL_REG_MONO","Regarni 67-50"]
["PL_REG-MONO","SCAPL110R","RA_RATF_PL_REG_MONO","Regarni mécanique 45-110,  Scarificateur planteur Bracke P-11a, 1499 plants et -"]
["PL_REG-MONO","SCAPL200R","RA_RATF_PL_REG_MONO","Regarni mécanique 25-200,  Scarificateur planteur Bracke P-11a, 1499 plants et -"]
["PL_U-MEL","P110","RA_RATF_PL_U_MEL","Plantation 45-110"]
["PL_U-MEL","P200","RA_RATF_PL_U_MEL","Plantation 25-200"]
["PL_U-MEL","P25","RA_RATF_PL_U_MEL","Plantation 113-25"]
["PL_U-MEL","P50","RA_RATF_PL_U_MEL","Plantation 67-50"]
["PL_U-MEL","PPFDR","RA_RATF_PL_U_MEL","Plantation PFD livré en récipient"]
["PL_U-MEL","PPFDRN","RA_RATF_PL_U_MEL","Plantation PFD en racines nues"]
["PL_U-MEL","SCAPL110P","RA_RATF_PL_U_MEL","Plantation mécanique 45-110,  Scarificateur planteur Bracke P-11a, 1500 plants et +"]
["PL_U-MEL","SCAPL200P","RA_RATF_PL_U_MEL","Plantation mécanique 25-200,  Scarificateur planteur Bracke P-11a, 1500 plants et +"]
["PL_U-MONO","P110","RA_RATF_PL_U_MONO","Plantation 45-110"]
["PL_U-MONO","P200","RA_RATF_PL_U_MONO","Plantation 25-200"]
["PL_U-MONO","P25","RA_RATF_PL_U_MONO","Plantation 113-25"]
["PL_U-MONO","P50","RA_RATF_PL_U_MONO","Plantation 67-50"]
["PL_U-MONO","PPFDR","RA_RATF_PL_U_MONO","Plantation PFD livré en récipient"]
["PL_U-MONO","PPFDRN","RA_RATF_PL_U_MONO","Plantation PFD en racines nues"]
["PL_U-MONO","PPHBO","RA_RATF_PL_U_MONO","Plantation uniforme de peuplier hybride"]
["PL_U-MONO","SCAPL110P","RA_RATF_PL_U_MONO","Plantation mécanique 45-110,  Scarificateur planteur Bracke P-11a, 1500 plants et +"]
["PL_U-MONO","SCAPL200P","RA_RATF_PL_U_MONO","Plantation mécanique 25-200,  Scarificateur planteur Bracke P-11a, 1500 plants et +"]
[null,null,"RA_Codes_RATF"]
[]
["RAPM"]
["Préparation de terrain avec excavatrice par monticule ou par placeau",0.05]
["Préparation de terrain autre",0]
[]
["Onglet «Éducation de peuplement»"]
[]
["Traitement unique"]
["Dégagement mécanique"]
["Élagage à des fins de qualité pour le pin blanc et le pin rouge"]
["EPC par puit de lumière ET Taille de formation avec martelage"]
["Nettoiement - scénario sylvicole de base"]
["Nettoiement et EPC systématique - scénario sylvicole intensif ou d'élite"]
["Taille phytosanitaire"]
["Inscrire une valeur"]
[]
["Dégagement"]
["Mode","Plantation ou regarni de plantation",0]
[null,"Régénération naturelle ou regarni de régénération naturelle",1]
[]
["Éclaircie précommerciale systématique - TP"]
["Peuplier",0.77049999999999996]
["Résineux",1]
[]
["DI"]
["Inscrire une valeur"]
[]
["EPC Puit lumière"]
["TAIL","AVEC taille de formation",1]
[null,"SANS taille de formation",0]
[]
["EPC Puit lumière"]
["Martelage","AVEC Martelage",1]
[null,"SANS Martelage",0]
[]
["EPC Puit lumière"]
["EPC","AVEC EPC",1]
[null,"SANS EPC",0]
[]
["Élagage Qualité"]
["LONGELA","Élagage de 3,99 mètres et moins",0]
[null,"Élagage de 4,00 mètres et plus",1]
[]
["MP"]
["Martelage de 100 tiges/ha",{"$f":"'Calculs grille'!$M$94","v":127.16}]
["Martelage de 400 tiges/ha",{"$f":"'Calculs grille'!$M$95","v":190.34}]
["SANS martelage",0]
[]
["Délimitation des secteurs"]
[0]
[{"$f":"'Calculs grille'!$M$161","v":156}]
[]
["Taux vérification"]
[0]
[{"$f":"'Calculs grille'!$M$136","v":102}]
[]
["Vérification critères"]
["Oui"]
["Non"]
[]
["HEP ou TC"]
["AVEC hébergement (inscrire un taux)",0]
["AVEC hébergement (taux maximum)",0.247]
["AVEC transport collectif",4.9000000000000002E-2]
["SANS majoration",0]
[]
["HPVTM"]
["AVEC hébergement (inscrire un taux)",0]
["AVEC hébergement (taux maximum)",0.17699999999999999]
["SANS hébergement",0]
[]
["DTEXE"]
["Distance < 175km OU durée du déplacement < 2h30",0]
["Distance ≥ 175km et ≤ 275km OU durée du déplacement ≥ 2h30 et ≤ 4h00",3.5000000000000003E-2]
["Distance > 275km OU durée du déplacement > 4h00",0.106]
[]
["DTPVTM"]
["Distance < 175km OU durée du déplacement < 2h30",0]
["Distance ≥ 175km et ≤ 275km OU durée du déplacement ≥ 2h30 et ≤ 4h00",0.06]
["Distance > 275km OU durée du déplacement > 4h00",0.18]
[]
["CEAF3 et ISO3"]
["CEAF3",2.3E-3]
["ISO3",3.8E-3]
["Pas de majoration",0]
[]
["Codes_DICA"]
["DEG_MEC"]
["ELAG"]
["EPC_PUITS"]
["EPC_SYS"]
["NET_MEC"]
["TAILFOR_CLASS"]
["TAILFOR_SYST"]
["TAILPHY"]
[]
["Codes_RATF"]
["DMRV1MN"]
["DMRV1MP"]
["ELAGV"]
["EPCPUIT13V"]
["EPCSYSSGN"]
["EPCSYSSGP"]
["NETSGN"]
["NETSGP"]
["TAILFC"]
["TAILFS"]
["TAILV"]
[]
["Codes_DICA vs Codes_RATF","Codes_RATF","Indirect","Description"]
["DEG_MEC","DMRV1MN","EP_RATF_DEG_MEC","Dégagement mécanique de la régénération naturelle, dénombrement à 1 m, taux variable"]
["DEG_MEC","DMRV1MP","EP_RATF_DEG_MEC","Dégagement mécanique de plantation, dénombrement à 1 m, taux variable"]
["ELAG","ELAGV","EP_RATF_ELAG","Élagage pour fins de qualité, taux variable"]
["EPC_PUITS","EPCPUIT13V","EP_RATF_EPC_PUITS","EPC par puit de lumière, comprend la taille de formation (prescription sylvicole 2013 et +), Taux variable"]
["EPC_SYS","EPCSYSSGN","EP_RATF_EPC_SYS","Entretien de la strate gaulis, secteur d'intervention avec un choix de tige intra spécifique (par essence) et avec un espacement ou secteur d'intervention avec choix de tige résineuse sans espacement, composition visée peuplier ou CP1=1, peuplement naturel"]
["EPC_SYS","EPCSYSSGP","EP_RATF_EPC_SYS","Entretien de la strate gaulis, secteur d'intervention avec un choix de tige intra spécifique (par essence) et avec un espacement ou secteur d'intervention avec choix de tige résineuse sans espacement, composition visée peuplier ou CP1=1, plantation"]
["NET_MEC","NETSGN","EP_RATF_NET_MEC","Entretien de la strate gaulis, secteur d'intervention sans choix de tige, soit inter spécifique (par groupe d'essence, résineux/feuillus) et sans espacement, peuplement naturel"]
["NET_MEC","NETSGP","EP_RATF_NET_MEC","Entretien de la strate gaulis, secteur d'intervention sans choix de tige, soit inter spécifique (par groupe d'essence, résineux/feuillus) et sans espacement, plantation"]
["TAILPHY","TAILV","EP_RATF_TAILPHY","Taille phytosanitaire, taux variable"]
["TAILFOR_CLASS","TAILFC","EP_RATF_TAILFOR_CLASS","Voir EPC puit de lumière"]
["TAILFOR_SYST","TAILFS","EP_RATF_TAILFOR_SYST","Voir EPC puit de lumière"]
[null,null,"EP_Codes_RATF"]
[]
["DEGPM"]
["Préparation de terrain avec excavatrice par monticule ou par placeau",5.2999999999999999E-2]
["Préparation de terrain autre",0]
[]
["Onglet «Éclaircie commerciale EAF»"]
[]
["Traitement unique","Taux","Unité"]
["Éclaircie commerciale EAF","Variable","$/m³"]
["Inscrire une valeur",0,"-"]
[]
["HECEAF"]
["AVEC hébergement",4.5999999999999999E-2]
["SANS hébergement",0]
[]
["MAN"]
["Opérations MANUELLES",{"$f":"'Calculs grille'!$M$121","v":0.34}]
["Opérations MÉCANISÉES",0]
[]
["Codes DICA"]
["EC_MIXTE-BAS"]
["EC_MIXTE-HAUT"]
["EC_MIXTE-NEUTRE"]
["EC_SEL-BAS"]
["EC_SEL-HAUT"]
["EC_SEL-NEUTRE"]
["EC_SYS"]
[]
["Codes_RATF"]
["ECMIXBASPR"]
["ECMIXHAUPR"]
["ECMIXNEUPR"]
["ECSELBASPR"]
["ECSELHAUPR"]
["ECSELNEUPR"]
["ECSYPR"]
[]
["Codes_DICA vs Codes_RATF","Codes_RATF","Indirect","Description"]
["EC_MIXTE-BAS","ECMIXBASPR","ECEAF_RATF_EC_MIXTE_BAS","Éclaircie commerciale mixte par le bas, première éclaircie commerciale de plantation résineuse réservée aux entreprises d'aménagement forestier, taux variable"]
["EC_MIXTE-HAUT","ECMIXHAUPR","ECEAF_RATF_EC_MIXTE_HAUT","Éclaircie commerciale mixte par le haut, première éclaircie commerciale de plantation résineuse réservée aux entreprises d'aménagement forestier, taux variable"]
["EC_MIXTE-NEUTRE","ECMIXNEUPR","ECEAF_RATF_EC_MIXTE_NEUTRE","Éclaircie commerciale mixte neutre, première éclaircie commerciale de plantation résineuse réservée aux entreprises d'aménagement forestier, taux variable"]
["EC_SEL-BAS","ECSELBASPR","ECEAF_RATF_EC_SEL_BAS","Éclaircie commerciale sélective par le bas, première éclaircie commerciale de plantation résineuse réservée aux entreprises d'aménagement forestier, taux variable"]
["EC_SEL-HAUT","ECSELHAUPR","ECEAF_RATF_EC_SEL_HAUT","Éclaircie commerciale sélective par le haut, première éclaircie commerciale de plantation résineuse réservée aux entreprises d'aménagement forestier, taux variable"]
["EC_SEL-NEUTRE","ECSELNEUPR","ECEAF_RATF_EC_SEL_NEUTRE","Éclaircie commerciale sélective neutre, première éclaircie commerciale de plantation résineuse réservée aux entreprises d'aménagement forestier, taux variable"]
["EC_SYS","ECSYPR","ECEAF_RATF_EC_SYS","Éclaircie commerciale, patron d'intervention systématique, première éclaircie commerciale de plantation résineuse réservée aux entreprises d'aménagement forestier, taux variable"]
[null,null,"ECEAF_Codes_RATF"]
[]
["Onglet «Martelage»"]
[]
["Traitement unique","Taux","Unité"]
["Martelage","Variable","$/ha"]
["Martelage négatif - EC (résineux ou mixte résineux)",{"$f":"'Calculs grille'!$M$168","v":209},"$/ha"]
["Martelage positif - EC (résineux ou mixte résineux)",{"$f":"'Calculs grille'!$M$169","v":109},"$/ha"]
["Inscrire une valeur",0,"-"]
[]
["Type de coupe","Facteur"]
["CRS",0.64200000000000002]
["CPI",1]
["CPR",1]
["CJ",1]
["EC feuillus et pins",1]
[]
["HPVTM"]
["AVEC hébergement (inscrire un taux)",0]
["AVEC hébergement (taux maximum)",0.17699999999999999]
["SANS hébergement",0]
[]
["DTPVTM"]
["Distance < 175km OU durée du déplacement < 2h30",0]
["Distance ≥ 175km et ≤ 275km OU durée du déplacement ≥ 2h30 et ≤ 4h00",0.06]
["Distance > 275km OU durée du déplacement > 4h00",0.18]
[]
["Délimitation des secteurs"]
[0]
[{"$f":"'Calculs grille'!$M$162","v":86}]
[]
["Taux vérification"]
[0]
[{"$f":"'Calculs grille'!$M$170","v":26}]
[]
["Onglet «Travaux de planification»"]
[]
["Critères"]
["Oui"]
["Non"]
[]
["HPVTM"]
["AVEC hébergement (inscrire un taux)",0]
["AVEC hébergement (taux maximum)",0.17699999999999999]
["SANS hébergement",0]
[]
["DTPVTM"]
["Distance < 175km OU durée du déplacement < 2h30",0]
["Distance ≥175km et ≤ 275km OU durée du déplacement ≥2h30 et ≤ 4h00",0.06]
["Distance > 275km OU durée du déplacement > 4h00",0.18]
[]
["Autres"]
[]
["UA_2020_Menu"]
["01171"]
["01272"]
["02371"]
["02471"]
["02571"]
["02651"]
["02661"]
["02662"]
["02663"]
["02664"]
["02665"]
["02666"]
["02751"]
["03153"]
["03171"]
["03351"]
["03451"]
["03571"]
["04151"]
["04251"]
["04351"]
["04352"]
["05151"]
["06151"]
["06271"]
["06452"]
["06471"]
["07151"]
["07152"]
["07251"]
["07351"]
["07352"]
["07451"]
["08151"]
["08152"]
["08251"]
["08351"]
["08451"]
["08462"]
["08551"]
["08562"]
["08651"]
["08652"]
["08663"]
["08664"]
["08665"]
["08666"]
["08751"]
["08762"]
["08763"]
["08764"]
["09351"]
["09352"]
["09471"]
["09551"]
["09751"]
["11161"]
["11262"]
["11263"]
[]
["Rexforêt_Vérif"]
["Vérification INCLUS"]
["Vérification EXCLUS"]
["Inscrire une valeur"]

{"sheet":"Formules","index":13,"n_rows":17,"n_cols":10,"rows_kept":17,"cut":false,"hidden":true,"merged":[]}
["Famille","Traitement","Équation Texte","Équation Référencée Onglet","Valeur_prescription_1","Valeur_prescription_2","Valeur_prescription_3","Valeur_prescription_4","Valeur_prescription_5","Total"]
["Éducation de peuplement","Dégagement mécanique","Taux ($/ha) = 899,63 + (12,7 * RECFFE) + (0,0044 * DI) + (146,91 * MODE)",{"$f":"\"Taux ($/ha) = \"&TEXT('Calculs grille'!$M$59,\"# ###,##\")&\" + (\"&TEXT('Calculs grille'!$M$60,\"##,#\")&\" * RECFFE) + (\"&TEXT('Calculs grille'!$M$61,\"0,####\")&\" * DI) + (\"&TEXT('Calculs grille'!$M$62,\"# ###,00\")&\" * MODE)\"","v":"Taux ($/ha) = 899,63 + (12,7 * RECFFE) + (0,0044 * DI) + (146,91 * MODE)"},"RECFFE","DI","MODE",null,null,{"$f":"E2&\" - \"&F2&\" - \"&G2","v":"RECFFE - DI - MODE"}]
["Éducation de peuplement","Nettoiement - scénario sylvicole de base","Taux ($/ha)  = (934,28 + (0,0103 * DI) - (383,15 * SRLC))",{"$f":"\"Taux ($/ha)  = (\"&TEXT('Calculs grille'!$M$66,\"# ###,00\")&\" + (\"&TEXT('Calculs grille'!$M$67,\"0,0000\")&\" * DI) - (\"&ABS(TEXT('Calculs grille'!$M$68,\"# ###,00\"))&\" * SRLC))\"","v":"Taux ($/ha)  = (934,28 + (0,0103 * DI) - (383,15 * SRLC))"},"DI","SRLC",null,null,null,{"$f":"E3&\" - \"&F3","v":"DI - SRLC"}]
["Éducation de peuplement","Nettoiement et EPC systématique - scénario sylvicole intensif ou d'élite","Taux ($/ha) = 160,45 + (646,9 * ln (DI) - 5 228,89) * TP",{"$f":"\"Taux ($/ha) = \"&TEXT('Calculs grille'!$M$72,\"# ###,##\")&\" + (\"&TEXT('Calculs grille'!$M$73,\"# ###,##\")&\" * ln (DI) - \"&TEXT('Calculs grille'!$M$74,\"# ###,##\")&\") * TP\"","v":"Taux ($/ha) = 160,45 + (646,9 * ln (DI) - 5 228,89) * TP"},"DI","TP",null,null,null,{"$f":"E4&\" - \"&F4","v":"DI - TP"}]
["Éducation de peuplement","EPC par puit de lumière ET Taille de formation avec martelage","Taux ($/ha) = 0,484 * DENSTIGE * EXP (0,1452 * HTTIGE) + 40 * DENSTIGE / (0,1204 * DENSTIGE + 98,63) + 46,42 * TAIL + 846,31",{"$f":"\"Taux ($/ha) = \"&TEXT('Calculs grille'!$M$78,\"0,###\")&\" * DENSTIGE * EXP (\"&TEXT('Calculs grille'!$M$79,\"0,####\")&\" * HTTIGE) + \"&'Calculs grille'!$M$80&\" * DENSTIGE / (\"&TEXT('Calculs grille'!$M$81,\"0,####\")&\" * DENSTIGE + \"&TEXT('Calculs grille'!$M$82,\"0,00\")&\") + \"&TEXT('Calculs grille'!M83,\"0,00\")&\" * TAIL + \"&TEXT('Calculs grille'!$M$84,\"# ###,00\")","v":"Taux ($/ha) = 0,484 * DENSTIGE * EXP (0,1452 * HTTIGE) + 40 * DENSTIGE / (0,1204 * DENSTIGE + 98,63) + 46,42 * TAIL + 846,31"},"DENSTIGE","HTTIGE","TAIL",null,null,{"$f":"E5&\" - \"&F5&\" - \"&G5","v":"DENSTIGE - HTTIGE - TAIL"}]
["Éducation de peuplement","Élagage à des fins de qualité pour le pin blanc et le pin rouge","Taux ($/ha) = ((0,026 * BRAN + 0,3779 + 0,6293 * LONGELA) + (-0,0629 * ln (DENSELA) + 0,5321)) * DENSELA) + MP + 601,91",{"$f":"\"Taux ($/ha) = ((\"&TEXT('Calculs grille'!$M$89,\"0,000\")&\" * BRAN + \"&TEXT('Calculs grille'!$M$90,\"0,0000\")&\" + \"&TEXT('Calculs grille'!$M$91,\"0,0000\")&\" * LONGELA) + (-\"&TEXT('Calculs grille'!$M$92,\"0,####\")&\" * ln (DENSELA) + \"&TEXT('Calculs grille'!$M$93,\"0,####\")&\")) * DENSELA) + MP + \"&TEXT('Calculs grille'!$M$96,\"# ###,00\")","v":"Taux ($/ha) = ((0,026 * BRAN + 0,3779 + 0,6293 * LONGELA) + (-0,0629 * ln (DENSELA) + 0,5321)) * DENSELA) + MP + 601,91"},"BRAN","LONGDELA","DENSELA","MP",null,{"$f":"E6&\" - \"&F6&\" - \"&G6&\" - \"&H6","v":"BRAN - LONGDELA - DENSELA - MP"}]
["Éducation de peuplement","Taille phytosanitaire","Taux ($/ha) = ((0,0201 * BRAN + 0,0963 + (-0,0607 * ln (DENSELA) + 0,5148)) * DENSELA) + 0,1 * DENSCO + 0,4865 * DENSTF + 581,67",{"$f":"\"Taux ($/ha) = ((\"&TEXT('Calculs grille'!$M$97,\"0,0000\")&\" * BRAN + \"&TEXT('Calculs grille'!$M$98,\"0,0000\")&\" + (-\"&TEXT('Calculs grille'!$M$99,\"0,0000\")&\" * ln (DENSELA) + \"&TEXT('Calculs grille'!$M$100,\"0,####\")&\")) * DENSELA) + \"&TEXT('Calculs grille'!$M$101,\"0,0\")&\" * DENSCO + \"&TEXT('Calculs grille'!$M$102,\"0,####\")&\" * DENSTF + \"&'Calculs grille'!$M$103","v":"Taux ($/ha) = ((0,0201 * BRAN + 0,0963 + (-0,0607 * ln (DENSELA) + 0,5148)) * DENSELA) + 0,1 * DENSCO + 0,4865 * DENSTF + 581,67"},"BRAN","DENSELA","DENSCO","DENSTF",null,{"$f":"E7&\" - \"&F7&\" - \"&G7&\" - \"&H7","v":"BRAN - DENSELA - DENSCO - DENSTF"}]
["Préparation de terrain","Excavatrice","Taux ($/ha) = ((29 056 * R) / e EXP (1,683 * R - 0,299 * TP  - 0,313 * TR + 0,17 * PER + 2,014)) * VEH",{"$f":"\"Taux ($/ha) = ((\"&TEXT('Calculs grille'!$M$17,\"## ####\")&\" * R) / e EXP (1,683 * R - 0,299 * TP  - 0,313 * TR + 0,17 * PER + 2,014)) * VEH\"","v":"Taux ($/ha) = ((29 056 * R) / e EXP (1,683 * R - 0,299 * TP  - 0,313 * TR + 0,17 * PER + 2,014)) * VEH"},"R","TP","TR","PER","VEH",{"$f":"E8&\" - \"&F8&\" - \"&G8&\" - \"&H8&\" - \"&I8","v":"R - TP - TR - PER - VEH"}]
["Préparation de terrain","Excavatrice ou débusqueuse ou abatteuse","Taux ($/ha) = ((29 056 * R) / e EXP (1,683 * R - 0,299 * TP  - 0,313 * TR + 0,17 * PER + 2,014)) * VEH",{"$f":"\"Taux ($/ha) = ((\"&TEXT('Calculs grille'!$M$17,\"## ####\")&\" * R) / e EXP (1,683 * R - 0,299 * TP  - 0,313 * TR + 0,17 * PER + 2,014)) * VEH\"","v":"Taux ($/ha) = ((29 056 * R) / e EXP (1,683 * R - 0,299 * TP  - 0,313 * TR + 0,17 * PER + 2,014)) * VEH"},"R","TP","TR","PER","VEH",{"$f":"E9&\" - \"&F9&\" - \"&G9&\" - \"&H9&\" - \"&I9","v":"R - TP - TR - PER - VEH"}]
["Régénération artificielle","Plantation uniforme et regarni en plein manuel sauf PEH","Taux ($/Mplants) = 116,5 - (70,52 * PR) + (460 367 / (DE * DS)) + GABARIT",{"$f":"\"Taux ($/Mplants) = \"&TEXT('Calculs grille'!$M$35,\"###,0\")&\" - (\"&ABS(TEXT('Calculs grille'!$M$36,\"0,00\"))&\" * PR) + (\"&TEXT('Calculs grille'!$M$37,\"## ###\")&\" / (DE * DS)) + GABARIT\"","v":"Taux ($/Mplants) = 116,5 - (70,52 * PR) + (460 367 / (DE * DS)) + GABARIT"},"PR","DE","DS","Gabarit",null,{"$f":"E10&\" - \"&F10&\" - \"&G10&\" - \"&H10","v":"PR - DE - DS - Gabarit"}]
["Régénération artificielle","Regarni de sentier et plantation d'enrichissement manuel sauf PEH","Taux ($/Mplants) = 116,5 - (70,52 * PR) + (460 367 / (DE * DS)) + GABARIT",{"$f":"\"Taux ($/Mplants) = \"&TEXT('Calculs grille'!$M$35,\"###,0\")&\" - (\"&ABS(TEXT('Calculs grille'!$M$36,\"0,00\"))&\" * PR) + (\"&TEXT('Calculs grille'!$M$37,\"## ###\")&\" / (DE * DS)) + GABARIT\"","v":"Taux ($/Mplants) = 116,5 - (70,52 * PR) + (460 367 / (DE * DS)) + GABARIT"},"PR","DE","DS","Gabarit",null,{"$f":"E11&\" - \"&F11&\" - \"&G11&\" - \"&H11","v":"PR - DE - DS - Gabarit"}]
["Régénération artificielle","Plantation uniforme et regarni en plein manuel sentier préparé sauf PEH","Taux ($/Mplants) = 116,5 - (70,52 * PR) + (460 367 / (DE * DS)) + GABARIT",{"$f":"\"Taux ($/Mplants) = \"&TEXT('Calculs grille'!$M$35,\"###,0\")&\" - (\"&ABS(TEXT('Calculs grille'!$M$36,\"0,00\"))&\" * PR) + (\"&TEXT('Calculs grille'!$M$37,\"## ###\")&\" / (DE * DS)) + GABARIT\"","v":"Taux ($/Mplants) = 116,5 - (70,52 * PR) + (460 367 / (DE * DS)) + GABARIT"},"PR","DE","DSA","Gabarit",null,{"$f":"E12&\" - \"&F12&\" - \"&G12&\" - \"&H12","v":"PR - DE - DSA - Gabarit"}]
["Éclaircie commerciale EAF","Éclaircie commerciale EAF","Taux ($/m3) = (5,118 * VREC EXP  -0,682) + 9,379 + (55,91 / P)",{"$f":"\"Taux ($/m3) = (\"&TEXT('Calculs grille'!$M$122,\"0,000\")&\" * VREC EXP  \"&TEXT('Calculs grille'!$M$123,\"0,000\")&\") + \"&TEXT('Calculs grille'!$M$124,\"0,000\")&\" + (\"&TEXT('Calculs grille'!$M$126,\"00,00\")&\" / P)\"","v":"Taux ($/m3) = (5,118 * VREC EXP  -0,682) + 9,379 + (55,91 / P)"},"VREC","P",null,null,null,{"$f":"E13&\" - \"&F13","v":"VREC - P"}]
["Martelage","Martelage","Taux ($/ha) = (164,09 - (40,59 * PF) + (4,66 * NbMSCROP)) * TC",{"$f":"\"Taux ($/ha) = (\"&TEXT('Calculs grille'!M$165,\"0,00\")&\" - (\"&TEXT('Calculs grille'!$M$166,\"0,00\")&\" * PF) + (\"&TEXT('Calculs grille'!$M$167,\"0,00\")&\" * NbMSCROP)) * TC\"","v":"Taux ($/ha) = (164,09 - (40,59 * PF) + (4,66 * NbMSCROP)) * TC"},"NbMSCROP","TC",null,null,null,{"$f":"E14&\" - \"&F14","v":"NbMSCROP - TC"}]
["Travaux de planification","Inventaire avant traitement pour éducation de peuplement (dégagement, nettoiement et éclaircie précommerciale)","Taux ($/PE) = 99 + (Nombre de critère #10 * 0,72) + (Nombre de critère #11 * 3,58) + (Nombre de critère #12 * 7,17)",{"$f":"\"Taux ($/PE) = \"&'Calculs grille'!$M$151&\" + (Nombre de critère #10 * \"&TEXT('Calculs grille'!$M$152,\"0,00\")&\") + (Nombre de critère #11 * \"&TEXT('Calculs grille'!$M$153,\"0,00\")&\") + (Nombre de critère #12 * \"&TEXT('Calculs grille'!$M$154,\"0,00\")&\")\"","v":"Taux ($/PE) = 99 + (Nombre de critère #10 * 0,72) + (Nombre de critère #11 * 3,58) + (Nombre de critère #12 * 7,17)"},"Critères #10","Critères #11","Critères #12",null,null,{"$f":"E15&\" - \"&F15&\" - \"&G15","v":"Critères #10 - Critères #11 - Critères #12"}]
["Travaux de planification","Inventaire avant traitement pour préparation de terrain (sauf drainage sylvicole)","Taux ($/PE) = 35 + (Nombre de critère #7 * 0,48) + (Nombre de critère #8 * 2,39)",{"$f":"\"Taux ($/PE) = \"&'Calculs grille'!$M$145&\" + (Nombre de critère #7 * \"&TEXT('Calculs grille'!$M$146,\"0,00\")&\") + (Nombre de critère #8 * \"&TEXT('Calculs grille'!$M$147,\"0,00\")&\")\"","v":"Taux ($/PE) = 35 + (Nombre de critère #7 * 0,48) + (Nombre de critère #8 * 2,39)"},"Critères #7","Critères #8",null,null,null,{"$f":"E16&\" - \"&F16","v":"Critères #7 - Critères #8"}]
["Travaux de planification","Inventaire avant traitement pour régénération artificielle ","Taux ($/PE) = 26 + (Nombre de critère #9 * 0,48)",{"$f":"\"Taux ($/PE) = \"&'Calculs grille'!$M$148&\" + (Nombre de critère #9 * \"&TEXT('Calculs grille'!$M$149,\"0,00\")&\")\"","v":"Taux ($/PE) = 26 + (Nombre de critère #9 * 0,48)"},"Critères #9",null,null,null,null,{"$f":"E17","v":"Critères #9"}]

{"sheet":"Majorations applicables","index":14,"n_rows":67,"n_cols":11,"rows_kept":67,"cut":false,"hidden":true,"merged":[]}
["Total RechercheV","Onglet","Équipement ou modalité","M1","M2","M3","M4","M5","M6","M7","Total"]
[{"$f":"K2","v":"PE2 - DMOD - HPT - CEAF1 - ISO1"},"Préparation de terrain","Abatteuse groupeuse après feux","PE2","DMOD","HPT","CEAF1","ISO1",null,null,{"$f":"D2& \" - \"&E2&\" - \"&F2&\" - \"&G2&\" - \"&H2","v":"PE2 - DMOD - HPT - CEAF1 - ISO1"}]
["PE4 - DMOD - HPT - CEAF1 - ISO1","Préparation de terrain","Bouteur avec pelle râteau","PE4","DMOD","HPT","CEAF1","ISO1",null,null,{"$f":"D3& \" - \"&E3&\" - \"&F3&\" - \"&G3&\" - \"&H3","v":"PE4 - DMOD - HPT - CEAF1 - ISO1"}]
["PE1 - DRAP - HPT - CEAF1 - ISO1","Préparation de terrain","Bracke M-36a avec débardeur","PE1","DRAP","HPT","CEAF1","ISO1",null,null,{"$f":"D4& \" - \"&E4&\" - \"&F4&\" - \"&G4&\" - \"&H4","v":"PE1 - DRAP - HPT - CEAF1 - ISO1"}]
["PE1 - DRAP - HPT - CEAF1 - ISO1","Préparation de terrain","Bracke M-36a avec porteur ou débardeur à six roues","PE1","DRAP","HPT","CEAF1","ISO1",null,null,{"$f":"D5& \" - \"&E5&\" - \"&F5&\" - \"&G5&\" - \"&H5","v":"PE1 - DRAP - HPT - CEAF1 - ISO1"}]
["PA0 - PA1 - PE1 - DRAP - HPT - CEAF1 - ISO1","Préparation de terrain","Bracke T-26 avec porteur ou débardeur à six roues","PA0","PA1","PE1","DRAP","HPT","CEAF1","ISO1",{"$f":"D6& \" - \"&E6&\" - \"&F6&\" - \"&G6&\" - \"&H6&\" - \"&I6&\" - \"&J6","v":"PA0 - PA1 - PE1 - DRAP - HPT - CEAF1 - ISO1"}]
["HPT - CEAF1 - ISO1","Préparation de terrain","Milieu boisé","HPT","CEAF1","ISO1",null,null,null,null,{"$f":"D7& \" - \"&E7&\" - \"&F7","v":"HPT - CEAF1 - ISO1"}]
["HPT - CEAF1 - ISO1","Préparation de terrain","Milieu dénudé","HPT","CEAF1","ISO1",null,null,null,null,{"$f":"D8& \" - \"&E8&\" - \"&F8","v":"HPT - CEAF1 - ISO1"}]
["PA2 - PE2 - DRAP - HPT - CEAF1 - ISO1","Préparation de terrain","Herses forestières","PA2","PE2","DRAP","HPT","CEAF1","ISO1",null,{"$f":"D9& \" - \"&E9&\" - \"&F9&\" - \"&G9&\" - \"&H9&\" - \"&I9","v":"PA2 - PE2 - DRAP - HPT - CEAF1 - ISO1"}]
["PE2 - DRAP - HPT - CEAF1 - ISO1","Préparation de terrain","Rouleau écraseur et scarificateur à disques passifs","PE2","DRAP","HPT","CEAF1","ISO1",null,null,{"$f":"D10& \" - \"&E10&\" - \"&F10&\" - \"&G10&\" - \"&H10","v":"PE2 - DRAP - HPT - CEAF1 - ISO1"}]
["HRA - DTEXE - CEAF1 - ISO1","Préparation de terrain","Taupe ou pioche forestière","HRA","DTEXE","CEAF1","ISO1",null,null,null,{"$f":"D11&\" - \"&E11&\" - \"&F11&\" - \"&G11","v":"HRA - DTEXE - CEAF1 - ISO1"}]
["PE2 - HRA - DTEXE - CEAF1 - ISO1","Préparation de terrain","Fertilisation du peuplier hybride","PE2","HRA","DTEXE","CEAF1","ISO1",null,null,{"$f":"D12& \" - \"&E12&\" - \"&F12&\" - \"&G12&\" - \"&H12","v":"PE2 - HRA - DTEXE - CEAF1 - ISO1"}]
["PA0 - PA1 - PE1 - DRAP - HPT - CEAF1 - ISO1","Préparation de terrain","Types TTS passifs","PA0","PA1","PE1","DRAP","HPT","CEAF1","ISO1",{"$f":"D13& \" - \"&E13&\" - \"&F13&\" - \"&G13&\" - \"&H13&\" - \"&I13&\" - \"&J13","v":"PA0 - PA1 - PE1 - DRAP - HPT - CEAF1 - ISO1"}]
["PA0 - PA1 - PE1 - DRAP - HPT - CEAF1 - ISO1","Préparation de terrain","Bracke T-26 avec débardeur, Types TTS hydrauliques, Donaren ou Requin","PA0","PA1","PE1","DRAP","HPT","CEAF1","ISO1",{"$f":"D14& \" - \"&E14&\" - \"&F14&\" - \"&G14&\" - \"&H14&\" - \"&I14&\" - \"&J14","v":"PA0 - PA1 - PE1 - DRAP - HPT - CEAF1 - ISO1"}]
["PA0 - PA1 - PE1 - DRAP - HPT - CEAF1 - ISO1","Préparation de terrain","Wadell","PA0","PA1","PE1","DRAP","HPT","CEAF1","ISO1",{"$f":"D15& \" - \"&E15&\" - \"&F15&\" - \"&G15&\" - \"&H15&\" - \"&I15&\" - \"&J15","v":"PA0 - PA1 - PE1 - DRAP - HPT - CEAF1 - ISO1"}]
["PE2 - DMOD - HPT - CEAF1 - ISO1","Préparation de terrain","Excavatrice","PE2","DMOD","HPT","CEAF1","ISO1",null,null,{"$f":"D16&\" - \"&E16&\" - \"&F16&\" - \"&G16&\" - \"&H16","v":"PE2 - DMOD - HPT - CEAF1 - ISO1"}]
["PE2 ou PE3 - DMOD - HPT - CEAF1 - ISO1","Préparation de terrain","Excavatrice ou débusqueuse ou abatteuse","PE2","PE3","DMOD","HPT","CEAF1","ISO1",null,{"$f":"D17& \" ou \"&E17&\" - \"&F17& \" - \"&G17&\" - \"&H17&\" - \"&I17","v":"PE2 ou PE3 - DMOD - HPT - CEAF1 - ISO1"}]
[{"$f":"K18","v":"DEGPM - PE2 - HEP - TC - DTEXE - CEAF3 - ISO3"},"Éducation de peuplement","Dégagement mécanique","DEGPM","PE2","HEP","TC","DTEXE","CEAF3","ISO3",{"$f":"D18& \" - \"&E18&\" - \"&F18&\" - \"&G18&\" - \"&H18&\" - \"&I18&\" - \"&J18","v":"DEGPM - PE2 - HEP - TC - DTEXE - CEAF3 - ISO3"}]
["PE2 - HEP - TC - DTEXE - CEAF3 - ISO3","Éducation de peuplement","Élagage à des fins de qualité pour le pin blanc et le pin rouge","PE2","HEP","TC","DTEXE","CEAF3","ISO3",null,{"$f":"D19& \" - \"&E19&\" - \"&F19&\" - \"&G19&\" - \"&H19&\" - \"&I19","v":"PE2 - HEP - TC - DTEXE - CEAF3 - ISO3"}]
["PE2 - HEP - TC - DTEXE - CEAF3 - ISO3","Éducation de peuplement","EPC par puit de lumière ET Taille de formation avec martelage","PE2","HEP","TC","DTEXE","CEAF3","ISO3",null,{"$f":"D20& \" - \"&E20&\" - \"&F20&\" - \"&G20&\" - \"&H20&\" - \"&I20","v":"PE2 - HEP - TC - DTEXE - CEAF3 - ISO3"}]
["PE2 - HEP - TC - DTEXE - CEAF3 - ISO3","Éducation de peuplement","Nettoiement - scénario sylvicole de base","PE2","HEP","TC","DTEXE","CEAF3","ISO3",null,{"$f":"D21& \" - \"&E21&\" - \"&F21&\" - \"&G21&\" - \"&H21&\" - \"&I21","v":"PE2 - HEP - TC - DTEXE - CEAF3 - ISO3"}]
["PE2 - HEP - TC - DTEXE - CEAF3 - ISO3","Éducation de peuplement","Nettoiement et EPC systématique - scénario sylvicole intensif ou d'élite","PE2","HEP","TC","DTEXE","CEAF3","ISO3",null,{"$f":"D22& \" - \"&E22&\" - \"&F22&\" - \"&G22&\" - \"&H22&\" - \"&I22","v":"PE2 - HEP - TC - DTEXE - CEAF3 - ISO3"}]
["PE2 - HEP - TC - DTEXE - CEAF3 - ISO3","Éducation de peuplement","Taille phytosanitaire","PE2","HEP","TC","DTEXE","CEAF3","ISO3",null,{"$f":"D23& \" - \"&E23&\" - \"&F23&\" - \"&G23&\" - \"&H23&\" - \"&I23","v":"PE2 - HEP - TC - DTEXE - CEAF3 - ISO3"}]
["RAPM - HRA - TC - DTEXE - CEAF2 - ISO2 - TRA","Régénération artificielle","Plantation uniforme et regarni en plein manuel sauf PEH","RAPM","HRA","TC","DTEXE","CEAF2","ISO2","TRA",{"$f":"D24& \" - \"&E24&\" - \"&F24&\" - \"&G24&\" - \"&H24&\" - \"&I24&\" - \"&J24","v":"RAPM - HRA - TC - DTEXE - CEAF2 - ISO2 - TRA"}]
["RAPM - HRA - TC - DTEXE - CEAF2 - ISO2 - TRA","Régénération artificielle","Regarni de sentier et plantation d'enrichissement manuel sauf PEH","RAPM","HRA","TC","DTEXE","CEAF2","ISO2","TRA",{"$f":"D25& \" - \"&E25&\" - \"&F25&\" - \"&G25&\" - \"&H25&\" - \"&I25&\" - \"&J25","v":"RAPM - HRA - TC - DTEXE - CEAF2 - ISO2 - TRA"}]
["RAPM - HRA - TC - DTEXE - CEAF2 - ISO2 - TRA","Régénération artificielle","Plantation uniforme et regarni en plein manuel sentier préparé sauf PEH","RAPM","HRA","TC","DTEXE","CEAF2","ISO2","TRA",{"$f":"D26& \" - \"&E26&\" - \"&F26&\" - \"&G26&\" - \"&H26&\" - \"&I26&\" - \"&J26","v":"RAPM - HRA - TC - DTEXE - CEAF2 - ISO2 - TRA"}]
["RAPM - HRA - TC - DTEXE - CEAF2 - ISO2 - TRA","Régénération artificielle","Plantation uniforme PEH","RAPM","HRA","TC","DTEXE","CEAF2","ISO2","TRA",{"$f":"D27& \" - \"&E27&\" - \"&F27&\" - \"&G27&\" - \"&H27&\" - \"&I27&\" - \"&J27","v":"RAPM - HRA - TC - DTEXE - CEAF2 - ISO2 - TRA"}]
["HPT - CEAF2 - ISO2 - TRA","Régénération artificielle","Plantation uniforme et regarni mécanique (Scarificateur­planteur Bracke P­11a)","HPT","CEAF2","ISO2","TRA",null,null,null,{"$f":"D28& \" - \"&E28&\" - \"&F28&\" - \"&G28","v":"HPT - CEAF2 - ISO2 - TRA"}]
["PE2 - HRA - TC - DTEXE - CEAF2 - ISO2","Régénération artificielle","Ensemencement terrestre manuel","PE2","HRA","TC","DTEXE","CEAF2","ISO2",null,{"$f":"D29& \" - \"&E29&\" - \"&F29&\" - \"&G29&\" - \"&H29&\" - \"&I29","v":"PE2 - HRA - TC - DTEXE - CEAF2 - ISO2"}]
["PE2 - MAN - HECEAF","Éclaircie commerciale EAF","Éclaircie commerciale EAF","PE2","MAN","HECEAF",null,null,null,null,{"$f":"D30&\" - \"&E30&\" - \"&F30","v":"PE2 - MAN - HECEAF"}]
["HPVTM - DTPVTM","Martelage","Martelage","HPVTM","DTPVTM",null,null,null,null,null,{"$f":"D31&\" - \"&E31","v":"HPVTM - DTPVTM"}]
["HPVTM - DTPVTM","Martelage positif - EC (résineux ou mixte résineux)","Martelage positif - EC (résineux ou mixte résineux)","HPVTM","DTPVTM",null,null,null,null,null,{"$f":"D32&\" - \"&E32","v":"HPVTM - DTPVTM"}]
["HPVTM - DTPVTM","Martelage négatif - EC (résineux ou mixte résineux)","Martelage négatif - EC (résineux ou mixte résineux)","HPVTM","DTPVTM",null,null,null,null,null,{"$f":"D33&\" - \"&E33","v":"HPVTM - DTPVTM"}]
[]
["PA1 (Valeurs nettes)","PA1 - 2020-2021 (Valeurs brutes)","PA1 - 2019-2020 (Valeurs nettes)"]
[{"$f":"ROUND($C$36-(($C$36-$B$36)/2),3)","v":0.82},0.749,0.89]
[]
["PA2 (Valeurs nettes)","PA2 - 2020-2021 (Valeurs brutes)","PA2 - 2019-2020 (Valeurs nettes)"]
[{"$f":"ROUND($C$39-(($C$39-$B$39)/2),3)","v":0.72299999999999998},0.65600000000000003,0.79]
[]
["PE1",0]
["Pente A",0]
["Pente B",0]
["Pente C",5.0999999999999997E-2]
["Pente D",0.45]
["Pente E et plus",1.46]
[]
["PE2"]
["Pente A",0]
["Pente B",0]
["Pente C",7.0000000000000001E-3]
["Pente D",2.5999999999999999E-2]
["Pente E et plus",6.0999999999999999E-2]
[]
["PE3"]
["Pente A",0]
["Pente B",0]
["Pente C",0.11]
["Pente D",0.19]
["Pente E et plus",0.23]
[]
["PE4"]
["Pente A",0]
["Pente B",0]
["Pente C",0.05]
["Pente D",0.15]
["Pente E et plus",0.19]

{"sheet":"RXF","index":15,"n_rows":34,"n_cols":7,"rows_kept":34,"cut":false,"hidden":true,"merged":[]}
["Équipement ou modalité","Onglet","Taux total","Taux sans vérif","Grand total","Vérification","Grand total sans vérification"]
[{"$f":"'Majorations applicables'!$C$2","v":"Abatteuse groupeuse après feux"},{"$f":"'Majorations applicables'!$B$2","v":"Préparation de terrain"},{"$f":"'Préparation de terrain'!$G$216","v":0},{"$f":"'Préparation de terrain'!$G$213","v":0},{"$f":"'Préparation de terrain'!$G$220","v":0},{"$f":"'Préparation de terrain'!$G$219","v":0},{"$f":"E2-F2","v":0}]
[{"$f":"'Majorations applicables'!$C$3","v":"Bouteur avec pelle râteau"},{"$f":"'Majorations applicables'!$B$3","v":"Préparation de terrain"},{"$f":"'Préparation de terrain'!$G$201","v":0},{"$f":"'Préparation de terrain'!$G$198","v":0},{"$f":"'Préparation de terrain'!$G$205","v":0},{"$f":"'Préparation de terrain'!$G$204","v":0},0]
[{"$f":"'Majorations applicables'!$C$4","v":"Bracke M-36a avec débardeur"},{"$f":"'Majorations applicables'!$B$4","v":"Préparation de terrain"},{"$f":"'Préparation de terrain'!$G$171","v":0},{"$f":"'Préparation de terrain'!$G$168","v":0},{"$f":"'Préparation de terrain'!$G$175","v":0},{"$f":"'Préparation de terrain'!$G$174","v":0},0]
[{"$f":"'Majorations applicables'!$C$5","v":"Bracke M-36a avec porteur ou débardeur à six roues"},{"$f":"'Majorations applicables'!$B$5","v":"Préparation de terrain"},{"$f":"'Préparation de terrain'!$G$171","v":0},{"$f":"'Préparation de terrain'!$G$168","v":0},{"$f":"'Préparation de terrain'!$G$175","v":0},{"$f":"'Préparation de terrain'!$G$174","v":0},0]
[{"$f":"'Majorations applicables'!$C$6","v":"Bracke T-26 avec porteur ou débardeur à six roues"},{"$f":"'Majorations applicables'!$B$6","v":"Préparation de terrain"},{"$f":"'Préparation de terrain'!$G$156","v":0},{"$f":"'Préparation de terrain'!$G$153","v":0},{"$f":"'Préparation de terrain'!$G$160","v":0},{"$f":"'Préparation de terrain'!$G$159","v":0},0]
[{"$f":"'Majorations applicables'!$C$7","v":"Milieu boisé"},{"$f":"'Majorations applicables'!$B$7","v":"Préparation de terrain"},{"$f":"'Préparation de terrain'!$G$228","v":0},{"$f":"'Préparation de terrain'!$G$225","v":0},{"$f":"'Préparation de terrain'!$G$232","v":0},{"$f":"'Préparation de terrain'!$G$231","v":0},0]
[{"$f":"'Majorations applicables'!$C$8","v":"Milieu dénudé"},{"$f":"'Majorations applicables'!$B$8","v":"Préparation de terrain"},{"$f":"'Préparation de terrain'!$G$228","v":0},{"$f":"'Préparation de terrain'!$G$225","v":0},{"$f":"'Préparation de terrain'!$G$232","v":0},{"$f":"'Préparation de terrain'!$G$231","v":0},0]
[{"$f":"'Majorations applicables'!$C$9","v":"Herses forestières"},{"$f":"'Majorations applicables'!$B$9","v":"Préparation de terrain"},{"$f":"'Préparation de terrain'!$G$186","v":0},{"$f":"'Préparation de terrain'!$G$183","v":0},{"$f":"'Préparation de terrain'!$G$190","v":0},{"$f":"'Préparation de terrain'!$G$189","v":0},0]
[{"$f":"'Majorations applicables'!$C$10","v":"Rouleau écraseur et scarificateur à disques passifs"},{"$f":"'Majorations applicables'!$B$10","v":"Préparation de terrain"},{"$f":"'Préparation de terrain'!$G$216","v":0},{"$f":"'Préparation de terrain'!$G$213","v":0},{"$f":"'Préparation de terrain'!$G$220","v":0},{"$f":"'Préparation de terrain'!$G$219","v":0},0]
[{"$f":"'Majorations applicables'!$C$11","v":"Taupe ou pioche forestière"},{"$f":"'Majorations applicables'!$B$11","v":"Préparation de terrain"},{"$f":"'Préparation de terrain'!$G$241","v":0},{"$f":"'Préparation de terrain'!$G$238","v":0},{"$f":"'Préparation de terrain'!$G$245","v":0},{"$f":"'Préparation de terrain'!$G$244","v":0},0]
[{"$f":"'Majorations applicables'!$C$13","v":"Types TTS passifs"},{"$f":"'Majorations applicables'!$B$13","v":"Préparation de terrain"},{"$f":"'Préparation de terrain'!$G$156","v":0},{"$f":"'Préparation de terrain'!$G$153","v":0},{"$f":"'Préparation de terrain'!$G$160","v":0},{"$f":"'Préparation de terrain'!$G$159","v":0},0]
[{"$f":"'Majorations applicables'!$C$14","v":"Bracke T-26 avec débardeur, Types TTS hydrauliques, Donaren ou Requin"},{"$f":"'Majorations applicables'!$B$14","v":"Préparation de terrain"},{"$f":"'Préparation de terrain'!$G$156","v":0},{"$f":"'Préparation de terrain'!$G$153","v":0},{"$f":"'Préparation de terrain'!$G$160","v":0},{"$f":"'Préparation de terrain'!$G$159","v":0},0]
[{"$f":"'Majorations applicables'!$C$15","v":"Wadell"},{"$f":"'Majorations applicables'!$B$15","v":"Préparation de terrain"},{"$f":"'Préparation de terrain'!$G$156","v":0},{"$f":"'Préparation de terrain'!$G$153","v":0},{"$f":"'Préparation de terrain'!$G$160","v":0},{"$f":"'Préparation de terrain'!$G$159","v":0},0]
["S/O","Préparation de terrain (Fertilisation du peuplier hybride)",{"$f":"'Préparation de terrain'!$G$271","v":0},{"$f":"'Préparation de terrain'!$G$268","v":0},{"$f":"'Préparation de terrain'!$G$275","v":0},{"$f":"'Préparation de terrain'!$G$274","v":0},0]
[{"$f":"'Majorations applicables'!$C$16","v":"Excavatrice"},{"$f":"'Majorations applicables'!$B$16","v":"Préparation de terrain"},{"$f":"'Préparation de terrain'!$G$256","v":0},{"$f":"'Préparation de terrain'!$G$253","v":0},{"$f":"'Préparation de terrain'!$G$260","v":0},{"$f":"'Préparation de terrain'!$G$259","v":0},0]
[{"$f":"'Majorations applicables'!$C$17","v":"Excavatrice ou débusqueuse ou abatteuse"},{"$f":"'Majorations applicables'!$B$17","v":"Préparation de terrain"},{"$f":"'Préparation de terrain'!$G$256","v":0},{"$f":"'Préparation de terrain'!$G$253","v":0},{"$f":"'Préparation de terrain'!$G$260","v":0},{"$f":"'Préparation de terrain'!$G$259","v":0},0]
[{"$f":"'Majorations applicables'!$C$18","v":"Dégagement mécanique"},{"$f":"'Majorations applicables'!$B$18","v":"Éducation de peuplement"},{"$f":"'Éducation de peuplement'!$G$139","v":0},{"$f":"'Éducation de peuplement'!$G$136","v":0},{"$f":"'Éducation de peuplement'!$G$144","v":0},{"$f":"'Éducation de peuplement'!$G$143","v":0},0]
[{"$f":"'Majorations applicables'!$C$19","v":"Élagage à des fins de qualité pour le pin blanc et le pin rouge"},{"$f":"'Majorations applicables'!$B$19","v":"Éducation de peuplement"},{"$f":"'Éducation de peuplement'!$G$203","v":0},{"$f":"'Éducation de peuplement'!$G$200","v":0},{"$f":"'Éducation de peuplement'!$G$207","v":0},{"$f":"'Éducation de peuplement'!$G$206","v":0},0]
[{"$f":"'Majorations applicables'!$C$20","v":"EPC par puit de lumière ET Taille de formation avec martelage"},{"$f":"'Majorations applicables'!$B$20","v":"Éducation de peuplement"},{"$f":"'Éducation de peuplement'!$G$187","v":0},{"$f":"'Éducation de peuplement'!$G$184","v":0},{"$f":"'Éducation de peuplement'!$G$192","v":0},{"$f":"'Éducation de peuplement'!$G$191","v":0},0]
[{"$f":"'Majorations applicables'!$C$21","v":"Nettoiement - scénario sylvicole de base"},{"$f":"'Majorations applicables'!$B$21","v":"Éducation de peuplement"},{"$f":"'Éducation de peuplement'!$G$155","v":0},{"$f":"'Éducation de peuplement'!$G$152","v":0},{"$f":"'Éducation de peuplement'!$G$160","v":0},{"$f":"'Éducation de peuplement'!$G$159","v":0},0]
[{"$f":"'Majorations applicables'!$C$22","v":"Nettoiement et EPC systématique - scénario sylvicole intensif ou d'élite"},{"$f":"'Majorations applicables'!$B$22","v":"Éducation de peuplement"},{"$f":"'Éducation de peuplement'!$G$171","v":0},{"$f":"'Éducation de peuplement'!$G$168","v":0},{"$f":"'Éducation de peuplement'!$G$176","v":0},{"$f":"'Éducation de peuplement'!$G$175","v":0},0]
[{"$f":"'Majorations applicables'!$C$23","v":"Taille phytosanitaire"},{"$f":"'Majorations applicables'!$B$23","v":"Éducation de peuplement"},{"$f":"'Éducation de peuplement'!$G$218","v":0},{"$f":"'Éducation de peuplement'!$G$215","v":0},{"$f":"'Éducation de peuplement'!$G$222","v":0},{"$f":"'Éducation de peuplement'!$G$221","v":0},0]
[{"$f":"'Majorations applicables'!$C$24","v":"Plantation uniforme et regarni en plein manuel sauf PEH"},{"$f":"'Majorations applicables'!$B$24","v":"Régénération artificielle"},{"$f":"'Régénération artificielle'!$G$93","v":0},{"$f":"'Régénération artificielle'!$G$89","v":0},{"$f":"'Régénération artificielle'!$G$97","v":0},{"$f":"'Régénération artificielle'!$G$96","v":0},0]
[{"$f":"'Majorations applicables'!$C$25","v":"Regarni de sentier et plantation d'enrichissement manuel sauf PEH"},{"$f":"'Majorations applicables'!$B$25","v":"Régénération artificielle"},{"$f":"'Régénération artificielle'!$G$107","v":0},{"$f":"'Régénération artificielle'!$G$103","v":0},{"$f":"'Régénération artificielle'!$G$111","v":0},{"$f":"'Régénération artificielle'!$G$110","v":0},0]
[{"$f":"'Majorations applicables'!$C$26","v":"Plantation uniforme et regarni en plein manuel sentier préparé sauf PEH"},{"$f":"'Majorations applicables'!$B$26","v":"Régénération artificielle"},{"$f":"'Régénération artificielle'!$G$121","v":0},{"$f":"'Régénération artificielle'!$G$117","v":0},{"$f":"'Régénération artificielle'!$G$126","v":0},{"$f":"'Régénération artificielle'!$G$125","v":0},0]
[{"$f":"'Majorations applicables'!$C$27","v":"Plantation uniforme PEH"},{"$f":"'Majorations applicables'!$B$27","v":"Régénération artificielle"},{"$f":"'Régénération artificielle'!$G$136","v":0},{"$f":"'Régénération artificielle'!$G$132","v":0},{"$f":"'Régénération artificielle'!$G$140","v":0},{"$f":"'Régénération artificielle'!$G$139","v":0},0]
[{"$f":"'Majorations applicables'!$C$28","v":"Plantation uniforme et regarni mécanique (Scarificateur­planteur Bracke P­11a)"},{"$f":"'Majorations applicables'!$B$28","v":"Régénération artificielle"},{"$f":"'Régénération artificielle'!$G$149","v":0},{"$f":"'Régénération artificielle'!$G$145","v":0},{"$f":"'Régénération artificielle'!$G$153","v":0},{"$f":"'Régénération artificielle'!$G$152","v":0},0]
[{"$f":"'Majorations applicables'!$C$29","v":"Ensemencement terrestre manuel"},{"$f":"'Majorations applicables'!$B$29","v":"Régénération artificielle"},{"$f":"'Régénération artificielle'!$G$164","v":0},{"$f":"'Régénération artificielle'!$G$161","v":0},{"$f":"'Régénération artificielle'!$G$168","v":0},{"$f":"'Régénération artificielle'!$G$167","v":0},0]
[{"$f":"'Majorations applicables'!$C$30","v":"Éclaircie commerciale EAF"},{"$f":"'Majorations applicables'!$B$30","v":"Éclaircie commerciale EAF"},{"$f":"'Éclaircie commerciale EAF'!$G$46","v":0},"N/A",{"$f":"'Éclaircie commerciale EAF'!$G$48","v":0},"N/A","N/A"]
[{"$f":"'Majorations applicables'!$C$31","v":"Martelage"},{"$f":"'Majorations applicables'!$B$31","v":"Martelage"},{"$f":"Martelage!$G$45","v":0},{"$f":"Martelage!$G$42","v":0},{"$f":"Martelage!$G$49","v":0},{"$f":"Martelage!$G$48","v":0},{"$f":"E31-F31","v":0}]
[{"$f":"'Majorations applicables'!$C$32","v":"Martelage positif - EC (résineux ou mixte résineux)"},{"$f":"'Majorations applicables'!$B$32","v":"Martelage positif - EC (résineux ou mixte résineux)"},{"$f":"Martelage!$G$57","v":0},{"$f":"Martelage!$G$54","v":0},{"$f":"Martelage!$G$61","v":0},{"$f":"Martelage!$G$60","v":0},{"$f":"E32-F32","v":0}]
[{"$f":"'Majorations applicables'!$C$33","v":"Martelage négatif - EC (résineux ou mixte résineux)"},{"$f":"'Majorations applicables'!$B$33","v":"Martelage négatif - EC (résineux ou mixte résineux)"},{"$f":"Martelage!$G$57","v":0},{"$f":"Martelage!$G$54","v":0},{"$f":"Martelage!$G$61","v":0},{"$f":"Martelage!$G$60","v":0},{"$f":"E33-F33","v":0}]
["Travaux de planification","Planification",{"$f":"'Travaux de planif et techniques'!$G$72","v":0},"N/A",{"$f":"'Travaux de planif et techniques'!$G$72","v":0},"N/A","N/A"]

{"sheet":"Log","index":16,"n_rows":2,"n_cols":4,"rows_kept":2,"cut":false,"hidden":true,"merged":[]}
["Usager","Accès","OS","Version Excel"]
["Pouliot, Simon (BMMB)","2020-04-02T06:14:29","Windows (32-bit) NT 6.01",15]